Workbook

Sheet Comparativa (2) (hidden)
T1: Evaluación | V1: Evaluación
A2: Módulo | B2: Funcionalidades | C2: Sugar | D2: Evaluación | E2: Zoho | F2: Evaluación | G2: SalesForce | H2: Evaluación | I2: Microsoft Dynamics | J2: Evaluación | K2: Vtiger | L2: Evaluación | M2: NetSuite | N2: Evaluación | O2: Sage | P2: Evaluación | Q2: Sap | R2: Evaluación | S2: Oracle On Demand | T2: Total | U2: Right Now | V2: Total
A3: Ventas | B3: Página Web principal | C3: La página principal de Sugar CRM es de fácil uso, la información se encuentra distribuida de manera similar a la estructura física del software. Muestra información completa sobre funcionalidades, precios y ediciones del producto. | E3: La página principal de Web CRM CRM es de fácil uso, la información se encuentra distribuida de manera similar a la estructura física del software. Muestra información completa sobre funcionalidades, precios y ediciones del producto. | G3: La página principal de SalceForce es de fácil uso. Muestra información completa sobre funcionalidades, precios y ediciones del producto. | I3: La página principal de Microsoft Dynamics es de fácil uso, y posee información clave. No muestra precios y ediciones del producto. | K3: La página principal de Vtiger es de fácil uso. Muestra información completa sobre funcionalidades, precios y ediciones del producto. | M3: La página principal de NetSuite es de fácil uso. No muestra información completa sobre funcionalidades, precios y ediciones del producto. | O3: La página principal de Sage es fácil de seguir y encontrar información | Q3: La página principal de Sap tiene mucha información disponible, sin embargo no es de fácil manejo. No muestra información completa sobre precios y ediciones del producto, hay que ponerse en contacto con el proveedor. | S3: La página principal de Oracle tiene mucha información disponible. no muestra información completa sobre precios y ediciones del producto, se debe acceder a través de interacción con el cliente. | U3: La página principal de Oracle Rightnow posee mucha información, entregada de manera desordenada y poco manejable.No facilitan información de precios.
B4: Gestión de contactos | C4: x | D4: =IF(C4="x",100/11,0) -> 9.090909091 | E4: x | F4: =IF(E4="x",100/11,0) -> 9.090909091 | G4: x | H4: =IF(G4="x",100/11,0) -> 9.090909091 | I4: x | J4: =IF(I4="x",100/11,0) -> 9.090909091 | K4: x | L4: =IF(K4="x",100/11,0) -> 9.090909091 | M4: x | N4: =IF(M4="x",100/11,0) -> 9.090909091 | O4: x | P4: =IF(O4="x",100/11,0) -> 9.090909091 | Q4: x | R4: =IF(Q4="x",100/11,0) -> 9.090909091 | S4: x | T4: =IF(S4="x",100/11,0) -> 9.090909091 | U4: x | V4: =IF(U4="x",100/11,0) -> 9.090909091
B5: Gestión de oportunidades | C5: x | D5: 9.090909091 | E5: x | F5: 9.090909091 | G5: x | H5: 9.090909091 | I5: x | J5: 9.090909091 | K5: x | L5: 9.090909091 | M5: x | N5: 9.090909091 | O5: x | P5: 9.090909091 | Q5: x | R5: 9.090909091 | S5: x | T5: 9.090909091 | U5: (+/-) | V5: 0
B6: Gestión de propuestas | C6: x | D6: 9.090909091 | E6: x | F6: 9.090909091 | G6: x | H6: 9.090909091 | I6: x | J6: 9.090909091 | K6: no | L6: 0 | M6: x | N6: 9.090909091 | O6: x | P6: 9.090909091 | Q6: x | R6: 9.090909091 | S6: x | T6: 9.090909091 | U6: No se facilita información | V6: 0
B7: Gestión de cuentas | C7: x | D7: 9.090909091 | E7: x | F7: 9.090909091 | G7: x | H7: 9.090909091 | I7: x | J7: 9.090909091 | K7: x | L7: 9.090909091 | M7: x | N7: 9.090909091 | O7: x | P7: 9.090909091 | Q7: x | R7: 9.090909091 | S7: x | T7: 9.090909091 | U7: x | V7: 9.090909091
B8: Gestión de comisiones | C8: no | D8: 0 | E8: x | F8: 9.090909091 | G8: x | H8: 9.090909091 | I8: x | J8: 9.090909091 | K8: x | L8: 9.090909091 | M8: x | N8: 9.090909091 | O8: x | P8: 9.090909091 | Q8: x | R8: 9.090909091 | S8: x | T8: 9.090909091 | U8: No se facilita información | V8: 0
B9: Gestión de las cuotas de ventas | C9: x | D9: 9.090909091 | E9: x | F9: 9.090909091 | G9: x | H9: 9.090909091 | I9: x | J9: 9.090909091 | K9: no | L9: 0 | M9: x | N9: 9.090909091 | O9: x | P9: 9.090909091 | Q9: x | R9: 9.090909091 | S9: x | T9: 9.090909091 | U9: No se facilita información | V9: 0
B10: Gestión de documentos | C10: x | D10: 9.090909091 | E10: x | F10: 9.090909091 | G10: x | H10: 9.090909091 | I10: x | J10: 9.090909091 | K10: x | L10: 9.090909091 | M10: x | N10: 9.090909091 | O10: x | P10: 9.090909091 | Q10: x | R10: 9.090909091 | S10: x | T10: 9.090909091 | U10: No se facilita información | V10: 0
B11: Generación de ofertas | C11: x | D11: 9.090909091 | E11: x | F11: 9.090909091 | G11: x | H11: 9.090909091 | I11: x | J11: 9.090909091 | K11: x | L11: 9.090909091 | M11: no | N11: 0 | O11: x | P11: 9.090909091 | Q11: x | R11: 9.090909091 | S11: x | T11: 9.090909091 | U11: No se facilita información | V11: 0
B12: Seguimiento de pedidos | C12: x | D12: 9.090909091 | E12: x | F12: 9.090909091 | G12: x | H12: 9.090909091 | I12: x | J12: 9.090909091 | K12: x | L12: 9.090909091 | M12: x | N12: 9.090909091 | O12: x | P12: 9.090909091 | Q12: x | R12: 9.090909091 | S12: x | T12: 9.090909091 | U12: x | V12: 9.090909091
B13: Previsión de ventas | C13: x | D13: 9.090909091 | E13: x | F13: 9.090909091 | G13: x | H13: 9.090909091 | I13: x | J13: 9.090909091 | K13: x | L13: 9.090909091 | M13: x | N13: 9.090909091 | O13: x | P13: 9.090909091 | Q13: x | R13: 9.090909091 | S13: x | T13: 9.090909091 | U13: x | V13: 9.090909091
B14: Gestión de territorio | C14: x | D14: 9.090909091 | E14: no | F14: 0 | G14: x | H14: 9.090909091 | I14: x | J14: 9.090909091 | K14: x | L14: 9.090909091 | M14: x | N14: 9.090909091 | O14: x | P14: 9.090909091 | Q14: x | R14: 9.090909091 | S14: x | T14: 9.090909091 | U14: No se facilita información | V14: 0
B15: Otros funcionalidades Ventas | C15: Dentro del módulo de ventas también ofrece: Colaboración con expertos en tiempo real, información de contacto de los principales agregadores de negocio como D&B., emisión de facturas, otros. | D15: =SUM(D4:D14) -> 90.90909091 | E15: Seguimiento de historial de compras para identificación de oportunidades de ventas cruzadas y up-sell. | F15: =SUM(F4:F14) -> 90.90909091 | G15: Gestión de contratos. Gestión de socios | I15: (-) | J15: 0 | K15: Gestión de equipos. Generación de tickets. | M15: Capacidad y manejo de ventas cruzadas y up-sell. | O15: Gestión de equipos. Optimización de ventas cruzadas. Gestión de productos. | Q15: x | S15: Gestión de acuerdo. Gestión de facturación. Gestión de ventas cruzadas y up-selling . Gestión de socios. | U15: (-)
A16: Totales | B16: Total Funcionalidades Ventas | C16: =D15/100 -> 0.9090909091 | E16: =F15/100 -> 0.9090909091 | G16: =H16/100 -> 1 | H16: =SUM(H4:H14) -> 100 | I16: =J16/100 -> 1 | J16: =SUM(J4:J15) -> 100 | K16: =L16/100 -> 0.8181818182 | L16: =SUM(L4:L14) -> 81.81818182 | M16: =N16/100 -> 0.9090909091 | N16: =SUM(N4:N14) -> 90.90909091 | O16: =P16/100 -> 1 | P16: =SUM(P4:P14) -> 100 | Q16: =R16/100 -> 1 | R16: =SUM(R4:R14) -> 100 | S16: =T16/100 -> 1 | T16: =SUM(T4:T14) -> 100 | U16: =V16/100 -> 0.3636363636 | V16: =SUM(V4:V14) -> 36.36363636
A17: Marketing | B17: Campañas de marketing | C17: x | D17: =IF(C17="x",100/10,0) -> 10 | E17: x | F17: =IF(E17="x",100/10,0) -> 10 | G17: x | H17: =IF(G17="x",100/10,0) -> 10 | I17: x | J17: =IF(I17="x",100/10,0) -> 10 | K17: x | L17: =IF(K17="x",100/10,0) -> 10 | M17: x | N17: =IF(M17="x",100/10,0) -> 10 | O17: x | P17: =IF(O17="x",100/10,0) -> 10 | Q17: x | R17: =IF(Q17="x",100/10,0) -> 10 | S17: x | T17: =IF(S17="x",100/10,0) -> 10 | U17: x | V17: =IF(U17="x",100/10,0) -> 10
B18: Plantillas | C18: x | D18: 10 | E18: x | F18: 10 | G18: x | H18: 10 | I18: x | J18: 10 | K18: x | L18: 10 | M18: x | N18: 10 | O18: x | P18: 10 | Q18: x | R18: 10 | S18: x | T18: 10 | U18: x | V18: 10
B19: Monitoreo de ROI | C19: x | D19: 10 | E19: x | F19: 10 | G19: x | H19: 10 | I19: x | J19: 10 | K19: x | L19: 10 | M19: x | N19: 10 | O19: x | P19: 10 | Q19: x | R19: 10 | S19: x | T19: 10 | U19: No se facilita información | V19: 0
B20: Creación de listas | C20: x | D20: 10 | E20: x | F20: 10 | G20: x | H20: 10 | I20: x | J20: 10 | K20: x | L20: 10 | M20: x | N20: 10 | O20: x | P20: 10 | Q20: x | R20: 10 | S20: x | T20: 10 | U20: No se facilita información | V20: 0
B21: Seguimiento de la información de marketing | C21: x | D21: 10 | E21: x | F21: 10 | G21: x | H21: 10 | I21: x | J21: 10 | K21: x | L21: 10 | M21: x | N21: 10 | O21: x | P21: 10 | Q21: x | R21: 10 | S21: x | T21: 10 | U21: No se facilita información | V21: 0
B22: Seguimiento del flujo de trabajo | C22: x | D22: 10 | E22: x | F22: 10 | G22: x | H22: 10 | I22: x | J22: 10 | K22: x | L22: 10 | M22: x | N22: 10 | O22: x | P22: 10 | Q22: x | R22: 10 | S22: x | T22: 10 | U22: No se facilita información | V22: 0
B23: Gestión de promociones y eventos | C23: x | D23: 10 | E23: x | F23: 10 | G23: x | H23: 10 | I23: x | J23: 10 | K23: x | L23: 10 | M23: x | N23: 10 | O23: x | P23: 10 | Q23: x | R23: 10 | S23: x | T23: 10 | U23: x | V23: 10
B24: Programas de retención | C24: x | D24: 10 | E24: x | F24: 10 | G24: x | H24: 10 | I24: x | J24: 10 | K24: x | L24: 10 | M24: x | N24: 10 | O24: x | P24: 10 | Q24: x | R24: 10 | S24: x | T24: 10 | U24: x | V24: 10
B25: Email marketing | C25: x | D25: 10 | E25: x | F25: 10 | G25: x | H25: 10 | I25: x | J25: 10 | K25: x | L25: 10 | M25: x | N25: 10 | O25: x | P25: 10 | Q25: x | R25: 10 | S25: x | T25: 10 | U25: x | V25: 10
B26: Capacidad de vincular las ventas con los esfuerzos de marketing. | C26: x | D26: 10 | E26: Con algunas dificultades | F26: 0 | G26: x | H26: 10 | I26: x | J26: 10 | K26: x | L26: 10 | M26: x | N26: 10 | O26: x | P26: 10 | Q26: x | R26: 10 | S26: x | T26: 10 | U26: No se facilita información | V26: 0
A27: Totales | B27: Total Funcionalidades Marketing | C27: =D27/100 -> 1 | D27: =SUM(D17:D26) -> 100 | E27: =F27/100 -> 0.9 | F27: =SUM(F17:F26) -> 90 | G27: =H27/100 -> 1 | H27: =SUM(H17:H26) -> 100 | I27: =J27/100 -> 1 | J27: =SUM(J17:J26) -> 100 | K27: =L27/100 -> 1 | L27: =SUM(L17:L26) -> 100 | M27: =N27/100 -> 1 | N27: =SUM(N17:N26) -> 100 | O27: =P27/100 -> 1 | P27: =SUM(P17:P26) -> 100 | Q27: =R27/100 -> 1 | R27: =SUM(R17:R26) -> 100 | S27: =T27/100 -> 1 | T27: =SUM(T17:T26) -> 100 | U27: =V27/100 -> 0.5 | V27: =SUM(V17:V26) -> 50
A28: Servicio | B28: Gestión de casos | C28: x | D28: =IF(C28="x",100/6,0) -> 16.66666667 | E28: x | F28: =IF(E28="x",100/6,0) -> 16.66666667 | G28: x | H28: =IF(G28="x",100/6,0) -> 16.66666667 | I28: x | J28: =IF(I28="x",100/6,0) -> 16.66666667 | K28: x | L28: =IF(K28="x",100/6,0) -> 16.66666667 | M28: x | N28: =IF(M28="x",100/6,0) -> 16.66666667 | O28: x | P28: =IF(O28="x",100/6,0) -> 16.66666667 | Q28: x | R28: =IF(Q28="x",100/6,0) -> 16.66666667 | S28: x | T28: =IF(S28="x",100/6,0) -> 16.66666667 | U28: x | V28: =IF(U28="x",100/6,0) -> 16.66666667
B29: Vista completa de información de clientes | C29: x | D29: 16.66666667 | E29: x | F29: 16.66666667 | G29: x | H29: 16.66666667 | I29: x | J29: 16.66666667 | K29: x | L29: 16.66666667 | M29: x | N29: 16.66666667 | O29: x | P29: 16.66666667 | Q29: x | R29: 16.66666667 | S29: x | T29: 16.66666667 | U29: x | V29: 16.66666667
B30: Gestión de correos electrónicos | C30: x | D30: 16.66666667 | E30: x | F30: 16.66666667 | G30: x | H30: 16.66666667 | I30: x | J30: 16.66666667 | K30: x | L30: 16.66666667 | M30: x | N30: 16.66666667 | O30: x | P30: 16.66666667 | Q30: x | R30: 16.66666667 | S30: x | T30: 16.66666667 | U30: x | V30: 16.66666667
B31: Base de datos de conocimiento donde se pueden realizar búsquedas | C31: x | D31: 16.66666667 | E31: x | F31: 16.66666667 | G31: x | H31: 16.66666667 | I31: x | J31: 16.66666667 | K31: x | L31: 16.66666667 | M31: x | N31: 16.66666667 | O31: x | P31: 16.66666667 | Q31: x | R31: 16.66666667 | S31: x | T31: 16.66666667 | U31: x | V31: 16.66666667
B32: Servicio de atención al cliente (Centro de contacto) | C32: x | D32: 16.66666667 | E32: x | F32: 16.66666667 | G32: x | H32: 16.66666667 | I32: x | J32: 16.66666667 | K32: x | L32: 16.66666667 | M32: x | N32: 16.66666667 | O32: x | P32: 16.66666667 | Q32: x | R32: 16.66666667 | S32: x | T32: 16.66666667 | U32: x | V32: 16.66666667
B33: Servicio de soporte / Help desk | C33: x | D33: 16.66666667 | E33: x | F33: 16.66666667 | G33: x | H33: 16.66666667 | I33: x | J33: 16.66666667 | K33: x | L33: 16.66666667 | M33: x | N33: 16.66666667 | O33: x | P33: 16.66666667 | Q33: x | R33: 16.66666667 | S33: x | T33: 16.66666667 | U33: x | V33: 16.66666667
A34: Totales | B34: Total Funcionalidades Servicios | C34: =D34/100 -> 1 | D34: =SUM(D28:D33) -> 100 | E34: =F34/100 -> 1 | F34: =SUM(F28:F33) -> 100 | G34: =H34/100 -> 1 | H34: =SUM(H28:H33) -> 100 | I34: =J34/100 -> 1 | J34: =SUM(J28:J33) -> 100 | K34: =L34/100 -> 1 | L34: =SUM(L28:L33) -> 100 | M34: =N34/100 -> 1 | N34: =SUM(N28:N33) -> 100 | O34: =P34/100 -> 1 | P34: =SUM(P28:P33) -> 100 | Q34: =R34/100 -> 1 | R34: =SUM(R28:R33) -> 100 | S34: =T34/100 -> 1 | T34: =SUM(T28:T33) -> 100 | U34: =V34/100 -> 1 | V34: =SUM(V28:V33) -> 100
A35: Generalidades | B35: Interfaz intuitiva | C35: x | D35: =IF(C35="x",100/18,0) -> 5.555555556 | E35: x | F35: =IF(E35="x",100/18,0) -> 5.555555556 | G35: x | H35: =IF(G35="x",100/18,0) -> 5.555555556 | I35: x | J35: =IF(I35="x",100/18,0) -> 5.555555556 | K35: x | L35: =IF(K35="x",100/18,0) -> 5.555555556 | M35: x | N35: =IF(M35="x",100/18,0) -> 5.555555556 | O35: x | P35: =IF(O35="x",100/18,0) -> 5.555555556 | Q35: x | R35: =IF(Q35="x",100/18,0) -> 5.555555556 | S35: x | T35: =IF(S35="x",100/18,0) -> 5.555555556 | U35: no | V35: =IF(U35="x",100/18,0) -> 0
B36: Múltiples canales de comunicación | C36: x | D36: 5.555555556 | E36: x | F36: 5.555555556 | G36: x | H36: 5.555555556 | I36: x | J36: 5.555555556 | K36: x | L36: 5.555555556 | M36: x | N36: 5.555555556 | O36: x | P36: 5.555555556 | Q36: x | R36: 5.555555556 | S36: x | T36: 5.555555556 | U36: x | V36: 5.555555556
B37: Personalización | C37: x | D37: 5.555555556 | E37: x | F37: 5.555555556 | G37: x | H37: 5.555555556 | I37: x | J37: 5.555555556 | K37: x | L37: 5.555555556 | M37: x | N37: 5.555555556 | O37: x | P37: 5.555555556 | Q37: x | R37: 5.555555556 | S37: x | T37: 5.555555556 | U37: x | V37: 5.555555556
B38: Cuadro de mandos | C38: x | D38: 5.555555556 | E38: x | F38: 5.555555556 | G38: x | H38: 5.555555556 | I38: x | J38: 5.555555556 | K38: x | L38: 5.555555556 | M38: x | N38: 5.555555556 | O38: x | P38: 5.555555556 | Q38: x | R38: 5.555555556 | S38: x | T38: 5.555555556 | U38: x | V38: 5.555555556
B39: Seguimiento de redes sociales | C39: x | D39: 5.555555556 | E39: x | F39: 5.555555556 | G39: x | H39: 5.555555556 | I39: x | J39: 5.555555556 | K39: x | L39: 5.555555556 | M39: NetSuite sigue encontrando su camino con las herramientas de medios sociales. Hasta ahora la estrategia social de la empresa ha sido integrar con terceros. | N39: 0 | O39: x | P39: 5.555555556 | Q39: x | R39: 5.555555556 | S39: x | T39: 5.555555556 | U39: x | V39: 5.555555556
B40: Código abierto | C40: si | D40: 0 | E40: no | F40: 0 | G40: no | H40: 0 | I40: no | J40: 0 | K40: si | L40: 0 | M40: no | N40: 0 | O40: no | P40: 0 | Q40: no | R40: 0 | S40: no | T40: 0 | U40: no | V40: 0
B41: sincronización de datos | C41: x | D41: 5.555555556 | E41: x | F41: 5.555555556 | G41: x | H41: 5.555555556 | I41: x | J41: 5.555555556 | K41: x | L41: 5.555555556 | M41: x | N41: 5.555555556 | O41: x | P41: 5.555555556 | Q41: x | R41: 5.555555556 | S41: x | T41: 5.555555556 | U41: x | V41: 5.555555556
B42: Integración con los sistemas heredados | C42: x | D42: 5.555555556 | E42: x | F42: 5.555555556 | G42: x | H42: 5.555555556 | I42: x | J42: 5.555555556 | K42: No se encontró información. | L42: 0 | M42: x | N42: 5.555555556 | O42: x | P42: 5.555555556 | Q42: x | R42: 5.555555556 | S42: x | T42: 5.555555556 | U42: x | V42: 5.555555556
B43: Informes y reportes | C43: x | D43: 5.555555556 | E43: x | F43: 5.555555556 | G43: x | H43: 5.555555556 | I43: x | J43: 5.555555556 | K43: x | L43: 5.555555556 | M43: x | N43: 5.555555556 | O43: x | P43: 5.555555556 | Q43: x | R43: 5.555555556 | S43: x | T43: 5.555555556 | U43: x | V43: 5.555555556
B44: Movilidad | C44: x | D44: 5.555555556 | E44: x | F44: 5.555555556 | G44: x | H44: 5.555555556 | I44: x | J44: 5.555555556 | K44: x | L44: 5.555555556 | M44: x | N44: 5.555555556 | O44: x | P44: 5.555555556 | Q44: x | R44: 5.555555556 | S44: x | T44: 5.555555556 | U44: x | V44: 5.555555556
B45: .CSV | C45: x | D45: 5.555555556 | E45: x | F45: 5.555555556 | G45: x | H45: 5.555555556 | I45: x | J45: 5.555555556 | K45: x | L45: 5.555555556 | M45: x | N45: 5.555555556 | O45: x | P45: 5.555555556 | Q45: x | R45: 5.555555556 | S45: x | T45: 5.555555556 | U45: x | V45: 5.555555556
B46: .TxT | C46: no | D46: 0 | E46: no | F46: 0 | G46: no | H46: 0 | I46: x | J46: 5.555555556 | K46: no | L46: 0 | M46: no | N46: 0 | O46: no | P46: 0 | Q46: x | R46: 5.555555556 | S46: x | T46: 5.555555556 | U46: no | V46: 0
B47: .xLS | C47: no | D47: 0 | E47: no | F47: 0 | G47: no | H47: 0 | I47: x | J47: 5.555555556 | K47: x | L47: 5.555555556 | M47: no | N47: 0 | O47: x | P47: 5.555555556 | Q47: x | R47: 5.555555556 | S47: x | T47: 5.555555556 | U47: no | V47: 0
B48: Aplicación móvil | C48: x | D48: 5.555555556 | E48: x | F48: 5.555555556 | G48: x | H48: 5.555555556 | I48: x | J48: 5.555555556 | K48: x | L48: 5.555555556 | M48: x | N48: 5.555555556 | O48: x | P48: 5.555555556 | Q48: x | R48: 5.555555556 | S48: x | T48: 5.555555556 | U48: x | V48: 5.555555556
B49: On premise | C49: si | D49: 0 | E49: no | F49: 0 | G49: no | H49: 0 | I49: si | J49: 0 | K49: no | L49: 0 | M49: no | N49: 0 | O49: si | P49: 0 | Q49: si | R49: 0 | S49: si | T49: 0 | U49: no | V49: 0
B50: Integración con otros | C50: Integración de correo electrónico: Microsoft outlook, Gmail, word, excel, Exchange Server, IBM Lotus notes, Yahoo! Mail y servidores de correo basados en IMAP. Integración con aplicaciones de Google: (Google Docs, Google Calendar, Google Apps, Google Contacts y Box.com). Integración con aplicaciones externas como: Hoovers, Jigsaw, Cisco WebEx,Yahoo!, Gmail, iCal, y redes sociales como Facebook, Twitter y Linkedin. | D50: 0 | E50: Integración con la web de la empresa. Soporta todos los sistemas operativos: Windows, mac, linux, etc. Permite y facilita la sincronización e importación de la información de otros programas CRM. Posibilidad de integrarse con Outlook, office o google apps. Aplicaciones hermanas elaboradas por Zoho para complementarse entre ellas y permitir una gran red de operaciones, gestión y administración de cualquier ámbito. Completa integración con Google Apps, correos, tareas, eventos, etc. | F50: 0 | G50: Integración con productos Microsoft. Integración con: Gmail, Google Calendar, Google Talk, Google Docs, Google sites, Facebook, twitter y linkedin (Social media). | H50: 0 | I50: No se integra fácilmente con terceros, por lo que si se quieren adquirir otros productos de otros proveedores se debe evaluar previamente. | J50: 0 | K50: Integración con Outlook, google apps, office, exchange, mozilla, thunderbird, entre otros. | L50: 0 | M50: Integración con Office 365, Microsoft Exchange, IBM notes, novell GroupWise. Ipad, Ipod, Android, Blackberry. | N50: 0 | O50: Acceso desde cualquier navegador. Integración con Microsoft Outlook y redes sociales. Facilita un único punto de entrada para la integración con Microsoft Exchange. CRM social integrado con LinkedIn, Facebook y Twitter. Aplicación nativa para Iphone y dispositivos con Windows 8. | P50: 0 | Q50: Proporciona integración de soportes al back-office, desde productos a precios, cotizaciones y pedidos. Microsoft, google, redes sociales como Facebook y Twitter. | R50: 0 | S50: Integración con dispositivos (Iphone, Android, blackberry). Microsoft outlook, Excel, Word, Office 2013, Lotus notes, pagina web de la empresa, productos Oracle. | T50: 0 | U50: Integración con dispositivos (Iphone, Android, blackberry). Microsoft outlook, Excel, Word, Office 2013, Lotus notes, pagina web de la empresa, productos Oracle. Apoyo de otros proveedores y productos para ofrecer una integración óptima. | V50: 0
B51: KPI´s (Indicadores) | C51: x | D51: 5.555555556 | E51: x | F51: 5.555555556 | G51: x | H51: 5.555555556 | I51: x | J51: 5.555555556 | K51: x | L51: 5.555555556 | M51: x | N51: 5.555555556 | O51: x | P51: 5.555555556 | Q51: x | R51: 5.555555556 | S51: x | T51: 5.555555556 | U51: x | V51: 5.555555556
B52: Seguridad del software | C52: x | D52: 5.555555556 | E52: x | F52: 5.555555556 | G52: x | H52: 5.555555556 | I52: x | J52: 5.555555556 | K52: x | L52: 5.555555556 | M52: x | N52: 5.555555556 | O52: x | P52: 5.555555556 | Q52: x | R52: 5.555555556 | S52: x | T52: 5.555555556 | U52: x | V52: 5.555555556
B53: Acceso restringido | C53: x | D53: 5.555555556 | E53: x | F53: 5.555555556 | G53: x | H53: 5.555555556 | I53: x | J53: 5.555555556 | K53: x | L53: 5.555555556 | M53: x | N53: 5.555555556 | O53: x | P53: 5.555555556 | Q53: x | R53: 5.555555556 | S53: x | T53: 5.555555556 | U53: x | V53: 5.555555556
B54: Tipo de nube | C54: Se puede seleccionar el tipo de nube donde se quiere implementar el sistema CRM, ya sea en la nube pública o privada (incluyendo Amazon Elastic Compute Cloud, Windows Azure Services Platform, Rackspace Cloud, IBM SmartCloud Enterprise) | D54: 0 | E54: Privada o pública | F54: 0 | G54: No existe la opción de despliegue en una nube pública. | H54: 0 | I54: Pública y privada | J54: 0 | K54: Se encuentra alojado en Amazon en los EE.UU. | L54: 0 | M54: Plataforma de nube multi-tenant que consiste en (IaaS), (PaaS) y (SaaS). | N54: 0 | O54: Tiene tres modos de despliegue: adquisición de licencias (on premise), por suscripción (alquiler) y en la nube (online) | P54: 0 | Q54: En la nube del proveedor Sap | R54: 0 | S54: Nube pública Oracle. | T54: 0 | U54: Nube pública Oracle. | V54: 0
B55: Años en el mercado | C55: Año 2004 | D55: 0 | E55: Año 2006 | F55: 0 | G55: Año 1999 | H55: 0 | I55: Año 2000 | J55: 0 | K55: 2004 | L55: 0 | M55: Año 1999 | N55: 0 | O55: Año 1984 | P55: 0 | Q55: Empresa en funcionamiento desde 1972, pero la aplicación en la nube tiene sus inicios en el año 2006. | R55: 0 | S55: Año 2005 | T55: 0 | U55: En el año 2011 es adquirido por Oracle | V55: 0
B56: Países donde ofrece el servicio | C56: Abarca los cinco continentes y alrededor de 120 países, entre los que se pueden nombrar: Asia, Australia, Canadá, China, Europa, Alemania, India, Latino América, México, Medio Oriente, África, UK, USA, entre otros. | D56: 0 | E56: España, Portugal, Argentina, Venezuela, Chile, Colombia, México, Perú, Costa Rica, Ecuador, El Salvador, Honduras, Guatemala, Nicaragua, Puerto Rico, Panamá, Paraguay … Chile, Costa Rica, Ecuador, Bolivia Austria, entre otros. | F56: 0 | G56: Con sede principal en San Francisco y sedes regionales en Morges, Suiza (abarcando Europa, Oriente Medio y África, singapur), la India y Tokio. Otras oficinas principales se encuentran en Toronto, Chicago, Nueva York, Londres, Sydney, Dublín, Hyderabad, San Mateo, California, Hillsboro y Oregon. | H56: 0 | I56: 40 países - Alemania, Austria, Australia, Bélgica, Brasil, Canadá, Colombia, Costa Rica, Chile, Chipre, República Checa, Dinamarca, Estados Unidos, Finlandia, Francia, Grecia, Holanda, Hong Kong, Hungría, India, Irlanda, Israel, Italia, Japón, Luxemburgo, Malasia, México, Nueva Zelanda, noruega, Perú, Polonia, Portugal, Puerto Rico, Reino Unido, Rumanía, Singapur, Suecia, Suiza y Trinidad y Tobago. | J56: 0 | K56: No se encontró información. | L56: 0 | M56: Australia, República Checa, Alemania, Japón, Hong Kong, Singapur, USA, entre otros. | N56: 0 | O56: 70 países. Reino Unido e Irlanda, Europa continental, América del norte, África del Sur, Australia, Asia, Brasil, otros. | P56: 0 | Q56: Fuerte presencia en Latino América y oferta de servicio en más de 120 países a nivel mundial. | R56: 0 | S56: Alrededor de 127 paises. | T56: 0 | U56: Más de 140 países. | V56: 0
B57: País de procedencia | C57: Ubicada en Cupertino, California | D57: 0 | E57: Pleasanton, California, Chennai, India, sucursales: Austin, Nueva Jersey, Londres, Tokio y Beijing. | F57: 0 | G57: San Francisco, California | H57: 0 | I57: No cuenta con sede central. Lo que la dota de movilidad y oficinas en todo el mundo. | J57: 0 | K57: USA - India | L57: 0 | M57: Con un centro de datos primario ubicado en California y un centro de datos de copia de seguridad en Massachusetts. Estados Unidos. | N57: 0 | O57: Newcastle (Reino Unido). Tiene casi 21 sedes en España. | P57: 0 | Q57: Alemania | R57: 0 | S57: Estados Unidos. | T57: 0 | U57: Bozeman (Montana). - Ofrece servicio desde 5 centros de datos localizados en: Santa Clara, California (Savvis), Elk Grove, Illinois (Equinix), Londres, Inglaterra (IBM), Toronto, Canadá (Telus) y Sydney, Australia. | V57: 0
B58: Múltiples lenguajes | C58: Posee alrededor de 26 idiomas programados y más 80 disponibles en los paquetes de idiomas. | D58: 0 | E58: Alemán, turco, inglés, español, italiano, portugués, polaco, japones, francés, entre otros. | F58: 0 | G58: 16 idiomas - Chino, danés, inglés, alemán, español, francés, finlandes, japones, portugués, coreano, ruso, Thailandés, otros. | H58: 0 | I58: 41 idiomas - árabe, inglés, español, chino, tailandés, alemán, francés, danés, griego, húngaro, italiano, japonés, coreano, noruego, polaco, ruso, turco, otros. | J58: 0 | K58: Inglés, Francés, Dinamarqués, Italiano, Español, Danés, Chino, Portugués, Japonés, Rumano, Polaco, Turco, Hebreo, Griego, Húngaro, Ruso, español. | L58: 0 | M58: 14 idiomas | N58: 0 | O58: Gran variedad de idiomas: francés, alemán, español, italiano, portugués, holandés, chino, turco, entre otros. | P58: 0 | Q58: Disponible en casi todos los idiomas de los países donde ofrece el servicio. | R58: 0 | S58: Alrededor de 27 idiomas. | T58: 0 | U58: 33 lenguajes | V58: 0
B59: Múltiples capacidades de divisas | C59: x | D59: 5.555555556 | E59: x | F59: 5.555555556 | G59: x | H59: 5.555555556 | I59: x | J59: 5.555555556 | K59: x | L59: 5.555555556 | M59: x | N59: 5.555555556 | O59: x | P59: 5.555555556 | Q59: x | R59: 5.555555556 | S59: x | T59: 5.555555556 | U59: x | V59: 5.555555556
B60: Entrenamiento y capacitación | C60: Entrenamiento y capacitación por medio de foros, blogs, clases en vivo, clases virtuales, Sugar University, programa de certificación y base de conocimientos. | D60: 0 | E60: Acceso a documentación y material de entrenamiento en línea. Adicionalmente ofrece un programa de formación y clases virtuales. | F60: 0 | G60: Formación ilimitada en línea. | H60: 0 | I60: Videos, foros, comunidades, asistencia por módulos, libros electrónicos, kit de aprendizaje y adopción. | J60: 0 | K60: Educación y entrenamiento en vivo 24/5. Reportes, foros, base de conocimiento, blog. | L60: 0 | M60: Entrenamiento por catálogo, roles, usuarios finales, certificaciones, bases de conocimiento. | N60: 0 | O60: Formación online disponible 24/7. Atención telefónica. Apoyo por email. Blog. 3 sesiones de formación remota. | P60: 0 | Q60: Dispone de capacitación a través de cursos, master, blog, foros, clases virtuales, cursos online. | R60: 0 | S60: Aula. Clases virtuales. Autodidáctico CD-ROM. Formación On Demand . Entrenamiento desde el módulo de soporte Oracle 24/7. Entrenamiento por roles y puesto de trabajo. | T60: 0 | U60: Entrenamiento en línea a través de clases virtuales, universidad Oracle, chat, email, blog, entre otros. | V60: 0
B61: Soporte técnico | C61: El soporte técnico y de mantenimiento ofrece servicio personalizado y con garantía de ajustes. sin embargo, su sistema automático de actualización y su fácil interfaz reducen las barreras de adopción y los costes de formación. | D61: 0 | E61: Soporte remoto e inmediato 24/7. | F61: 0 | G61: Servicio ininterrumpido de asistencia gratuita 24/7. | H61: 0 | I61: Soporte técnico asistido, autoayuda. | J61: 0 | K61: Soporte 24/5 con compromiso del 99,9 % de resolución de casos. | L61: 0 | M61: Ofrece soporte inmediato a cualquier evento. | N61: 0 | O61: El soporte y la atención tendrán un coste adicional y unas condiciones dependiendo de la edición de CRM seleccionada. Atención telefónica (n° gratuito) con compromiso de respuesta inmediata. Asistencia <24. Asistencia por Email. Manuales online. Boletín técnico mensual. | P61: 0 | Q61: Soporte técnico 24/7. Ofrece servicio de mantenimiento y actualización. | R61: 0 | S61: Soporte técnico en línea - 24/7 acceso al porta de soporte de Oracle. Soporte telefónico gratuito. | T61: 0 | U61: Respuestas y soporte telefónico y en línea 24/7. | V61: 0
B62: Agenda, calendario, lista de actividades y eventos - colaboración instantánea, los comentarios en línea y las funciones de chat. | C62: Ofrece al equipo la posibilidad de compartir documentos, organizar eventos, reuniones, recordatorios y notificaciones mediante el uso de calendarios. Las notificaciones y avisos de pueden enviar de manera personalizada y grupal. | D62: 0 | E62: Permite Organizar y realizar un seguimiento de todas las tareas, eventos y convocatorias. Establecer recordatorios y crear actividades recurrentes. Calendario, libro de notas, hojas de calculo, entre otros. | F62: 0 | G62: Calendarios, e-mail, gestión de tareas y notas completamente integrado. | H62: 0 | I62: Calendario y lista de actividades | J62: 0 | K62: Calendario, actividades, eventos, integrados por email y télefono. | L62: 0 | M62: Calendario, notas y eventos en tiempo real. | N62: 0 | O62: Agenda de contactos, calendario, comunicados, listas de actividades. | P62: 0 | Q62: Calendario, notificaciones sobre las visitas, indicaciones para agendar una próxima visita y auto asignación de tareas y encuestas | R62: 0 | S62: Agenda, calendario, seguimiento de actividades, eventos, tareas, convocatorias, entre otras. | T62: 0 | U62: No se facilita información | V62: 0
B63: Chat en linea | C63: x | D63: 5.555555556 | E63: x | F63: 5.555555556 | G63: x | H63: 5.555555556 | I63: x | J63: 5.555555556 | K63: x | L63: 5.555555556 | M63: x | N63: 5.555555556 | O63: x | P63: 5.555555556 | Q63: x | R63: 5.555555556 | S63: x | T63: 5.555555556 | U63: x | V63: 5.555555556
B64: Escalabilidad | C64: Al ser de código abierto, permite a los cliente crear sus propias extensiones, además de extenderse sin la necesidad de amarrarse a las características nativas del sistema. | D64: 0 | E64: Permite la integración de la cuenta de CRM con otras aplicaciones para crear una solución de negocio totalmente escalable y personalizadas. | F64: 0 | G64: x | H64: 5.555555556 | I64: Totalmente escalable y ágil. | J64: 0 | K64: La herramienta promete escalabilidad, no solo por la posibilidad de código abierto, si no por su adaptabilidad al mercado y sus constantes actualizaciones. | L64: 0 | M64: Es una herramienta totalmente escalable y crece con la empresa. | N64: 0 | O64: Sage es muy escalable, ya que soporta y proporciona ganancias de eficiencia operativa en las áreas comerciales, de soporte, formación y de gestión de proyectos. | P64: 0 | Q64: Posee un programa de investigación y desarrollo trabajando continuamente para mantenerse escalable en el tiempo y crecer junto a la empresa. | R64: 0 | S64: Oracle diseña sistemas de ingeniería que proporcionan flexibilidad e integración a lo largo de toda la empresa. Es escalable en el tiempo y se adapta a los nuevos cambios de las organizaciones. | T64: 0 | U64: Oracle diseña sistemas de ingeniería que proporcionan flexibilidad e integración a lo largo de toda la empresa. Es escalable en el tiempo y se adapta a los nuevos cambios de las organizaciones. | V64: 0
B65: Tiempo de implementación | C65: Por ser una herramienta de código abierto, puede convertirse en una implementación lenta y de difícil adaptación. sin embargo, eso depende del equipo y el lider encargado de su implementación. | D65: 0 | E65: La implementación es rápida. La base HTML5 desde mac o linux permite iniciar las sesiones sin previa instalación | F65: 0 | G65: Implementación ágil y rápida. | H65: 0 | I65: Existen diversas versiones de implantación para que los clientes elijan la que más se adecue a su negocio y para que, si este cambia, se puedan variar de acuerdo al mismo. | J65: 0 | K65: La instalación se realiza por completo desde una interfaz web HTML / PHP. | L65: 0 | M65: La implementación se lleva a cabo a través de un equipo de expertos que colaborará con la implementación exitosa de la herramienta. | N65: 0 | O65: Es fácil de desplegar, instalar, gestionar, aprender y mantener para compañías que quieren poner foco en su negocio y no su software. | P65: 0 | Q65: Ofrece rápida implementación y funcionamiento. | R65: 0 | S65: Implementación rápida sin costos asociados a infraestructura. | T65: 0 | U65: Requiere una inversión de tiempo, planificación y dedicación para alcanzar los resultados esperados. | V65: 0
A66: Totales | B66: Total Funcionalidades Servicios | C66: =D66/100 -> 0.8888888889 | D66: =SUM(D35:D65) -> 88.88888889 | E66: =F66/100 -> 0.8888888889 | F66: =SUM(F35:F65) -> 88.88888889 | G66: =H66/100 -> 0.9444444444 | H66: =SUM(H35:H65) -> 94.44444444 | I66: =J66/100 -> 1 | J66: =SUM(J35:J65) -> 100 | K66: =L66/100 -> 0.8888888889 | L66: =SUM(L35:L65) -> 88.88888889 | M66: =N66/100 -> 0.8333333333 | N66: =SUM(N35:N65) -> 83.33333333 | O66: =P66/100 -> 0.9444444444 | P66: =SUM(P35:P65) -> 94.44444444 | Q66: =R66/100 -> 1 | R66: =SUM(R35:R65) -> 100 | S66: =T66/100 -> 1 | T66: =SUM(T35:T65) -> 100 | U66: =V66/100 -> 0.8333333333 | V66: =SUM(V35:V65) -> 83.33333333
A67: Tipo de empresa | B67: B2B | C67: x | E67: x | G67: x | I67: x | K67: x | M67: x | O67: x | Q67: x | S67: x | U67: x
B68: B2C | C68: x | E68: x | G68: x | I68: x | K68: x | M68: x | O68: x | Q68: x | S68: x | U68: x
B69: Microempresa | C69: x | E69: no | G69: no | I69: x | K69: x | M69: no | O69: no | Q69: no | S69: no | U69: no
B70: Pequeña | C70: x | E70: x | G70: x | I70: x | K70: x | M70: x | O70: x | Q70: x | S70: x | U70: x
B71: Mediana | C71: x | E71: x | G71: x | I71: x | K71: x | M71: x | O71: x | Q71: x | S71: x | U71: x
B72: Grande | C72: x | E72: no | G72: x | I72: no | K72: no | M72: x | O72: no | Q72: x | S72: x | U72: x
B73: Automoción | G73: x | S73: x
B74: Servicios | C74: x | I74: x | M74: x | O74: x
B75: Comercio | C75: x | G75: x | I75: x | S75: x
B76: Industria | C76: x | I76: x | M76: x | O76: x | S76: x | U76: x
B77: Turismo | U77: x
B78: Aseguradoras | C78: x | S78: x
B79: Institutos de investigación | S79: x
B80: Ingeniería
B81: Minoristas | C81: x | I81: x | U81: x
B82: Empresas informáticas
B83: Asociaciones y federaciones
B84: Auditoria y asesoramiento fiscal
B85: Bienes raíces | C85: x
B86: Consultoría empresarial
B87: sin fines de lucro | C87: x | I87: x | M87: x | U87: x
B88: Alimentación
B89: Medios de comunicación | C89: x | G89: x | M89: x
B90: Transporte y distribución | C90: x | O90: x
B91: Salud | C91: x | G91: x | M91: x | S91: x
B92: Gobierno y sector público | C92: x | G92: x | I92: x | U92: x
B93: Educativo | C93: x | M93: x | Q93: x
B94: Financiero | C94: x | G94: x | I94: x | M94: x | U94: x
B95: Tecnología | C95: x | E95: x | M95: x | Q95: x | S95: x | U95: x
B96: Telecomunicaciones | C96: x | E96: x | I96: x | M96: x | Q96: x | S96: x | U96: x
B97: Construcción
B98: Otros | E98: x | G98: x | I98: x | K98: x | M98: x | O98: x | Q98: x | S98: x
A99: Fortalezas y debilidades | B99: Fortalezas | C99: Tiene su fuerte en la gestión de campañas de marketing. Permite despliegue tanto en la nube como "on premise". Ofrece gestión de inventarios. Perfil para los empleados. Precio accesible, incluso con versión gratuita para. Lo apoya una respetable comunidad de seguidores y programadores. | E99: Gestión de productos. Gestión de proveedores, propuestas y facturas. Se integra con mas de 20 aplicaciones Zoho. La versión de prueba ofrece todas las funcionalidades del producto. | G99: La interfaz es sumamente intuitiva, proporcionando al usuario una experiencia única y satisfactoria. Solicita opiniones a la comunidad y mejora constantemente sus ediciones. Excelente integración con las redes sociales. Líder en el mercado. | I99: Automatización de fuerzas de ventas es su módulo más fuerte. Ofrece una experiencia de uso familiar. (Interfaz muy amigable y de fácil uso). Excelente integración con el escritorio. Red de socios fuerte. Sólida base tecnológica. | K99: Ofrece facilidad de descarga, implementación y uso. Tiene 20 módulos adaptables a las necesidades de la empresa. Gestión de inventarios. Gestión de proyectos. Se actualiza con frecuencia con nuevas características y correcciones de errores. Actualizaciones fuera de horario de oficina. | M99: Gestión de socios. Dota a los clientes de un portal de servicio personalizado e interactivo. Apuesta por la satisfacción y la retención de los clientes. Ofrece buenos niveles de acuerdos con los clientes. Ofrece apoyo a los departamentos a través de información en tiempo real, basado en roles. Mejora la colaboración entre socios a través del buen manejo de retención de clientes y campañas de marketing. Completa integración entre ventas y finanzas. Permite medir la efectividad de las campañas. | O99: Mide y evalúa de forma comparativa y en tiempo real la satisfacción del cliente. Las actualizaciones de las versiones ocurren de manera automática. La opción en la nube ofrece acceso inmediato. Ofrece autoservicio web. | Q99: Es una de las empresas más reconocidas a nivel mundial. Posee una amplia gama de productos que pueden ayudar a la escalabilidad e integración de la empresa. Es de fácil integración con otros productos. | S99: Empresa reconocida y respetada a nivel mundial. Se integra fácilmente con todas las aplicaciones ofrecidas por Oracle en el sector empresarial. Posee una fuerte herramienta de automatización de fuerzas de venta. Ofrece un nivel de seguridad superior a los otros proveedores. | U99: Ofrece excelente soporte al cliente. Ayuda a la empresa a disminuir costos a través de su excelente herramienta de autoservicio online.
B100: Oportunidades | C100: No es compatible con Windows ni con Mac. Resistencia al uso de CRM de código abierto. Algunos clientes reclaman una débil oferta en lo que respecta a los módulos de servicios y ventas. La puesta en práctica puede ser lenta y difícil de manejar | E100: Vaga integración entre los módulos. | G100: no permite el despliegue en nube pública o "on permise". La automatización de marketing requiere en ocasiones de la instalación de otras aplicaciones o productos de terceros. Tienen mejor orientación al B2B. EL producto es bastante genérico y no toma en cuenta consideraciones especiales. | I100: Por ser Marketing el módulo más débil, para obtener funcionalidades como: marketing digital, análisis de marketing provechosos, entre otros, en ocasiones se debe adquirir productor de terceros. | K100: La aplicación para dispositivos móviles está disponible a partir de $20 por dispositivos. | M100: Para enriquecer algunas de las aplicaciones las empresas deberán adquirir aplicaciones de terceros como: Aprimo, Eloqua, Marketo o Pardot. Sólo Pardot ofrece integración embalaje para NetSuite. Precio elevado en comparación con competidores. | O100: El soporte y la aténción tendrán un coste adicional y unas condiciones dependiendo de la edición de CRM seleccionada. | Q100: Tiene relativamente pocos años en el mercado. Entre las aplicaciones disponibles su fuerte son las sistemas ERP. | S100: Parece estar atrasada en las estrategias de integración con las redes sociales. no posee una fuerte herramienta de automatización de marketing y servicios. | U100: Es un sistema CRM desbalanceado, la aplicación ofrece una herramienta de automatización de fuerzas de venta débil en comparación con la fortaleza de servicio.
B101: Punto óptimo | C101: Si la empresa está buscando una herramienta flexible y de código abierto. Si la empresa está buscando una solución que se integre fácilmente a las redes sociales. Si el presupuesto de adopción es limitado. | E101: si tu empresa está buscando una implementación rápida y fácil. si tu empresa tiene un bajo pesupuesto de implementación. si la empresa está en la búsqueda de un gestor de proyectos. si la empresa busca una integración completa con plataformas en línea como Google. | G101: La empresa busca capacidades sociales estrechamente integradas. La atención del sistema se centrará en las ventas. La empresa se encuentra específicamente en uno de los sectores señalados como parte de la oferta. Los requerimientos no son inusuales y deseas llegar al mercado en corto tiempo. | I101: si la empresa está en la búsqueda de un software de automatización de fuerzas de ventas. si su empresa actualmente está utilizando los productos microsoft y office. Buscando el menor costo total de propiedad (TCO) de las soluciones de CRM no modificados. | K101: La empresa está buscando un CRM de fácil uso. El presupuesto de la empresa es ajustado. La empresa podría estar interesada en una opción de código abierto. | M101: Su punto fuerte es la pequeña y la mediana empresa. si la empresa busca soluciones más allá de CRM, que incluyan también recursos de contabilidad o sistemas ERP. Si la empresa es una organización con múltiples filiales y requiere de una solución en la nube segura y estable. | O101: si la empresa posee otros productos Sage como ERP. si la empresa busca una herramienta de rápida implementación. | Q101: si la empresa posee o está en planes de adquirir otros productos Sap. si la empresa no tiene un presupuesto ajustado para la obtención de un sistema CRM. | S101: Busca un CRM fuerte en la automatización de fuerzas de ventas. Si empresa posee otros productos Oracle. Su industria pertenece a algunos de los sectores seleccionados previamente. (También se adapta a otros sectores). | U101: Si la empresa está en la busqueda de una experiencia para el cliente. Si la empresa busca un buen apoyo de CRM social. Tu compañía pertenece a uno de los sectores identificados anteriormente.
B102: Busca soluciones alternativas si: | C102: Si la empresa requiere de funciones de conjuntos y de funcionalidades avanzadas en todos los módulos. | E102: si la empresa está en la búsqueda de un módulos de marketing y servicio fuerte. La empresa busca soluciones integrales. | G102: Los vendedores requieren de la toma de órdenes de ventas o acceso a la gestión de inventarios. La empresa busca un software para la planificación de recursos empresariales. Se requiere de un sistema CRM completamente integrado. si el presupuesto para la adopción es ajustado. | I102: Buscando enfocadas verticalmente, soluciones CRM específicas de la industria madura. La empresa utiliza sistemas operativos como: Oracle, Linux o Java / J2EE. | K102: La empresa busca una solución estándar con módulos pre diseñados. La empresa busca una solución que esté soportada por grandes corporaciones y socios. | M102: Si la empresa está en la búsqueda un CRM social. La empresa busca un centro de datos ubicado en su propio país. (no existen centros de datos en Europa) | O102: Si la empresa está buscando integración con sistemas heredados de otras compañías. Si la empresa tienen más de 250 empleados. | Q102: Si la empresa busca una solución económica y de fácil uso. Si la empresa tiene menos de 50 empleados. Si la empresa no posee expertos en productos Sap. | S102: Si la empresa está buscando una buena integración con las redes sociales. Si la empresa no posee otros productos Oracle. | U102: Si la empresa busca una herramienta fuerte de automatización de ventas y marketing.
B103: Especialidad | C103: Marketing | E103: Ventas | G103: Ventas | I103: Ventas | K103: Marketing, ventas y servicios | M103: Ventas y marketing | O103: Marketing, ventas y servicios | Q103: Marketing, ventas y servicios | S103: Ventas | U103: Servicio
A104: Precios y ediciones | B104: Versión gratuita | C104: x | E104: x | G104: no | I104: no | K104: x | M104: no | O104: no | Q104: no | S104: no | U104: no
B105: Tipo de pago | C105: Mensual o anual | E105: Mensual / anual con 20% de descuento | G105: Mensual o anual | I105: Mensual o anual | K105: Mensual | M105: Mensual | O105: Mensual | Q105: Mensual o anual | S105: Mensual o anual | U105: Mensual / Anual
B106: Versión de prueba | C106: x | E106: x | G106: x | I106: x | K106: x | M106: x | O106: x | Q106: x | S106: x | U106: x
B107: Costo Mensual - Entre 0 y 70 $ usuario/mes | C107: x | E107: x | G107: x | I107: x | K107: x | M107: no | O107: x | Q107: (-) | S107: no | U107: (-)
B108: Costo Mensual - Entre 0 y 100 $ usuario/mes | C108: x | E108: no | G108: x | I108: x | K108: no | M108: x | O108: no | Q108: (-) | S108: no | U108: (-)
B109: Costo Mensual - Entre 0 y 200 $ usuario/mes | C109: x | E109: no | G109: x | I109: x | K109: no | M109: x | O109: no | Q109: (-) | S109: x | U109: (-)
B110: Costo Mensual - Entre 0 y 350 $ usuario/mes | C110: no | E110: no | G110: x | I110: no | K110: no | M110: x | O110: no | Q110: x | S110: x | U110: x
B111: Características y Costo Anual | C111: Depende de la versión se ofrecen funcionalidades diferentes. | E111: Depende de la versión se ofrecen funcionalidades diferentes. | G111: Depende de la versión se ofrecen funcionalidades diferentes. | I111: Entre los $15 y los $65 dólares por usuario al mes. Según el tamaño de su empresa, así como las necesidades y personalizaciones deseadas, será recomendable una versión diferente. (Los precios y ediciones de los servicios varían según el país y el tipo de moneda con el que se efectúa el pago. | K111: Ofrece soporte y atención al cliente por un mismo precio. Generalmente se ofrece la opción de pago por tres años de servicio con precios especiales. | M111: Entra en un rango entre los $99 y los 129$ por usuario al mes. Basado en contratos anuales. El precio del sofware normalmente varía dependiendo de la edición o línea de producto seleccionada. Entra en un rango entre los $99 y los 129$ por usuario al mes. Basado en contratos anuales. | O111: Las características y funcionalidades variarán dependiendo de la edición seleccionada por la empresa. | Q111: Las características carían según la versión seleccionada. Sin embargo las información sobre las versiones no está disponible directamente en la página web del proveedor. | S111: Dependiendo de la edición seleccionada se entregan funcionalidades diversas. | U111: no se facilita información
A112: Versiones y precios por usuario/mes | B112: Edición 1 | C112: Versión Gratuita - Community Edition | E112: Versión Gratuita | G112: Contact Manager | I112: Essential | K112: Vtiger CRM - Open Source | M112: NetSuite no comunica públicamente los precios de sus productos, incluso tiene un contrato con sus clientes para que no se hagan públicos los precios. no hube respuesta a las solicitudes de ediciones disponibles. | O112: Sage CRM Essentials | Q112: Sap no comunica públicamente los precios de sus productos. | S112: Estándar edition | U112: Rightnow no comunica públicamente los precios de sus productos.
B113: Monto | C113: $0 | E113: $0 usuario/mes | G113: € 4 usuario/mes | I113: $15 usuario/mes - Varía según país | K113: Gratuita | O113: $29 usuario/mes | S113: $ 100 usuario / mes
B114: Funciones | C114: La versión gratuita o de código abierto, es una buena opción para que los desarrolladores. Esta versión requiere de instalación y configuración. Requiere PHP, un servidor web y una base de datos. Licencia Pública GNU Affero General. | E114: Gestión de clientes potenciales (Retención de clientes). Gestión de cuentas y contactos. Gestión de oportunidades de venta. CRM Social (Redes sociales). Web Forms. API para desarrolladores. Acceso Móvil. 5.000 registros. | G114: Incluye las siguientes funciones: Gestión de cuentas y contactos. Seguimiento de tareas, promociones y eventos. Integración de correo electrónico Outlook y Gmail. Acceso móvil. Biblioteca de contenido. Informes personalizables. Chatter: una red social empresarial (Chat Online). Gestión de contactos para un máximo de 5 usuarios. | I114: Varía según requisitos de la empresa. | K114: La mayoría de las funcionalidades son pagas Incluye: Integración con Google Contact/Cal. 20 CRM Modules. Acceso móvil. (La adquisición de la aplicación móvil requiere de una única inversión de $20 por dispositivo.) | O114: Sage CRM Essentials incluye: Gestión de contactos. Gestión de oportunidades. Previsiones de ventas. Gestión de presupuestos y pedidos. Gestión de clientes potenciales. | S114: Gestión de redes sociales. Cuadro de mandos. Gestión de previsión de ventas. Gestión de clientes potenciales. Catálogo Ventas. Acceso móvil. Gestión de territorio. Fusión con otros productos Oracle. Administración de cuotas.
B115: Edición 2 | C115: Sugar professional | E115: Standard | G115: Group | I115: Basic | K115: Vtiger CRM On Demand | O115: Sage CRM Professional | S115: Enterprise Edition
B116: Monto | C116: $35 usuario/mes | E116: $12 usuario/mes | G116: € 27 usuario/mes | I116: $30 usuario/mes - Varía según país | K116: $12 Usuario/mes | O116: $49 usuario/mes | S116: $ 140 usuario / mes
B117: Funciones | C117: Automatización y previsión de ventas. Automatización de marketing. Automatización de servicios La automatización del centro de llamadas Presentación de informes y cuadros de mando Aplicación SugarCRM móvil (Android y Apple) Nube o en las instalaciones de despliegue almacenamiento de 15 GB. Ilimitada formación y webcasts en línea de productos. Portal de soporte en línea conveniente. Gestión de casos de soporte ilimitado. Gestión de presupuestos y contratos. Gestión de equipos de trabajo. Suscripción anual mínimo es de $ 4,200 años incluyendo 10 licencias de usuario Adhiera a la versión Modelo Propietario software. Gestión integral del flujo de trabajo. | E117: Tiene todas las características de la edición gratuita más: Previsión de ventas. Informes y reportes. Cuadros de Mando. Biblioteca y gestión de documentos. Campañas de Marketing. Email Marketing. Personalización del producto. 100.000 registros. | G117: Todas las funciones de la edición Contact Manager más: Gestión de oportunidades. Puntuación, enrutamiento y asignación de candidatos. Seguimiento de correos electrónicos. Plantillas de correos e informes. | I117: Varía según requisitos de la empresa. | K117: La adquisición de la aplicación móvil requiere de una única inversión de $20 por dispositivo. La compra de 3 años de servicio incluye entrenamiento, apoyo, alojamiento y administración IT. Email Marketing. Plantillas De correo electrónico e Informes. Integración de facturación. Personalizaciones avanzadas. Google Contacto Integración / Cal. 20 módulos de CRM. Acceso Móvil ** Soporte por email y teléfono 24/5. Servicios de Administración. Actualizaciones automáticas bimensuales. Copias de seguridad automáticas. | O117: Todas las funciones de la edición Sage CRM Essentials, más: Gestión de incidencias. Base de conocimiento. Gestión de campañas. Gestión de llamadas salientes. | S117: Todas las funciones de la edición Standard, más: Campañas de ventas. Incentivos de compensación.
B118: Edición 3 | C118: Sugar enterprise | E118: Professional | G118: Professional | I118: Professional | K118: (-) | O118: Sage CRM On-Premise | S118: Premium Edition
B119: Monto | C119: $60 usuario/mes | E119: $20 usuario/mes | G119: € 70 usuario/mes | I119: $60 usuario/mes - Varía según país | K119: (-) | O119: Contactar cliente | S119: $ 200 usuario / mes
B120: Funciones | C120: Versión comercial desarrollada para satisfacer los requerimientos de la mayor parte de las empresas. Ofrece: Gestión de oportunidades. Previsión de ventas. Portal de autoservicio para los clientes. Flujos de actividad personalizados. La presentación de informes de SQL Native. Asistencia telefónica Opción de nube privada de almacenamiento de 60 GB. La suscripción anual mínima es de $ 7,200 al año, incluyendo 10 licencias de usuarios. | E120: Tiene todas las características de la versión Standard más: Gestiín e Integración de Email. Atención al cliente. Gestión de inventario. Seguridad basada en roles. Registros ilimitado. | G120: Todas las funciones de la edición Group más: Correo electrónico masivo. Campañas de marketing. Paneles personalizables. CRM completo para equipos de cualquier tamaño. | I120: Seguimiento de las redes sociales. Seguimiento de flujos de trabajo. Automatización de fuerzas de ventas. Automatización de servicio al cliente. Campañas de ventas. Informes y paneles personalizados. Integración mediante servicios web. Acceso a dispositivos móviles. | K120: (-) | O120: Esta solución no está en la nube | S120: Todas las funciones de la edición Enterprise, más: Base y gestión de contratos
B121: Edición 4 | C121: Sugar Utimate | E121: Enterprise | G121: Enterprise | I121: Enterprise | K121: (-) | O121: (-) | S121: (-)
B122: Monto | C122: $150 usuario/ mes | E122: $35 usuario/mes | G122: € 135 usuario/mes | I122: $200 usuario/mes - Varía según país | K122: (-) | O122: (-) | S122: (-)
B123: Funciones | C123: Solamente disponible en la nube. Soporte 24x7 Cloud privado incluido de almacenamiento de 250 GB | E123: Tiene todas las características de la versión Professional más: Gestión de territorios. Módulos personalizados. Posibilidad de varias divisas. Búsqueda avanzada. Integración con el centro de llamadas. Integración con el Help Desk. | G123: Todas las funciones de la edición Professional más: Automatización de flujos de trabajo. Integración mediante API de servicios web. Perfiles y formatos de página. Desarrollo de aplicaciones personalizadas. CRM personalizado para toda la empresa. | I123: Todas las funciones de la edición Professional más: Microsoft Dynamics Marketing. Gestión de casos. Gestión de marca. Gestión del conocimiento. Atención al cliente através de medios sociales. Chat en web. Centro de servicios centralizado. Acceso a personalizaciones y extensiones | K123: (-) | O123: (-) | S123: (-)
B124: Edición 5 | C124: (-) | D124: (-) | E124: (-) | G124: Performance | I124: Posibilidad de combinar funcionalidades | K124: (-) | O124: (-) | S124: (-)
B125: Monto | C125: (-) | E125: (-) | G125: € 315 usuario/mes | I125: (-) | K125: (-) | O125: (-) | S125: (-)
B126: Funciones | C126: (-) | E126: (-) | G126: Todas las funciones de la edición Enterprise más: Desarrollo ilimitado de aplicaciones personalizadas. Chat desde la página web para los clientes. CRM ampliado para acelerar el rendimiento. | I126: (-) | K126: (-) | O126: (-) | S126: (-)

Sheet Gráficas (hidden)
A1: 100 | B1: =SUM(C2:C4) -> 290.91 | D1: =SUM(E2:E4) -> 290 | F1: =SUM(G2:G4) -> 300 | H1: =SUM(I2:I4) -> 300 | J1: =SUM(K2:K4) -> 281.82 | L1: =SUM(M2:M4) -> 300 | N1: =SUM(O2:O4) -> 300 | P1: =SUM(Q2:Q4) -> 300 | R1: =SUM(S2:S4) -> 300 | T1: =SUM(U2:U4) -> 186.36
A2: Ventas | B2: =(C2*$A$1)/$B$1 -> 31.25021484 | C2: 90.91 | D2: =(E2*$A$1)/$D$1 -> 34.48275862 | E2: 100 | F2: =(G2*$A$1)/$F$1 -> 33.33333333 | G2: 100 | H2: =(I2*$A$1)/$H$1 -> 33.33333333 | I2: 100 | J2: =(K2*$A$1)/$J$1 -> 29.03271592 | K2: 81.82 | L2: =(M2*$A$1)/$L$1 -> 33.33333333 | M2: 100 | N2: =(O2*$A$1)/$N$1 -> 33.33333333 | O2: 100 | P2: =(Q2*$A$1)/$P$1 -> 33.33333333 | Q2: 100 | R2: =(S2*$A$1)/$R$1 -> 33.33333333 | S2: 100 | T2: =(U2*$A$1)/$T$1 -> 19.5106246 | U2: 36.36
A3: Marketing | B3: =(C3*$A$1)/$B$1 -> 34.37489258 | C3: 100 | D3: =(E3*$A$1)/$D$1 -> 31.03448276 | E3: 90 | F3: =(G3*$A$1)/$F$1 -> 33.33333333 | G3: 100 | H3: =(I3*$A$1)/$H$1 -> 33.33333333 | I3: 100 | J3: =(K3*$A$1)/$J$1 -> 35.48364204 | K3: 100 | L3: 33.33333333 | M3: 100 | N3: =(O3*$A$1)/$N$1 -> 33.33333333 | O3: 100 | P3: =(Q3*$A$1)/$P$1 -> 33.33333333 | Q3: 100 | R3: =(S3*$A$1)/$R$1 -> 33.33333333 | S3: 100 | T3: =(U3*$A$1)/$T$1 -> 26.8297918 | U3: 50
A4: Servicios | B4: 34.37489258 | C4: 100 | D4: 34.48275862 | E4: 100 | F4: 33.33333333 | G4: 100 | H4: 33.33333333 | I4: 100 | J4: 35.48364204 | K4: 100 | L4: 33.33333333 | M4: 100 | N4: 33.33333333 | O4: 100 | P4: 33.33333333 | Q4: 100 | R4: 33.33333333 | S4: 100 | T4: 53.6595836 | U4: 100
A5: Funcionalidades | B5: Sugar CRM | C5: Evaluación | D5: Zoho | E5: Evaluación | F5: SalesForce | G5: Evaluación | H5: Microsoft Dynamics | I5: Evaluación | J5: Vtiger | K5: Evaluación | L5: NetSuite | M5: Evaluación | N5: Sage | O5: Evaluación | P5: Sap | Q5: Evaluación | R5: Oracle On Demand | S5: Evaluación | T5: Right Now | U5: Evaluación
A6: Funcionalidades | B6: Sugar CRM | C6: Total | D6: Zoho | E6: Total | F6: SalesForce | H6: Microsoft Dynamics | I6: Total | J6: Vtiger | K6: Total | L6: NetSuite | M6: Total | N6: Sage | O6: Total | P6: Sap | Q6: Total | R6: Oracle On Demand | S6: Total | T6: Right now | U6: Total | V6: Módulo
A7: Página Web principal | B7: La página principal de Sugar CRM es de fácil uso, la información se encuentra distribuida de manera similar a la estructura física del software. Muestra información completa sobre funcionalidades, precios y ediciones del producto. | C7: 11 funcionalidades en el módulo de ventas | D7: La página principal de Zoho CRM es de fácil uso, la información se encuentra distribuida de manera similar a la estructura física del software. Muestra información completa sobre funcionalidades, precios y ediciones del producto. | F7: La página principal de SalceForce es de fácil uso. Muestra información completa sobre funcionalidades, precios y ediciones del producto. | H7: La página principal de Microsoft Dynamics es de fácil uso, y posee información clave. No muestra precios y ediciones del producto. | J7: La página principal de Vtiger es de fácil uso. Muestra información completa sobre funcionalidades, precios y ediciones del producto. | L7: La página principal de NetSuite es de fácil uso. No muestra información completa sobre funcionalidades, precios y ediciones del producto. | N7: La página principal de Sage es fácil de seguir y encontrar información | P7: La página principal de Sap tiene mucha información disponible, sin embargo no es de fácil manejo. No muestra información completa sobre precios y ediciones del producto, hay que ponerse en contacto con el proveedor. | R7: La página principal de Oracle tiene mucha información disponible. no muestra información completa sobre precios y ediciones del producto, se debe acceder a través de interacción con el cliente. | T7: La página principal de Oracle Rightnow posee mucha información, entregada de manera desordenada y poco manejable.No facilitan información de precios. | V7: Ventas
A8: Gestión de contactos | B8: x | C8: =IF(B8="x",100/11,0) -> 9.090909091 | D8: x | E8: =IF(D8="x",100/11,0) -> 9.090909091 | F8: x | G8: =IF(F8="x",100/11,0) -> 9.090909091 | H8: x | I8: =IF(H8="x",100/11,0) -> 9.090909091 | J8: x | K8: =IF(J8="x",100/11,0) -> 9.090909091 | L8: x | M8: =IF(L8="x",100/11,0) -> 9.090909091 | N8: x | O8: =IF(N8="x",100/11,0) -> 9.090909091 | P8: x | Q8: =IF(P8="x",100/11,0) -> 9.090909091 | R8: x | S8: 9.090909091 | T8: x | U8: 9.090909091
A9: Gestión de oportunidades | B9: x | C9: 9.090909091 | D9: x | E9: 9.090909091 | F9: x | G9: 9.090909091 | H9: x | I9: 9.090909091 | J9: x | K9: 9.090909091 | L9: x | M9: 9.090909091 | N9: x | O9: 9.090909091 | P9: x | Q9: 9.090909091 | R9: x | S9: 9.090909091 | T9: (+/-) | U9: 0
A10: Gestión de propuestas | B10: x | C10: 9.090909091 | D10: x | E10: 9.090909091 | F10: x | G10: 9.090909091 | H10: x | I10: 9.090909091 | J10: no | K10: 0 | L10: x | M10: 9.090909091 | N10: x | O10: 9.090909091 | P10: x | Q10: 9.090909091 | R10: x | S10: 9.090909091 | T10: No se facilita información | U10: 0
A11: Gestión de cuentas | B11: x | C11: 9.090909091 | D11: x | E11: 9.090909091 | F11: x | G11: 9.090909091 | H11: x | I11: 9.090909091 | J11: x | K11: 9.090909091 | L11: x | M11: 9.090909091 | N11: x | O11: 9.090909091 | P11: x | Q11: 9.090909091 | R11: x | S11: 9.090909091 | T11: x | U11: 9.090909091
A12: Gestión de comisiones | B12: no | C12: 0 | D12: x | E12: 9.090909091 | F12: x | G12: =IF(F12="x",100/11,0) -> 9.090909091 | H12: x | I12: 9.090909091 | J12: x | K12: 9.090909091 | L12: x | M12: 9.090909091 | N12: x | O12: 9.090909091 | P12: x | Q12: 9.090909091 | R12: x | S12: 9.090909091 | T12: No se facilita información | U12: 0
A13: Gestión de las cuotas de ventas | B13: x | C13: 9.090909091 | D13: x | E13: 9.090909091 | F13: x | G13: 9.090909091 | H13: x | I13: 9.090909091 | J13: no | K13: 0 | L13: x | M13: 9.090909091 | N13: x | O13: 9.090909091 | P13: x | Q13: 9.090909091 | R13: x | S13: 9.090909091 | T13: No se facilita información | U13: 0
A14: Gestión de documentos | B14: x | C14: 9.090909091 | D14: x | E14: 9.090909091 | F14: x | G14: 9.090909091 | H14: x | I14: 9.090909091 | J14: x | K14: 9.090909091 | L14: x | M14: 9.090909091 | N14: x | O14: 9.090909091 | P14: x | Q14: 9.090909091 | R14: x | S14: 9.090909091 | T14: No se facilita información | U14: 0
A15: Generación de ofertas | B15: x | C15: 9.090909091 | D15: x | E15: 9.090909091 | F15: x | G15: 9.090909091 | H15: x | I15: 9.090909091 | J15: x | K15: 9.090909091 | L15: x | M15: 9.090909091 | N15: x | O15: 9.090909091 | P15: x | Q15: 9.090909091 | R15: x | S15: 9.090909091 | T15: No se facilita información | U15: 0
A16: Seguimiento de pedidos | B16: x | C16: 9.090909091 | D16: x | E16: 9.090909091 | F16: x | G16: 9.090909091 | H16: x | I16: 9.090909091 | J16: x | K16: 9.090909091 | L16: x | M16: 9.090909091 | N16: x | O16: 9.090909091 | P16: x | Q16: 9.090909091 | R16: x | S16: 9.090909091 | T16: x | U16: 9.090909091
A17: Previsión de ventas | B17: x | C17: 9.090909091 | D17: x | E17: 9.090909091 | F17: x | G17: 9.090909091 | H17: x | I17: 9.090909091 | J17: x | K17: 9.090909091 | L17: x | M17: 9.090909091 | N17: x | O17: 9.090909091 | P17: x | Q17: 9.090909091 | R17: x | S17: 9.090909091 | T17: x | U17: 9.090909091
A18: Gestión de territorio | B18: x | C18: 9.090909091 | D18: x | E18: 9.090909091 | F18: x | G18: 9.090909091 | H18: x | I18: 9.090909091 | J18: x | K18: 9.090909091 | L18: x | M18: 9.090909091 | N18: x | O18: 9.090909091 | P18: x | Q18: 9.090909091 | R18: x | S18: 9.090909091 | T18: No se facilita información | U18: 0
A19: Otros Ventas | B19: Dentro del módulo de ventas también ofrece: Colaboración con expertos en tiempo real, información de contacto de los principales agregadores de negocio como D&B., emisión de facturas, otros. | C19: =SUM(C8:C18) -> 90.90909091 | D19: Seguimiento de historial de compras para identificación de oportunidades de ventas cruzadas y up-sell. | E19: =SUM(E8:E18) -> 100 | F19: Gestión de contratos. Gestión de socios | H19: (-) | J19: Gestión de equipos. Generación de tickets. | L19: Capacidad y manejo de ventas cruzadas y up-sell. | N19: Gestión de equipos. Optimización de ventas cruzadas. Gestión de productos. | P19: x | R19: Gestión de acuerdo. Gestión de facturación. Gestión de ventas cruzadas y up-selling . Gestión de socios. | T19: (-) | U19: 0
A20: Total Funcionalidades Ventas | B20: =C19/100 -> 0.9090909091 | D20: =E19/100 -> 1 | F20: =G20/100 -> 1 | G20: =SUM(G8:G18) -> 100 | H20: =I20/100 -> 1 | I20: =SUM(I8:I18) -> 100 | J20: =K20/100 -> 0.8181818182 | K20: =SUM(K8:K18) -> 81.81818182 | L20: =M20/100 -> 1 | M20: =SUM(M8:M18) -> 100 | N20: =O20/100 -> 1 | O20: =SUM(O8:O18) -> 100 | P20: =Q20/100 -> 1 | Q20: =SUM(Q8:Q18) -> 100 | R20: =S20/100 -> 1 | S20: =SUM(S8:S18) -> 100 | T20: =U20/100 -> 0.3636363636 | U20: =SUM(U8:U19) -> 36.36363636 | V20: Totales
A21: Campañas de marketing | B21: x | C21: =IF(B21="x",100/10,0) -> 10 | D21: x | E21: =IF(D21="x",100/10,0) -> 10 | F21: x | G21: =IF(F21="x",100/10,0) -> 10 | H21: x | I21: =IF(H21="x",100/10,0) -> 10 | J21: x | K21: =IF(J21="x",100/10,0) -> 10 | L21: x | M21: =IF(L21="x",100/10,0) -> 10 | N21: x | O21: =IF(N21="x",100/10,0) -> 10 | P21: x | Q21: =IF(P21="x",100/10,0) -> 10 | R21: x | S21: =IF(R21="x",100/10,0) -> 10 | T21: x | U21: =IF(T21="x",100/10,0) -> 10 | V21: Marketing
A22: Plantillas | B22: x | C22: =IF(B22="x",100/10,0) -> 10 | D22: x | E22: =IF(D22="x",100/10,0) -> 10 | F22: x | G22: 10 | H22: x | I22: =IF(H22="x",100/10,0) -> 10 | J22: x | K22: 10 | L22: x | M22: =IF(L22="x",100/10,0) -> 10 | N22: x | O22: =IF(N22="x",100/10,0) -> 10 | P22: x | Q22: =IF(P22="x",100/10,0) -> 10 | R22: x | S22: 10 | T22: x | U22: 10
A23: Monitoreo de ROI | B23: x | C23: 10 | D23: x | E23: 10 | F23: x | G23: 10 | H23: x | I23: 10 | J23: x | K23: 10 | L23: x | M23: 10 | N23: x | O23: 10 | P23: x | Q23: 10 | R23: x | S23: 10 | T23: No se facilita información | U23: 0
A24: Creación de listas | B24: x | C24: 10 | D24: x | E24: 10 | F24: x | G24: 10 | H24: x | I24: 10 | J24: x | K24: 10 | L24: x | M24: 10 | N24: x | O24: 10 | P24: x | Q24: 10 | R24: x | S24: 10 | T24: No se facilita información | U24: 0
A25: Realice el seguimiento de la información de marketing | B25: x | C25: 10 | D25: x | E25: 10 | F25: x | G25: 10 | H25: x | I25: 10 | J25: x | K25: 10 | L25: x | M25: 10 | N25: x | O25: 10 | P25: x | Q25: 10 | R25: x | S25: 10 | T25: No se facilita información | U25: 0
A26: Seguimiento del flujo de trabajo | B26: x | C26: 10 | D26: x | E26: 10 | F26: x | G26: 10 | H26: x | I26: 10 | J26: x | K26: 10 | L26: x | M26: 10 | N26: x | O26: 10 | P26: x | Q26: 10 | R26: x | S26: 10 | T26: No se facilita información | U26: 0
A27: Gestión de promociones y eventos | B27: x | C27: 10 | D27: x | E27: 10 | F27: x | G27: 10 | H27: x | I27: 10 | J27: x | K27: 10 | L27: x | M27: 10 | N27: x | O27: 10 | P27: x | Q27: 10 | R27: x | S27: 10 | T27: x | U27: 10
A28: Programas de retención | B28: x | C28: 10 | D28: x | E28: 10 | F28: x | G28: 10 | H28: x | I28: 10 | J28: x | K28: 10 | L28: x | M28: 10 | N28: x | O28: 10 | P28: x | Q28: 10 | R28: x | S28: 10 | T28: x | U28: 10
A29: Email marketing | B29: x | C29: 10 | D29: x | E29: 10 | F29: x | G29: 10 | H29: x | I29: 10 | J29: x | K29: 10 | L29: x | M29: 10 | N29: x | O29: 10 | P29: x | Q29: 10 | R29: x | S29: 10 | T29: x | U29: 10
A30: Capacidad de vincular las ventas con los esfuerzos de marketing. | B30: x | C30: 10 | D30: Con algunas dificultades | E30: 0 | F30: x | G30: 10 | H30: x | I30: 10 | J30: x | K30: 10 | L30: x | M30: 10 | N30: x | O30: 10 | P30: x | Q30: 10 | R30: x | S30: 10 | T30: No se facilita información | U30: 0
A31: Total Funcionalidades Marketing | B31: =C31/100 -> 1 | C31: =SUM(C21:C30) -> 100 | D31: =E31/100 -> 0.9 | E31: =SUM(E21:E30) -> 90 | F31: =G31/100 -> 1 | G31: =SUM(G21:G30) -> 100 | H31: =I31/100 -> 1 | I31: =SUM(I21:I30) -> 100 | J31: =K31/100 -> 1 | K31: =SUM(K21:K30) -> 100 | L31: =M31/100 -> 1 | M31: =SUM(M21:M30) -> 100 | N31: =O31/100 -> 1 | O31: =SUM(O21:O30) -> 100 | P31: =Q31/100 -> 1 | Q31: =SUM(Q21:Q30) -> 100 | R31: =S31/100 -> 1 | S31: =SUM(S21:S30) -> 100 | T31: =U31/100 -> 0.5 | U31: =SUM(U21:U30) -> 50 | V31: Totales
A32: Gestión de casos | B32: x | C32: =IF(B32="x",100/6,0) -> 16.66666667 | D32: x | E32: =IF(D32="x",100/6,0) -> 16.66666667 | F32: x | G32: =IF(F32="x",100/6,0) -> 16.66666667 | H32: x | I32: =IF(H32="x",100/6,0) -> 16.66666667 | J32: x | K32: =IF(J32="x",100/6,0) -> 16.66666667 | L32: x | M32: =IF(L32="x",100/6,0) -> 16.66666667 | N32: x | O32: =IF(N32="x",100/6,0) -> 16.66666667 | P32: x | Q32: =IF(P32="x",100/6,0) -> 16.66666667 | R32: x | S32: =IF(R32="x",100/6,0) -> 16.66666667 | T32: x | U32: =IF(T32="x",100/6,0) -> 16.66666667 | V32: Servicio
A33: Vista completa de información de clientes | B33: x | C33: =IF(B33="x",100/6,0) -> 16.66666667 | D33: x | E33: 16.66666667 | F33: x | G33: =IF(F33="x",100/6,0) -> 16.66666667 | H33: x | I33: 16.66666667 | J33: x | K33: =IF(J33="x",100/6,0) -> 16.66666667 | L33: x | M33: =IF(L33="x",100/6,0) -> 16.66666667 | N33: x | O33: =IF(N33="x",100/6,0) -> 16.66666667 | P33: x | Q33: =IF(P33="x",100/6,0) -> 16.66666667 | R33: x | S33: 16.66666667 | T33: x | U33: 16.66666667
A34: Gestión de correos electrónicos (Email-marketing, plantillas, respuestas automáticas, otros) | B34: x | C34: 16.66666667 | D34: x | E34: 16.66666667 | F34: x | G34: 16.66666667 | H34: x | I34: 16.66666667 | J34: x | K34: 16.66666667 | L34: x | M34: 16.66666667 | N34: x | O34: 16.66666667 | P34: x | Q34: 16.66666667 | R34: x | S34: 16.66666667 | T34: x | U34: 16.66666667
A35: Base de datos de conocimiento donde se pueden realizar búsquedas | B35: x | C35: 16.66666667 | D35: x | E35: 16.66666667 | F35: x | G35: 16.66666667 | H35: x | I35: 16.66666667 | J35: x | K35: 16.66666667 | L35: x | M35: 16.66666667 | N35: x | O35: 16.66666667 | P35: x | Q35: 16.66666667 | R35: x | S35: 16.66666667 | T35: x | U35: 16.66666667
A36: Servicio de atención al cliente (Call/Centro de contacto) | B36: x | C36: 16.66666667 | D36: x | E36: 16.66666667 | F36: x | G36: 16.66666667 | H36: x | I36: 16.66666667 | J36: x | K36: 16.66666667 | L36: x | M36: 16.66666667 | N36: x | O36: 16.66666667 | P36: x | Q36: 16.66666667 | R36: x | S36: 16.66666667 | T36: x | U36: 16.66666667
A37: Servicio de soporte / Help desk | B37: x | C37: 16.66666667 | D37: x | E37: 16.66666667 | F37: x | G37: 16.66666667 | H37: x | I37: 16.66666667 | J37: x | K37: 16.66666667 | L37: x | M37: 16.66666667 | N37: x | O37: 16.66666667 | P37: x | Q37: 16.66666667 | R37: x | S37: 16.66666667 | T37: x | U37: 16.66666667
A38: Total Funcionalidades Servicios | B38: =C38/100 -> 1 | C38: =SUM(C32:C37) -> 100 | D38: =E38/100 -> 1 | E38: =SUM(E32:E37) -> 100 | F38: =G38/100 -> 1 | G38: =SUM(G32:G37) -> 100 | H38: =I38/100 -> 1 | I38: =SUM(I32:I37) -> 100 | J38: =K38/100 -> 1 | K38: =SUM(K32:K37) -> 100 | L38: =M38/100 -> 1 | M38: =SUM(M32:M37) -> 100 | N38: =O38/100 -> 1 | O38: =SUM(O32:O37) -> 100 | P38: =Q38/100 -> 1 | Q38: =SUM(Q32:Q37) -> 100 | R38: =S38/100 -> 1 | S38: =SUM(S32:S37) -> 100 | T38: =U38/100 -> 1 | U38: =SUM(U32:U37) -> 100 | V38: Totales
A39: Interfaz intuitiva | B39: x | C39: =IF(B39="x",100/18,0) -> 5.555555556 | D39: x | E39: =IF(D39="x",100/18,0) -> 5.555555556 | F39: x | G39: =IF(F39="x",100/18,0) -> 5.555555556 | H39: x | I39: =IF(H39="x",100/18,0) -> 5.555555556 | J39: x | K39: =IF(J39="x",100/18,0) -> 5.555555556 | L39: x | M39: =IF(L39="x",100/18,0) -> 5.555555556 | N39: x | O39: =IF(N39="x",100/18,0) -> 5.555555556 | P39: x | Q39: =IF(P39="x",100/18,0) -> 5.555555556 | R39: x | S39: =IF(R39="x",100/18,0) -> 5.555555556 | T39: no | U39: =IF(T39="x",100/18,0) -> 0
A40: Múltiples canales de comunicación | B40: x | C40: =IF(B40="x",100/18,0) -> 5.555555556 | D40: x | E40: =IF(D40="x",100/18,0) -> 5.555555556 | F40: x | G40: =IF(F40="x",100/18,0) -> 5.555555556 | H40: x | I40: =IF(H40="x",100/18,0) -> 5.555555556 | J40: x | K40: =IF(J40="x",100/18,0) -> 5.555555556 | L40: x | M40: =IF(L40="x",100/18,0) -> 5.555555556 | N40: x | O40: =IF(N40="x",100/18,0) -> 5.555555556 | P40: x | Q40: =IF(P40="x",100/18,0) -> 5.555555556 | R40: x | S40: =IF(R40="x",100/18,0) -> 5.555555556 | T40: x | U40: =IF(T40="x",100/18,0) -> 5.555555556
A41: Personalización | B41: x | C41: 5.555555556 | D41: x | E41: 5.555555556 | F41: x | G41: 5.555555556 | H41: x | I41: 5.555555556 | J41: x | K41: 5.555555556 | L41: x | M41: 5.555555556 | N41: x | O41: 5.555555556 | P41: x | Q41: 5.555555556 | R41: x | S41: 5.555555556 | T41: x | U41: 5.555555556
A42: Cuadro de mandos / Tablero de instrumentos | B42: x | C42: 5.555555556 | D42: x | E42: 5.555555556 | F42: x | G42: 5.555555556 | H42: x | I42: 5.555555556 | J42: x | K42: 5.555555556 | L42: x | M42: 5.555555556 | N42: x | O42: 5.555555556 | P42: x | Q42: 5.555555556 | R42: x | S42: 5.555555556 | T42: x | U42: 5.555555556
A43: Seguimiento de redes sociales | B43: x | C43: 5.555555556 | D43: x | E43: 5.555555556 | F43: x | G43: 5.555555556 | H43: x | I43: 5.555555556 | J43: x | K43: 5.555555556 | L43: NetSuite sigue encontrando su camino con las herramientas de medios sociales. Hasta ahora la estrategia social de la empresa ha sido integrar con terceros. | M43: 0 | N43: x | O43: 5.555555556 | P43: x | Q43: 5.555555556 | R43: x | S43: 5.555555556 | T43: x | U43: 5.555555556
A44: Código abierto | B44: si | C44: 0 | D44: no | E44: 0 | F44: no | G44: 0 | H44: no | I44: 0 | J44: si | K44: 0 | L44: no | M44: 0 | N44: no | O44: 0 | P44: no | Q44: 0 | R44: no | S44: 0 | T44: no | U44: 0
A45: sincronización de datos | B45: x | C45: 5.555555556 | D45: x | E45: 5.555555556 | F45: x | G45: 5.555555556 | H45: x | I45: 5.555555556 | J45: x | K45: 5.555555556 | L45: x | M45: 5.555555556 | N45: x | O45: 5.555555556 | P45: x | Q45: 5.555555556 | R45: x | S45: 5.555555556 | T45: x | U45: 5.555555556
A46: Integración con los sistemas heredados | B46: x | C46: 5.555555556 | D46: x | E46: 5.555555556 | F46: x | G46: 5.555555556 | H46: x | I46: 5.555555556 | J46: No se encontró información. | K46: 0 | L46: x | M46: 5.555555556 | N46: x | O46: 5.555555556 | P46: x | Q46: 5.555555556 | R46: x | S46: 5.555555556 | T46: x | U46: 5.555555556
A47: Integración con otros | B47: Integración de correo electrónico: Microsoft outlook, Gmail, word, excel, Exchange Server, IBM Lotus notes, Yahoo! Mail y servidores de correo basados en IMAP. Integración con aplicaciones de Google: (Google Docs, Google Calendar, Google Apps, Google Contacts y Box.com). Integración con aplicaciones externas como: Hoovers, Jigsaw, Cisco WebEx,Yahoo!, Gmail, iCal, y redes sociales como Facebook, Twitter y Linkedin. | C47: 0 | D47: Integración con la web de la empresa. Soporta todos los sistemas operativos: Windows, mac, linux, etc. Permite y facilita la sincronización e importación de la información de otros programas CRM. Posibilidad de integrarse con Outlook, office o google apps. Aplicaciones hermanas elaboradas por Zoho para complementarse entre ellas y permitir una gran red de operaciones, gestión y administración de cualquier ámbito. Completa integración con Google Apps, correos, tareas, eventos, etc. | E47: 0 | F47: Integración con productos Microsoft. Integración con: Gmail, Google Calendar, Google Talk, Google Docs, Google sites, Facebook, twitter y linkedin (Social media). | G47: 0 | H47: No se integra fácilmente con terceros, por lo que si se quieren adquirir otros productos de otros proveedores se debe evaluar previamente. | I47: 0 | J47: Integración con Outlook, google apps, office, exchange, mozilla, thunderbird, entre otros. | K47: 0 | L47: Integración con Office 365, Microsoft Exchange, IBM notes, novell GroupWise. Ipad, Ipod, Android, Blackberry. | M47: 0 | N47: Acceso desde cualquier navegador. Integración con Microsoft Outlook y redes sociales. Facilita un único punto de entrada para la integración con Microsoft Exchange. CRM social integrado con LinkedIn, Facebook y Twitter. Aplicación nativa para Iphone y dispositivos con Windows 8. | O47: 0 | P47: Proporciona integración de soportes al back-office, desde productos a precios, cotizaciones y pedidos. Microsoft, google, redes sociales como Facebook y Twitter. | Q47: 0 | R47: Integración con dispositivos (Iphone, Android, blackberry). Microsoft outlook, Excel, Word, Office 2013, Lotus notes, pagina web de la empresa, productos Oracle. | S47: 0 | T47: Integración con dispositivos (Iphone, Android, blackberry). Microsoft outlook, Excel, Word, Office 2013, Lotus notes, pagina web de la empresa, productos Oracle. Apoyo de otros proveedores y productos para ofrecer una integración óptima. | U47: 0
A48: KPI´s (Indicadores) | B48: x | C48: 5.555555556 | D48: x | E48: 5.555555556 | F48: x | G48: 5.555555556 | H48: x | I48: 5.555555556 | J48: x | K48: 5.555555556 | L48: x | M48: 5.555555556 | N48: x | O48: 5.555555556 | P48: x | Q48: 5.555555556 | R48: x | S48: 5.555555556 | T48: x | U48: 5.555555556
A49: Seguridad del software | B49: x | C49: 5.555555556 | D49: x | E49: 5.555555556 | F49: x | G49: 5.555555556 | H49: x | I49: 5.555555556 | J49: x | K49: 5.555555556 | L49: x | M49: 5.555555556 | N49: x | O49: 5.555555556 | P49: x | Q49: 5.555555556 | R49: x | S49: 5.555555556 | T49: x | U49: 5.555555556
A50: Acceso restringido | B50: x | C50: 5.555555556 | D50: x | E50: 5.555555556 | F50: x | G50: 5.555555556 | H50: x | I50: 5.555555556 | J50: x | K50: 5.555555556 | L50: x | M50: 5.555555556 | N50: x | O50: 5.555555556 | P50: x | Q50: 5.555555556 | R50: x | S50: 5.555555556 | T50: x | U50: 5.555555556
A51: Informes y reportes | B51: x | C51: 5.555555556 | D51: x | E51: 5.555555556 | F51: x | G51: 5.555555556 | H51: x | I51: 5.555555556 | J51: x | K51: 5.555555556 | L51: x | M51: 5.555555556 | N51: x | O51: 5.555555556 | P51: x | Q51: 5.555555556 | R51: x | S51: 5.555555556 | T51: x | U51: 5.555555556
A52: Movilidad | B52: x | C52: 5.555555556 | D52: x | E52: 5.555555556 | F52: x | G52: 5.555555556 | H52: x | I52: 5.555555556 | J52: x | K52: 5.555555556 | L52: x | M52: 5.555555556 | N52: x | O52: 5.555555556 | P52: x | Q52: 5.555555556 | R52: x | S52: 5.555555556 | T52: x | U52: 5.555555556
A53: Tipo de nube | B53: Se puede seleccionar el tipo de nube donde se quiere implementar el sistema CRM, ya sea en la nube pública o privada (incluyendo Amazon Elastic Compute Cloud, Windows Azure Services Platform, Rackspace Cloud, IBM SmartCloud Enterprise) | C53: 0 | D53: Privada o pública | E53: 0 | F53: No existe la opción de despliegue en una nube pública. | G53: 0 | H53: Pública y privada | I53: 0 | J53: Se encuentra alojado en Amazon en los EE.UU. | K53: 0 | L53: Plataforma de nube multi-tenant que consiste en (IaaS), (PaaS) y (SaaS). | M53: 0 | N53: Tiene tres modos de despliegue: adquisición de licencias (on premise), por suscripción (alquiler) y en la nube (online) | O53: 0 | P53: En la nube del proveedor Sap | Q53: 0 | R53: Nube pública Oracle. | S53: 0 | T53: Nube pública Oracle. | U53: 0
A54: Aplicación móvil | B54: x | C54: 5.555555556 | D54: x | E54: 5.555555556 | F54: x | G54: 5.555555556 | H54: x | I54: 5.555555556 | J54: x | K54: 5.555555556 | L54: x | M54: 5.555555556 | N54: x | O54: 5.555555556 | P54: x | Q54: 5.555555556 | R54: x | S54: 5.555555556 | T54: x | U54: 5.555555556
A55: .CSV | B55: x | C55: 5.555555556 | D55: x | E55: 5.555555556 | F55: x | G55: 5.555555556 | H55: x | I55: 5.555555556 | J55: x | K55: 5.555555556 | L55: x | M55: 5.555555556 | N55: x | O55: 5.555555556 | P55: x | Q55: 5.555555556 | R55: x | S55: 5.555555556 | T55: x | U55: 5.555555556
A56: .TxT | B56: no | C56: 0 | D56: no | E56: 0 | F56: no | G56: 0 | H56: x | I56: 5.555555556 | J56: no | K56: 0 | L56: no | M56: 0 | N56: no | O56: 0 | P56: x | Q56: 5.555555556 | R56: x | S56: 5.555555556 | T56: no | U56: 0
A57: .xLS | B57: no | C57: 0 | D57: no | E57: 0 | F57: no | G57: 0 | H57: x | I57: 5.555555556 | J57: x | K57: 5.555555556 | L57: no | M57: 0 | N57: x | O57: 5.555555556 | P57: x | Q57: 5.555555556 | R57: x | S57: 5.555555556 | T57: no | U57: 0
A58: Años en el mercado | B58: Año 2004 | C58: 0 | D58: Año 2006 | E58: 0 | F58: Año 1999 | G58: 0 | H58: Año 2000 | I58: 0 | J58: 2004 | K58: 0 | L58: Año 1999 | M58: 0 | N58: Año 1984 | O58: 0 | P58: Empresa en funcionamiento desde 1972, pero la aplicación en la nube tiene sus inicios en el año 2006. | Q58: 0 | R58: Año 2005 | S58: 0 | T58: En el año 2011 es adquirido por Oracle | U58: 0
A59: Países donde ofrece el servicio | B59: Abarca los cinco continentes y alrededor de 120 países, entre los que se pueden nombrar: Asia, Australia, Canadá, China, Europa, Alemania, India, Latino América, México, Medio Oriente, África, UK, USA, entre otros. | C59: 0 | D59: España, Portugal, Argentina, Venezuela, Chile, Colombia, México, Perú, Costa Rica, Ecuador, El Salvador, Honduras, Guatemala, Nicaragua, Puerto Rico, Panamá, Paraguay … Chile, Costa Rica, Ecuador, Bolivia Austria, entre otros. | E59: 0 | F59: Con sede principal en San Francisco y sedes regionales en Morges, Suiza (abarcando Europa, Oriente Medio y África, singapur), la India y Tokio. Otras oficinas principales se encuentran en Toronto, Chicago, Nueva York, Londres, Sydney, Dublín, Hyderabad, San Mateo, California, Hillsboro y Oregon. | G59: 0 | H59: 40 países - Alemania, Austria, Australia, Bélgica, Brasil, Canadá, Colombia, Costa Rica, Chile, Chipre, República Checa, Dinamarca, Estados Unidos, Finlandia, Francia, Grecia, Holanda, Hong Kong, Hungría, India, Irlanda, Israel, Italia, Japón, Luxemburgo, Malasia, México, Nueva Zelanda, noruega, Perú, Polonia, Portugal, Puerto Rico, Reino Unido, Rumanía, Singapur, Suecia, Suiza y Trinidad y Tobago. | I59: 0 | J59: No se encontró información. | K59: 0 | L59: Australia, República Checa, Alemania, Japón, Hong Kong, Singapur, USA, entre otros. | M59: 0 | N59: 70 países. Reino Unido e Irlanda, Europa continental, América del norte, África del Sur, Australia, Asia, Brasil, otros. | O59: 0 | P59: Fuerte presencia en Latino América y oferta de servicio en más de 120 países a nivel mundial. | Q59: 0 | R59: Alrededor de 127 paises. | S59: 0 | T59: Más de 140 países. | U59: 0
A60: País de procedencia | B60: Ubicada en Cupertino, California | C60: 0 | D60: Pleasanton, California, Chennai, India, sucursales: Austin, Nueva Jersey, Londres, Tokio y Beijing. | E60: 0 | F60: San Francisco, California | G60: 0 | H60: No cuenta con sede central. Lo que la dota de movilidad y oficinas en todo el mundo. | I60: 0 | J60: USA - India | K60: 0 | L60: Con un centro de datos primario ubicado en California y un centro de datos de copia de seguridad en Massachusetts. Estados Unidos. | M60: 0 | N60: Newcastle (Reino Unido). Tiene casi 21 sedes en España. | O60: 0 | P60: Alemania | Q60: 0 | R60: Estados Unidos. | S60: 0 | T60: Bozeman (Montana). - Ofrece servicio desde 5 centros de datos localizados en: Santa Clara, California (Savvis), Elk Grove, Illinois (Equinix), Londres, Inglaterra (IBM), Toronto, Canadá (Telus) y Sydney, Australia. | U60: 0
A61: Múltiples lenguajes | B61: Posee alrededor de 26 idiomas programados y más 80 disponibles en los paquetes de idiomas. | C61: 0 | D61: Alemán, turco, inglés, español, italiano, portugués, polaco, japones, francés, entre otros. | E61: 0 | F61: 16 idiomas - Chino, danés, inglés, alemán, español, francés, finlandes, japones, portugués, coreano, ruso, Thailandés, otros. | G61: 0 | H61: 41 idiomas - árabe, inglés, español, chino, tailandés, alemán, francés, danés, griego, húngaro, italiano, japonés, coreano, noruego, polaco, ruso, turco, otros. | I61: 0 | J61: Inglés, Francés, Dinamarqués, Italiano, Español, Danés, Chino, Portugués, Japonés, Rumano, Polaco, Turco, Hebreo, Griego, Húngaro, Ruso, español. | K61: 0 | L61: 14 idiomas | M61: 0 | N61: Gran variedad de idiomas: francés, alemán, español, italiano, portugués, holandés, chino, turco, entre otros. | O61: 0 | P61: Disponible en casi todos los idiomas de los países donde ofrece el servicio. | Q61: 0 | R61: Alrededor de 27 idiomas. | S61: 0 | T61: 33 lenguajes | U61: 0
A62: Múltiples capacidades de divisas | B62: x | C62: 5.555555556 | D62: x | E62: 5.555555556 | F62: x | G62: 5.555555556 | H62: x | I62: 5.555555556 | J62: x | K62: 5.555555556 | L62: x | M62: 5.555555556 | N62: x | O62: 5.555555556 | P62: x | Q62: 5.555555556 | R62: x | S62: 5.555555556 | T62: x | U62: 5.555555556
A63: Entrenamiento y capacitación | B63: Entrenamiento y capacitación por medio de foros, blogs, clases en vivo, clases virtuales, Sugar University, programa de certificación y base de conocimientos. | C63: 0 | D63: Acceso a documentación y material de entrenamiento en línea. Adicionalmente ofrece un programa de formación y clases virtuales. | E63: 0 | F63: Formación ilimitada en línea. | G63: 0 | H63: Videos, foros, comunidades, asistencia por módulos, libros electrónicos, kit de aprendizaje y adopción. | I63: 0 | J63: Educación y entrenamiento en vivo 24/5. Reportes, foros, base de conocimiento, blog. | K63: 0 | L63: Entrenamiento por catálogo, roles, usuarios finales, certificaciones, bases de conocimiento. | M63: 0 | N63: Formación online disponible 24/7. Atención telefónica. Apoyo por email. Blog. 3 sesiones de formación remota. | O63: 0 | P63: Dispone de capacitación a través de cursos, master, blog, foros, clases virtuales, cursos online. | Q63: 0 | R63: Aula. Clases virtuales. Autodidáctico CD-ROM. Formación On Demand . Entrenamiento desde el módulo de soporte Oracle 24/7. Entrenamiento por roles y puesto de trabajo. | S63: 0 | T63: Entrenamiento en línea a través de clases virtuales, universidad Oracle, chat, email, blog, entre otros. | U63: 0
A64: Soporte técnico | B64: El soporte técnico y de mantenimiento ofrece servicio personalizado y con garantía de ajustes. sin embargo, su sistema automático de actualización y su fácil interfaz reducen las barreras de adopción y los costes de formación. | C64: 0 | D64: Soporte remoto e inmediato 24/7. | E64: 0 | F64: Servicio ininterrumpido de asistencia gratuita 24/7. | G64: 0 | H64: Soporte técnico asistido, autoayuda. | I64: 0 | J64: Soporte 24/5 con compromiso del 99,9 % de resolución de casos. | K64: 0 | L64: Ofrece soporte inmediato a cualquier evento. | M64: 0 | N64: El soporte y la atención tendrán un coste adicional y unas condiciones dependiendo de la edición de CRM seleccionada. Atención telefónica (n° gratuito) con compromiso de respuesta inmediata. Asistencia <24. Asistencia por Email. Manuales online. Boletín técnico mensual. | O64: 0 | P64: Soporte técnico 24/7. Ofrece servicio de mantenimiento y actualización. | Q64: 0 | R64: Soporte técnico en línea - 24/7 acceso al porta de soporte de Oracle. Soporte telefónico gratuito. | S64: 0 | T64: Respuestas y soporte telefónico y en línea 24/7. | U64: 0
A65: Agenda, calendario, lista de actividades y eventos - colaboración instantánea, los comentarios en línea y las funciones de chat. | B65: Ofrece al equipo la posibilidad de compartir documentos, organizar eventos, reuniones, recordatorios y notificaciones mediante el uso de calendarios. Las notificaciones y avisos de pueden enviar de manera personalizada y grupal. | C65: 0 | D65: Permite Organizar y realizar un seguimiento de todas las tareas, eventos y convocatorias. Establecer recordatorios y crear actividades recurrentes. Calendario, libro de notas, hojas de calculo, entre otros. | E65: 0 | F65: Calendarios, e-mail, gestión de tareas y notas completamente integrado. | G65: 0 | H65: Calendario y lista de actividades | I65: 0 | J65: Calendario, actividades, eventos, integrados por email y télefono. | K65: 0 | L65: Calendario, notas y eventos en tiempo real. | M65: 0 | N65: Agenda de contactos, calendario, comunicados, listas de actividades. | O65: 0 | P65: Calendario, notificaciones sobre las visitas, indicaciones para agendar una próxima visita y auto asignación de tareas y encuestas | Q65: 0 | R65: Agenda, calendario, seguimiento de actividades, eventos, tareas, convocatorias, entre otras. | S65: 0 | T65: No se facilita información | U65: 0
A66: Chat en linea | B66: x | C66: 5.555555556 | D66: x | E66: 5.555555556 | F66: x | G66: 5.555555556 | H66: x | I66: 5.555555556 | J66: x | K66: 5.555555556 | L66: x | M66: 5.555555556 | N66: x | O66: 5.555555556 | P66: x | Q66: 5.555555556 | R66: x | S66: 5.555555556 | T66: x | U66: 5.555555556
A67: Escalabilidad | B67: Al ser de código abierto, permite a los cliente crear sus propias extensiones, además de extenderse sin la necesidad de amarrarse a las características nativas del sistema. | C67: 0 | D67: Permite la integración de la cuenta de CRM con otras aplicaciones para crear una solución de negocio totalmente escalable y personalizadas. | E67: 0 | F67: x | G67: 5.555555556 | H67: Totalmente escalable y ágil. | I67: 0 | J67: La herramienta promete escalabilidad, no solo por la posibilidad de código abierto, si no por su adaptabilidad al mercado y sus constantes actualizaciones. | K67: 0 | L67: Es una herramienta totalmente escalable y crece con la empresa. | M67: 0 | N67: Sage es muy escalable, ya que soporta y proporciona ganancias de eficiencia operativa en las áreas comerciales, de soporte, formación y de gestión de proyectos. | O67: 0 | P67: Posee un programa de investigación y desarrollo trabajando continuamente para mantenerse escalable en el tiempo y crecer junto a la empresa. | Q67: 0 | R67: Oracle diseña sistemas de ingeniería que proporcionan flexibilidad e integración a lo largo de toda la empresa. Es escalable en el tiempo y se adapta a los nuevos cambios de las organizaciones. | S67: 0 | T67: Oracle diseña sistemas de ingeniería que proporcionan flexibilidad e integración a lo largo de toda la empresa. Es escalable en el tiempo y se adapta a los nuevos cambios de las organizaciones. | U67: 0
A68: On premise | B68: si | C68: 0 | D68: no | E68: 0 | F68: no | G68: 0 | H68: si | I68: 0 | J68: no | K68: 0 | L68: no | M68: 0 | N68: si | O68: 0 | P68: si | Q68: 0 | R68: si | S68: 0 | T68: no | U68: 0
A69: Tiempo de implementación | B69: Por ser una herramienta de código abierto, puede convertirse en una implementación lenta y de difícil adaptación. sin embargo, eso depende del equipo y el lider encargado de su implementación. | C69: 0 | D69: La implementación es rápida. La base HTML5 desde mac o linux permite iniciar las sesiones sin previa instalación | E69: 0 | F69: Implementación ágil y rápida. | G69: 0 | H69: Existen diversas versiones de implantación para que los clientes elijan la que más se adecue a su negocio y para que, si este cambia, se puedan variar de acuerdo al mismo. | I69: 0 | J69: La instalación se realiza por completo desde una interfaz web HTML / PHP. | K69: 0 | L69: La implementación se lleva a cabo a través de un equipo de expertos que colaborará con la implementación exitosa de la herramienta. | M69: 0 | N69: Es fácil de desplegar, instalar, gestionar, aprender y mantener para compañías que quieren poner foco en su negocio y no su software. | O69: 0 | P69: Ofrece rápida implementación y funcionamiento. | Q69: 0 | R69: Implementación rápida sin costos asociados a infraestructura. | S69: 0 | T69: Requiere una inversión de tiempo, planificación y dedicación para alcanzar los resultados esperados. | U69: 0
A70: Total Funcionalidades Servicios | B70: =C70/100 -> 0.8888888889 | C70: =SUM(C39:C69) -> 88.88888889 | D70: =E70/100 -> 0.8888888889 | E70: =SUM(E39:E69) -> 88.88888889 | F70: =G70/100 -> 0.9444444444 | G70: =SUM(G39:G69) -> 94.44444444 | H70: =I70/100 -> 1 | I70: =SUM(I39:I69) -> 100 | J70: =K70/100 -> 0.8888888889 | K70: =SUM(K39:K69) -> 88.88888889 | L70: =M70/100 -> 0.8333333333 | M70: =SUM(M39:M69) -> 83.33333333 | N70: =O70/100 -> 0.9444444444 | O70: =SUM(O39:O69) -> 94.44444444 | P70: =Q70/100 -> 1 | Q70: =SUM(Q39:Q69) -> 100 | R70: =S70/100 -> 1 | S70: =SUM(S39:S69) -> 100 | T70: =U70/100 -> 0.8333333333 | U70: =SUM(U39:U69) -> 83.33333333 | V70: Totales
A71: B2B | B71: x | D71: x | F71: x | H71: x | J71: x | L71: x | N71: x | P71: x | R71: x | T71: x | V71: Tipo de empresa
A72: B2C | B72: x | D72: x | F72: x | H72: x | J72: x | L72: x | N72: x | P72: x | R72: x | T72: x
A73: Microempresa | B73: x | D73: no | F73: no | H73: x | J73: x | L73: no | N73: no | P73: no | R73: no | T73: no
A74: Pequeña | B74: x | D74: x | F74: x | H74: x | J74: x | L74: x | N74: x | P74: x | R74: x | T74: x
A75: Mediana | B75: x | D75: x | F75: x | H75: x | J75: x | L75: x | N75: x | P75: x | R75: x | T75: x
A76: Grande | B76: x | D76: no | F76: x | H76: no | J76: no | L76: x | N76: no | P76: x | R76: x | T76: x
A77: Automoción | F77: x | R77: x
A78: Servicios | B78: x | H78: x | L78: x | N78: x
A79: Comercio | B79: x | F79: x | H79: x | R79: x
A80: Industria | B80: x | H80: x | L80: x | N80: x | R80: x | T80: x
A81: Turismo | T81: x
A82: Aseguradoras | B82: x | R82: x
A83: Institutos de investigación | R83: x
A84: Ingeniería
A85: Minoristas | B85: x | H85: x | T85: x
A86: Empresas informáticas
A87: Asociaciones y federaciones
A88: Auditoria y asesoramiento fiscal
A89: Bienes raíces | B89: x
A90: Consultoría empresarial
A91: sin fines de lucro | B91: x | H91: x | L91: x | T91: x
A92: Alimentación
A93: Medios de comunicación | B93: x | F93: x | L93: x
A94: Transporte y distribución | B94: x | N94: x
A95: Salud | B95: x | F95: x | L95: x | R95: x
A96: Gobierno y sector público | B96: x | F96: x | H96: x | T96: x
A97: Educativo | B97: x | L97: x | P97: x
A98: Financiero | B98: x | F98: x | H98: x | L98: x | T98: x
A99: Tecnología | B99: x | D99: x | L99: x | P99: x | R99: x | T99: x
A100: Telecomunicaciones | B100: x | D100: x | H100: x | L100: x | P100: x | R100: x | T100: x
A101: Construcción
A102: Otros | D102: x | F102: x | H102: x | J102: x | L102: x | N102: x | P102: x | R102: x
A103: Fortalezas | B103: Tiene su fuerte en la gestión de campañas de marketing. Permite despliegue tanto en la nube como "on premise". Ofrece la Gestión de inventarios. Perfil para los empleados. Precio accesible, incluso con versión gratuita para. Lo apoya una respetable comunidad de seguidores y programadores. | D103: Gestión de productos. Gestión de proveedores, propuestas y facturas. Se integra con mas de 20 aplicaciones Zoho. La versión de prueba ofrece todas las funcionalidades del producto. | F103: La interfaz es sumamente intuitiva, proporcionando al usuario una experiencia única y satisfactoria. Solicita opiniones a la comunidad y mejora constantemente sus ediciones. Excelente integración con las redes sociales. Líder en el mercado. | H103: Automatización de fuerzas de ventas es su módulo más fuerte. Ofrece una experiencia de uso familiar. (Interfaz muy amigable y de fácil uso). Excelente integración con el escritorio. Red de socios fuerte. Sólida base tecnológica. | J103: Ofrece facilidad de descarga, implementación y uso. Tiene 20 módulos adaptables a las necesidades de la empresa. Gestión de inventarios. Gestión de proyectos. Se actualiza con frecuencia con nuevas características y correcciones de errores. Actualizaciones fuera de horario de oficina. | L103: Gestión de socios. Dota a los clientes de un portal de servicio personalizado e interactivo. Apuesta por la satisfacción y la retención de los clientes. Ofrece buenos niveles de acuerdos con los clientes. Ofrece apoyo a los departamentos a través de información en tiempo real, basado en roles. Mejora la colaboración entre socios a través del buen manejo de retención de clientes y campañas de marketing. Completa integración entre ventas y finanzas. Permite medir la efectividad de las campañas. | N103: Mide y evalúa de forma comparativa y en tiempo real la satisfacción del cliente. Las actualizaciones de las versiones ocurren de manera automática. La opción en la nube ofrece acceso inmediato. Ofrece autoservicio web. | P103: Es una de las empresas más reconocidas a nivel mundial. Posee una amplia gama de productos que pueden ayudar a la escalabilidad e integración de la empresa. Es de fácil integración con otros productos. | R103: Empresa reconocida y respetada a nivel mundial. Se integra fácilmente con todas las aplicaciones ofrecidas por Oracle en el sector empresarial. Posee una fuerte herramienta de automatización de fuerzas de venta. Ofrece un nivel de seguridad superior a los otros proveedores. | T103: Ofrece excelente soporte al cliente. Ayuda a la empresa a disminuir costos a través de su excelente herramienta de autoservicio online. | V103: Precios y ediciones
A104: Oportunidades | B104: No es compatible con Windows ni con Mac. Resistencia al uso de CRM de código abierto Algunos clientes reclaman una débil oferta en lo que respecta a los módulos de servicios y ventas. La puesta en práctica puede ser lenta y difícil de manejar | D104: Vaga integración entre los módulos. | F104: no permite el despliegue en nube pública o "on permise". La automatización de marketing requiere en ocasiones de la instalación de otras aplicaciones o productos de terceros. Tienen mejor orientación al B2B. EL producto es bastante genérico y no toma en cuenta consideraciones especiales. | H104: Por ser Marketing el módulo más débil, para obtener funcionalidades como: marketing digital, análisis de marketing provechosos, entre otros, en ocasiones se debe adquirir productor de terceros. | J104: La aplicación para dispositivos móviles está disponible a partir de $20 por dispositivos. | L104: Para enriquecer algunas de las aplicaciones las empresas deberán adquirir aplicaciones de terceros como: Aprimo, Eloqua, Marketo o Pardot. Sólo Pardot ofrece integración embalaje para NetSuite. Precio elevado en comparación con competidores. | N104: El soporte y la aténción tendrán un coste adicional y unas condiciones dependiendo de la edición de CRM seleccionada. | P104: Tiene relativamente pocos años en el mercado. Entre las aplicaciones disponibles su fuerte son las sistemas ERP. | R104: Parece estar atrasada en las estrategias de integración con las redes sociales. no posee una fuerte herramienta de automatización de marketing y servicios. | T104: Es un sistema CRM desbalanceado, la aplicación ofrece una herramienta de automatización de fuerzas de venta débil en comparación con la fortaleza de servicio.
A105: Punto óptimo | B105: Si la empresa está buscando una herramienta flexible y de código abierto. Si la empresa está buscando una solución que se integre fácilmente a las redes sociales. Si el presupuesto de adopción es limitado. | D105: si tu empresa está buscando una implementación rápida y fácil. si tu empresa tiene un bajo pesupuesto de implementación. si la empresa está en la búsqueda de un gestor de proyectos. si la empresa busca una integración completa con plataformas en línea como Google. | F105: La empresa busca capacidades sociales estrechamente integradas. La atención del sistema se centrará en las ventas. La empresa se encuentra específicamente en uno de los sectores señalados como parte de la oferta. Los requerimientos no son inusuales y deseas llegar al mercado en corto tiempo. | H105: si la empresa está en la búsqueda de un software de automatización de fuerzas de ventas. si su empresa actualmente está utilizando los productos microsoft y office. Buscando el menor costo total de propiedad (TCO) de las soluciones de CRM no modificados. | J105: La empresa está buscando un CRM de fácil uso. El presupuesto de la empresa es ajustado. La empresa podría estar interesada en una opción de código abierto. | L105: Su punto fuerte es la pequeña y la mediana empresa. si la empresa busca soluciones más allá de CRM, que incluyan también recursos de contabilidad o sistemas ERP. Si la empresa es una organización con múltiples filiales y requiere de una solución en la nube segura y estable. | N105: si la empresa posee otros productos Sage como ERP. si la empresa busca una herramienta de rápida implementación. | P105: si la empresa posee o está en planes de adquirir otros productos Sap. si la empresa no tiene un presupuesto ajustado para la obtención de un sistema CRM. | R105: Busca un CRM fuerte en la automatización de fuerzas de ventas. Si empresa posee otros productos Oracle. Su industria pertenece a algunos de los sectores seleccionados previamente. (También se adapta a otros sectores). | T105: Si la empresa está en la busqueda de una experiencia para el cliente. Si la empresa busca un buen apoyo de CRM social. Tu compañía pertenece a uno de los sectores identificados anteriormente.
A106: Busca soluciones alternativas si: | B106: Si la empresa requiere de funciones de conjuntos y de funcionalidades avanzadas en todos los módulos. | D106: si la empresa está en la búsqueda de un módulos de marketing y servicio fuerte. La empresa busca soluciones integrales. | F106: Los vendedores requieren de la toma de órdenes de ventas o acceso a la gestión de inventarios. La empresa busca un software para la planificación de recursos empresariales. Se requiere de un sistema CRM completamente integrado. si el presupuesto para la adopción es ajustado. | H106: Buscando enfocadas verticalmente, soluciones CRM específicas de la industria madura. La empresa utiliza sistemas operativos como: Oracle, Linux o Java / J2EE. | J106: La empresa busca una solución estándar con módulos pre diseñados. La empresa busca una solución que esté soportada por grandes corporaciones y socios. | L106: Si la empresa está en la búsqueda un CRM social. La empresa busca un centro de datos ubicado en su propio país. (no existen centros de datos en Europa) | N106: Si la empresa está buscando integración con sistemas heredados de otras compañías. Si la empresa tienen más de 250 empleados. | P106: Si la empresa busca una solución económica y de fácil uso. Si la empresa tiene menos de 50 empleados. Si la empresa no posee expertos en productos Sap. | R106: Si la empresa está buscando una buena integración con las redes sociales. Si la empresa no posee otros productos Oracle. | T106: Si la empresa busca una herramienta fuerte de automatización de ventas y marketing.
A107: Especialidad | B107: Marketing | D107: Ventas | F107: Ventas | H107: Ventas | J107: Marketing, ventas y servicios | L107: Ventas y marketing | N107: Marketing, ventas y servicios | P107: Marketing, ventas y servicios | R107: Ventas | T107: Servicio
A108: Versión gratuita | B108: x | D108: x | F108: no | H108: no | J108: x | L108: no | N108: no | P108: no | R108: no | T108: no
A109: Tipo de pago | B109: Mensual o anual | D109: Mensual / anual con 20% de descuento | F109: Mensual o anual | H109: Mensual o anual | J109: Mensual | L109: Mensual | N109: Mensual | P109: Mensual o anual | R109: Mensual o anual | T109: Mensual / Anual
A110: Versión de prueba | B110: x | D110: x | F110: x | H110: x | J110: x | L110: x | N110: x | P110: x | R110: x | T110: x
A111: Costo Mensual - Entre 0 y 70 $ usuario/mes | B111: x | D111: x | F111: x | H111: x | J111: x | L111: no | N111: x | P111: (-) | R111: no | T111: (-) | V111: Fortalezas y debilidades
A112: Costo Mensual - Entre 0 y 100 $ usuario/mes | B112: x | D112: no | F112: x | H112: x | J112: no | L112: x | N112: no | P112: (-) | R112: no | T112: (-)
A113: Costo Mensual - Entre 0 y 200 $ usuario/mes | B113: x | D113: no | F113: x | H113: x | J113: no | L113: x | N113: no | P113: (-) | R113: x | T113: (-)
A114: Costo Mensual - Entre 0 y 350 $ usuario/mes | B114: no | D114: no | F114: x | H114: no | J114: no | L114: x | N114: no | P114: x | R114: x | T114: x
A115: Características y Costo Anual | B115: Depende de la versión se ofrecen funcionalidades diferentes. | D115: Depende de la versión se ofrecen funcionalidades diferentes. | F115: Depende de la versión se ofrecen funcionalidades diferentes. | H115: Entre los $15 y los $65 dólares por usuario al mes. Según el tamaño de su empresa, así como las necesidades y personalizaciones deseadas, será recomendable una versión diferente. (Los precios y ediciones de los servicios varían según el país y el tipo de moneda con el que se efectúa el pago. | J115: Ofrece soporte y atención al cliente por un mismo precio. Generalmente se ofrece la opción de pago por tres años de servicio con precios especiales. | L115: Entra en un rango entre los $99 y los 129$ por usuario al mes. Basado en contratos anuales. El precio del sofware normalmente varía dependiendo de la edición o línea de producto seleccionada. Entra en un rango entre los $99 y los 129$ por usuario al mes. Basado en contratos anuales. | N115: Las características y funcionalidades variarán dependiendo de la edición seleccionada por la empresa. | P115: Las características carían según la versión seleccionada. Sin embargo las información sobre las versiones no está disponible directamente en la página web del proveedor. | R115: Dependiendo de la edición seleccionada se entregan funcionalidades diversas. | T115: no se facilita información
B144: Esta página no es visible para el usuario

Sheet Comparativa
B1: Para tener acceso a resumen del cuadro comparativo con las soluciones que se adaptan a las necesidades de su empresa, por favor pulser el botón *INICIO FORMULARIO* | C1: Cuadro comparativo completo de CRM en la nube para pymes. | T1: Evaluación | V1: Evaluación
A2: Módulo y características | B2: Funcionalidades y herramientas | C2: Sugar | D2: Evaluación | E2: Zoho | F2: Evaluación | G2: SalesForce | H2: Evaluación | I2: Microsoft Dynamics | J2: Evaluación | K2: Vtiger | L2: Evaluación | M2: NetSuite | N2: Evaluación | O2: Sage | P2: Evaluación | Q2: Sap | R2: Evaluación | S2: Oracle On Demand | T2: Total | U2: Right Now | V2: Total
A3: Página proveedor | B3: Página Web principal | C3: La página principal de Sugar CRM es de fácil uso, la información se encuentra distribuida de manera similar a la estructura física del software. Muestra información completa sobre funcionalidades, precios y ediciones del producto. | E3: La página principal de Zoho CRM es de fácil uso, la información se encuentra distribuida de manera similar a la estructura física del software. Muestra información completa sobre funcionalidades, precios y ediciones del producto. | G3: La página principal de SalceForce es de fácil uso. Muestra información completa sobre funcionalidades, precios y ediciones del producto. | I3: La página principal de Microsoft Dynamics es de fácil uso, y posee información clave. No muestra precios y ediciones del producto (Contactar cliente). | K3: La página principal de Vtiger es de fácil uso. Muestra información completa sobre funcionalidades, precios y ediciones del producto. | M3: La página principal de NetSuite es de fácil uso. No muestra información completa sobre funcionalidades, precios y ediciones del producto. | O3: La página principal de Sage es de fácil uso. Muestra información completa sobre funcionalidades, precios y ediciones del producto. | Q3: La página principal de Sap tiene mucha información disponible, sin embargo no es de fácil manejo. No muestra información completa sobre precios y ediciones del producto (contactar con el proveedor). | S3: La página principal de Oracle tiene mucha información disponible, pero no es de fácil manejo. No muestra información completa sobre precios y ediciones del producto, se debe acceder a través de interacción con el cliente. | U3: La página principal de Oracle Rightnow posee mucha información, sin embargo es entregada de manera desordenada y poco manejable. No facilitan información sobre precios y ediciones.
A4: Ventas | B4: Gestión de contactos | C4: x | D4: =IF(C4="x",100/11,0) -> 9.090909091 | E4: x | F4: =IF(E4="x",100/11,0) -> 9.090909091 | G4: x | H4: =IF(G4="x",100/11,0) -> 9.090909091 | I4: x | J4: =IF(I4="x",100/11,0) -> 9.090909091 | K4: x | L4: =IF(K4="x",100/11,0) -> 9.090909091 | M4: x | N4: =IF(M4="x",100/11,0) -> 9.090909091 | O4: x | P4: =IF(O4="x",100/11,0) -> 9.090909091 | Q4: x | R4: =IF(Q4="x",100/11,0) -> 9.090909091 | S4: x | T4: =IF(S4="x",100/11,0) -> 9.090909091 | U4: x | V4: =IF(U4="x",100/11,0) -> 9.090909091
B5: Gestión de oportunidades | C5: x | D5: 9.090909091 | E5: x | F5: 9.090909091 | G5: x | H5: 9.090909091 | I5: x | J5: 9.090909091 | K5: x | L5: 9.090909091 | M5: x | N5: 9.090909091 | O5: x | P5: 9.090909091 | Q5: x | R5: 9.090909091 | S5: x | T5: 9.090909091 | U5: (+/-) | V5: 0
B6: Gestión de propuestas | C6: x | D6: 9.090909091 | E6: x | F6: 9.090909091 | G6: x | H6: 9.090909091 | I6: x | J6: 9.090909091 | K6: no | L6: 0 | M6: x | N6: 9.090909091 | O6: x | P6: 9.090909091 | Q6: x | R6: 9.090909091 | S6: x | T6: 9.090909091 | U6: No se facilita información | V6: 0
B7: Gestión de cuentas | C7: x | D7: 9.090909091 | E7: x | F7: 9.090909091 | G7: x | H7: 9.090909091 | I7: x | J7: 9.090909091 | K7: x | L7: 9.090909091 | M7: x | N7: 9.090909091 | O7: x | P7: 9.090909091 | Q7: x | R7: 9.090909091 | S7: x | T7: 9.090909091 | U7: x | V7: 9.090909091
B8: Gestión de comisiones | C8: no | D8: 0 | E8: x | F8: 9.090909091 | G8: x | H8: 9.090909091 | I8: x | J8: 9.090909091 | K8: x | L8: 9.090909091 | M8: x | N8: 9.090909091 | O8: x | P8: 9.090909091 | Q8: x | R8: 9.090909091 | S8: x | T8: 9.090909091 | U8: No se facilita información | V8: 0
B9: Gestión de las cuotas de ventas | C9: x | D9: 9.090909091 | E9: x | F9: 9.090909091 | G9: x | H9: 9.090909091 | I9: x | J9: 9.090909091 | K9: no | L9: 0 | M9: x | N9: 9.090909091 | O9: x | P9: 9.090909091 | Q9: x | R9: 9.090909091 | S9: x | T9: 9.090909091 | U9: No se facilita información | V9: 0
B10: Gestión de documentos | C10: x | D10: 9.090909091 | E10: x | F10: 9.090909091 | G10: x | H10: 9.090909091 | I10: x | J10: 9.090909091 | K10: x | L10: 9.090909091 | M10: x | N10: 9.090909091 | O10: x | P10: 9.090909091 | Q10: x | R10: 9.090909091 | S10: x | T10: 9.090909091 | U10: No se facilita información | V10: 0
B11: Generación de ofertas | C11: x | D11: 9.090909091 | E11: x | F11: 9.090909091 | G11: x | H11: 9.090909091 | I11: x | J11: 9.090909091 | K11: x | L11: 9.090909091 | M11: x | N11: 9.090909091 | O11: x | P11: 9.090909091 | Q11: x | R11: 9.090909091 | S11: x | T11: 9.090909091 | U11: No se facilita información | V11: 0
B12: Seguimiento de pedidos | C12: x | D12: 9.090909091 | E12: x | F12: 9.090909091 | G12: x | H12: 9.090909091 | I12: x | J12: 9.090909091 | K12: x | L12: 9.090909091 | M12: x | N12: 9.090909091 | O12: x | P12: 9.090909091 | Q12: x | R12: 9.090909091 | S12: x | T12: 9.090909091 | U12: x | V12: 9.090909091
B13: Previsión de ventas | C13: x | D13: 9.090909091 | E13: x | F13: 9.090909091 | G13: x | H13: 9.090909091 | I13: x | J13: 9.090909091 | K13: x | L13: 9.090909091 | M13: x | N13: 9.090909091 | O13: x | P13: 9.090909091 | Q13: x | R13: 9.090909091 | S13: x | T13: 9.090909091 | U13: x | V13: 9.090909091
B14: Gestión de territorio | C14: x | D14: 9.090909091 | E14: x | F14: 9.090909091 | G14: x | H14: 9.090909091 | I14: x | J14: 9.090909091 | K14: x | L14: 9.090909091 | M14: x | N14: 9.090909091 | O14: x | P14: 9.090909091 | Q14: x | R14: 9.090909091 | S14: x | T14: 9.090909091 | U14: No se facilita información | V14: 0
B15: Otros funcionalidades Ventas | C15: Dentro del módulo de ventas también ofrece: Colaboración con expertos en tiempo real, información de contacto de los principales agregadores de negocio como D&B., emisión de facturas, otros. | D15: =SUM(D4:D14) -> 90.90909091 | E15: Seguimiento de historial de compras para identificación de oportunidades de ventas cruzadas y up-sell. | F15: =SUM(F4:F14) -> 100 | G15: Gestión de contratos. Gestión de socios | I15: (-) | J15: 0 | K15: Gestión de equipos. Generación de tickets. | M15: Capacidad y manejo de ventas cruzadas y up-sell. | O15: Gestión de equipos. Optimización de ventas cruzadas. Gestión de productos. | Q15: x | S15: Gestión de acuerdos. Gestión de facturación. Gestión de ventas cruzadas y up-selling . Gestión de socios. | U15: (-)
A16: Totales | B16: Total Funcionalidades Ventas | C16: =D15/100 -> 0.9090909091 | E16: =F15/100 -> 1 | G16: =H16/100 -> 1 | H16: =SUM(H4:H14) -> 100 | I16: =J16/100 -> 1 | J16: =SUM(J4:J15) -> 100 | K16: =L16/100 -> 0.8181818182 | L16: =SUM(L4:L14) -> 81.81818182 | M16: =N16/100 -> 1 | N16: =SUM(N4:N14) -> 100 | O16: =P16/100 -> 1 | P16: =SUM(P4:P14) -> 100 | Q16: =R16/100 -> 1 | R16: =SUM(R4:R14) -> 100 | S16: =T16/100 -> 1 | T16: =SUM(T4:T14) -> 100 | U16: =V16/100 -> 0.3636363636 | V16: =SUM(V4:V14) -> 36.36363636
A17: Marketing | B17: Campañas de marketing | C17: x | D17: =IF(C17="x",100/10,0) -> 10 | E17: x | F17: =IF(E17="x",100/10,0) -> 10 | G17: x | H17: =IF(G17="x",100/10,0) -> 10 | I17: x | J17: =IF(I17="x",100/10,0) -> 10 | K17: x | L17: =IF(K17="x",100/10,0) -> 10 | M17: x | N17: =IF(M17="x",100/10,0) -> 10 | O17: x | P17: =IF(O17="x",100/10,0) -> 10 | Q17: x | R17: =IF(Q17="x",100/10,0) -> 10 | S17: x | T17: =IF(S17="x",100/10,0) -> 10 | U17: x | V17: =IF(U17="x",100/10,0) -> 10
B18: Plantillas | C18: x | D18: 10 | E18: x | F18: 10 | G18: x | H18: 10 | I18: x | J18: 10 | K18: x | L18: 10 | M18: x | N18: 10 | O18: x | P18: 10 | Q18: x | R18: 10 | S18: x | T18: 10 | U18: x | V18: 10
B19: Monitoreo de ROI | C19: x | D19: 10 | E19: x | F19: 10 | G19: x | H19: 10 | I19: x | J19: 10 | K19: x | L19: 10 | M19: x | N19: 10 | O19: x | P19: 10 | Q19: x | R19: 10 | S19: x | T19: 10 | U19: No se facilita información | V19: 0
B20: Creación de listas | C20: x | D20: 10 | E20: x | F20: 10 | G20: x | H20: 10 | I20: x | J20: 10 | K20: x | L20: 10 | M20: x | N20: 10 | O20: x | P20: 10 | Q20: x | R20: 10 | S20: x | T20: 10 | U20: No se facilita información | V20: 0
B21: Seguimiento de la información de marketing | C21: x | D21: 10 | E21: x | F21: 10 | G21: x | H21: 10 | I21: x | J21: 10 | K21: x | L21: 10 | M21: x | N21: 10 | O21: x | P21: 10 | Q21: x | R21: 10 | S21: x | T21: 10 | U21: No se facilita información | V21: 0
B22: Seguimiento del flujo de trabajo | C22: x | D22: 10 | E22: x | F22: 10 | G22: x | H22: 10 | I22: x | J22: 10 | K22: x | L22: 10 | M22: x | N22: 10 | O22: x | P22: 10 | Q22: x | R22: 10 | S22: x | T22: 10 | U22: No se facilita información | V22: 0
B23: Gestión de promociones y eventos | C23: x | D23: 10 | E23: x | F23: 10 | G23: x | H23: 10 | I23: x | J23: 10 | K23: x | L23: 10 | M23: x | N23: 10 | O23: x | P23: 10 | Q23: x | R23: 10 | S23: x | T23: 10 | U23: x | V23: 10
B24: Programas de retención de clientes | C24: x | D24: 10 | E24: x | F24: 10 | G24: x | H24: 10 | I24: x | J24: 10 | K24: x | L24: 10 | M24: x | N24: 10 | O24: x | P24: 10 | Q24: x | R24: 10 | S24: x | T24: 10 | U24: x | V24: 10
B25: Email marketing | C25: x | D25: 10 | E25: x | F25: 10 | G25: x | H25: 10 | I25: x | J25: 10 | K25: x | L25: 10 | M25: x | N25: 10 | O25: x | P25: 10 | Q25: x | R25: 10 | S25: x | T25: 10 | U25: x | V25: 10
B26: Capacidad de vincular las ventas con los esfuerzos de marketing. | C26: x | D26: 10 | E26: Con algunas dificultades | F26: 0 | G26: x | H26: 10 | I26: x | J26: 10 | K26: x | L26: 10 | M26: x | N26: 10 | O26: x | P26: 10 | Q26: x | R26: 10 | S26: x | T26: 10 | U26: No se facilita información | V26: 0
A27: Totales | B27: Total Funcionalidades Marketing | C27: =D27/100 -> 1 | D27: =SUM(D17:D26) -> 100 | E27: =F27/100 -> 0.9 | F27: =SUM(F17:F26) -> 90 | G27: =H27/100 -> 1 | H27: =SUM(H17:H26) -> 100 | I27: =J27/100 -> 1 | J27: =SUM(J17:J26) -> 100 | K27: =L27/100 -> 1 | L27: =SUM(L17:L26) -> 100 | M27: =N27/100 -> 1 | N27: =SUM(N17:N26) -> 100 | O27: =P27/100 -> 1 | P27: =SUM(P17:P26) -> 100 | Q27: =R27/100 -> 1 | R27: =SUM(R17:R26) -> 100 | S27: =T27/100 -> 1 | T27: =SUM(T17:T26) -> 100 | U27: =V27/100 -> 0.5 | V27: =SUM(V17:V26) -> 50
A28: Servicio | B28: Gestión de casos | C28: x | D28: =IF(C28="x",100/6,0) -> 16.66666667 | E28: x | F28: =IF(E28="x",100/6,0) -> 16.66666667 | G28: x | H28: =IF(G28="x",100/6,0) -> 16.66666667 | I28: x | J28: =IF(I28="x",100/6,0) -> 16.66666667 | K28: x | L28: =IF(K28="x",100/6,0) -> 16.66666667 | M28: x | N28: =IF(M28="x",100/6,0) -> 16.66666667 | O28: x | P28: =IF(O28="x",100/6,0) -> 16.66666667 | Q28: x | R28: =IF(Q28="x",100/6,0) -> 16.66666667 | S28: x | T28: =IF(S28="x",100/6,0) -> 16.66666667 | U28: x | V28: =IF(U28="x",100/6,0) -> 16.66666667
B29: Vista completa de información de clientes | C29: x | D29: 16.66666667 | E29: x | F29: 16.66666667 | G29: x | H29: 16.66666667 | I29: x | J29: 16.66666667 | K29: x | L29: 16.66666667 | M29: x | N29: 16.66666667 | O29: x | P29: 16.66666667 | Q29: x | R29: 16.66666667 | S29: x | T29: 16.66666667 | U29: x | V29: 16.66666667
B30: Gestión de correos electrónicos | C30: x | D30: 16.66666667 | E30: x | F30: 16.66666667 | G30: x | H30: 16.66666667 | I30: x | J30: 16.66666667 | K30: x | L30: 16.66666667 | M30: x | N30: 16.66666667 | O30: x | P30: 16.66666667 | Q30: x | R30: 16.66666667 | S30: x | T30: 16.66666667 | U30: x | V30: 16.66666667
B31: Base de datos de conocimiento donde se pueden realizar búsquedas | C31: x | D31: 16.66666667 | E31: x | F31: 16.66666667 | G31: x | H31: 16.66666667 | I31: x | J31: 16.66666667 | K31: x | L31: 16.66666667 | M31: x | N31: 16.66666667 | O31: x | P31: 16.66666667 | Q31: x | R31: 16.66666667 | S31: x | T31: 16.66666667 | U31: x | V31: 16.66666667
B32: Servicio de atención al cliente (Centro de contacto) | C32: x | D32: 16.66666667 | E32: x | F32: 16.66666667 | G32: x | H32: 16.66666667 | I32: x | J32: 16.66666667 | K32: x | L32: 16.66666667 | M32: x | N32: 16.66666667 | O32: x | P32: 16.66666667 | Q32: x | R32: 16.66666667 | S32: x | T32: 16.66666667 | U32: x | V32: 16.66666667
B33: Servicio de soporte / Help desk | C33: x | D33: 16.66666667 | E33: x | F33: 16.66666667 | G33: x | H33: 16.66666667 | I33: x | J33: 16.66666667 | K33: x | L33: 16.66666667 | M33: x | N33: 16.66666667 | O33: x | P33: 16.66666667 | Q33: x | R33: 16.66666667 | S33: x | T33: 16.66666667 | U33: x | V33: 16.66666667
A34: Totales | B34: Total Funcionalidades Servicios | C34: =D34/100 -> 1 | D34: =SUM(D28:D33) -> 100 | E34: =F34/100 -> 1 | F34: =SUM(F28:F33) -> 100 | G34: =H34/100 -> 1 | H34: =SUM(H28:H33) -> 100 | I34: =J34/100 -> 1 | J34: =SUM(J28:J33) -> 100 | K34: =L34/100 -> 1 | L34: =SUM(L28:L33) -> 100 | M34: =N34/100 -> 1 | N34: =SUM(N28:N33) -> 100 | O34: =P34/100 -> 1 | P34: =SUM(P28:P33) -> 100 | Q34: =R34/100 -> 1 | R34: =SUM(R28:R33) -> 100 | S34: =T34/100 -> 1 | T34: =SUM(T28:T33) -> 100 | U34: =V34/100 -> 1 | V34: =SUM(V28:V33) -> 100
A35: Otras funcionalidades y herramientas | B35: Interfaz intuitiva | C35: x | D35: =IF(C35="x",100/18,0) -> 5.555555556 | E35: x | F35: =IF(E35="x",100/18,0) -> 5.555555556 | G35: x | H35: =IF(G35="x",100/18,0) -> 5.555555556 | I35: x | J35: =IF(I35="x",100/18,0) -> 5.555555556 | K35: x | L35: =IF(K35="x",100/18,0) -> 5.555555556 | M35: x | N35: =IF(M35="x",100/18,0) -> 5.555555556 | O35: x | P35: =IF(O35="x",100/18,0) -> 5.555555556 | Q35: x | R35: =IF(Q35="x",100/18,0) -> 5.555555556 | S35: x | T35: =IF(S35="x",100/18,0) -> 5.555555556 | U35: no | V35: =IF(U35="x",100/18,0) -> 0
B36: Múltiples canales de comunicación | C36: x | D36: 5.555555556 | E36: x | F36: 5.555555556 | G36: x | H36: 5.555555556 | I36: x | J36: 5.555555556 | K36: x | L36: 5.555555556 | M36: x | N36: 5.555555556 | O36: x | P36: 5.555555556 | Q36: x | R36: 5.555555556 | S36: x | T36: 5.555555556 | U36: x | V36: 5.555555556
B37: Personalización | C37: x | D37: 5.555555556 | E37: x | F37: 5.555555556 | G37: x | H37: 5.555555556 | I37: x | J37: 5.555555556 | K37: x | L37: 5.555555556 | M37: x | N37: 5.555555556 | O37: x | P37: 5.555555556 | Q37: x | R37: 5.555555556 | S37: x | T37: 5.555555556 | U37: x | V37: 5.555555556
B38: Cuadro de mandos | C38: x | D38: 5.555555556 | E38: x | F38: 5.555555556 | G38: x | H38: 5.555555556 | I38: x | J38: 5.555555556 | K38: x | L38: 5.555555556 | M38: x | N38: 5.555555556 | O38: x | P38: 5.555555556 | Q38: x | R38: 5.555555556 | S38: x | T38: 5.555555556 | U38: x | V38: 5.555555556
B39: Seguimiento de redes sociales | C39: x | D39: 5.555555556 | E39: x | F39: 5.555555556 | G39: x | H39: 5.555555556 | I39: x | J39: 5.555555556 | K39: x | L39: 5.555555556 | M39: NetSuite sigue encontrando su camino con las herramientas de medios sociales. Hasta ahora la estrategia social de la empresa ha sido integrar con terceros. | N39: 0 | O39: x | P39: 5.555555556 | Q39: x | R39: 5.555555556 | S39: x | T39: 5.555555556 | U39: x | V39: 5.555555556
B40: Código abierto | C40: si | D40: 0 | E40: no | F40: 0 | G40: no | H40: 0 | I40: no | J40: 0 | K40: si | L40: 0 | M40: no | N40: 0 | O40: no | P40: 0 | Q40: no | R40: 0 | S40: no | T40: 0 | U40: no | V40: 0
B41: Sincronización de datos | C41: x | D41: 5.555555556 | E41: x | F41: 5.555555556 | G41: x | H41: 5.555555556 | I41: x | J41: 5.555555556 | K41: x | L41: 5.555555556 | M41: x | N41: 5.555555556 | O41: x | P41: 5.555555556 | Q41: x | R41: 5.555555556 | S41: x | T41: 5.555555556 | U41: x | V41: 5.555555556
B42: Integración con los sistemas heredados | C42: x | D42: 5.555555556 | E42: x | F42: 5.555555556 | G42: x | H42: 5.555555556 | I42: x | J42: 5.555555556 | K42: No se facilita información | L42: 0 | M42: x | N42: 5.555555556 | O42: x | P42: 5.555555556 | Q42: x | R42: 5.555555556 | S42: x | T42: 5.555555556 | U42: x | V42: 5.555555556
B43: Informes y reportes | C43: x | D43: 5.555555556 | E43: x | F43: 5.555555556 | G43: x | H43: 5.555555556 | I43: x | J43: 5.555555556 | K43: x | L43: 5.555555556 | M43: x | N43: 5.555555556 | O43: x | P43: 5.555555556 | Q43: x | R43: 5.555555556 | S43: x | T43: 5.555555556 | U43: x | V43: 5.555555556
B44: Movilidad | C44: x | D44: 5.555555556 | E44: x | F44: 5.555555556 | G44: x | H44: 5.555555556 | I44: x | J44: 5.555555556 | K44: x | L44: 5.555555556 | M44: x | N44: 5.555555556 | O44: x | P44: 5.555555556 | Q44: x | R44: 5.555555556 | S44: x | T44: 5.555555556 | U44: x | V44: 5.555555556
B45: .CSV | C45: x | D45: 5.555555556 | E45: x | F45: 5.555555556 | G45: x | H45: 5.555555556 | I45: x | J45: 5.555555556 | K45: x | L45: 5.555555556 | M45: x | N45: 5.555555556 | O45: x | P45: 5.555555556 | Q45: x | R45: 5.555555556 | S45: x | T45: 5.555555556 | U45: x | V45: 5.555555556
B46: .TXT | C46: no | D46: 0 | E46: no | F46: 0 | G46: no | H46: 0 | I46: x | J46: 5.555555556 | K46: no | L46: 0 | M46: no | N46: 0 | O46: no | P46: 0 | Q46: x | R46: 5.555555556 | S46: x | T46: 5.555555556 | U46: no | V46: 0
B47: .XLS | C47: no | D47: 0 | E47: no | F47: 0 | G47: no | H47: 0 | I47: x | J47: 5.555555556 | K47: x | L47: 5.555555556 | M47: no | N47: 0 | O47: x | P47: 5.555555556 | Q47: x | R47: 5.555555556 | S47: x | T47: 5.555555556 | U47: no | V47: 0
B48: Aplicación móvil | C48: x | D48: 5.555555556 | E48: x | F48: 5.555555556 | G48: x | H48: 5.555555556 | I48: x | J48: 5.555555556 | K48: x | L48: 5.555555556 | M48: x | N48: 5.555555556 | O48: x | P48: 5.555555556 | Q48: x | R48: 5.555555556 | S48: x | T48: 5.555555556 | U48: x | V48: 5.555555556
B49:  Posibilidad de despliegue “On premise” (En las instalaciones del cliente) | C49: si | D49: 0 | E49: no | F49: 0 | G49: no | H49: 0 | I49: si | J49: 0 | K49: no | L49: 0 | M49: no | N49: 0 | O49: si | P49: 0 | Q49: si | R49: 0 | S49: si | T49: 0 | U49: no | V49: 0
B50: Integración con otros | C50: Integración de correo electrónico: Microsoft outlook, Gmail, word, excel, Exchange Server, IBM Lotus notes, Yahoo! Mail y servidores de correo basados en IMAP. Integración con aplicaciones de Google: (Google Docs, Google Calendar, Google Apps, Google Contacts y Box.com). Integración con aplicaciones externas como: Hoovers, Jigsaw, Cisco WebEx,Yahoo!, Gmail, iCal, y redes sociales como Facebook, Twitter y Linkedin. | D50: 0 | E50: Integración con la web de la empresa. Soporta todos los sistemas operativos: Windows, Mac, Linux, otros. Permite y facilita la sincronización e importación de información de otros programas CRM. Posibilidad de integrarse con Outlook, Office o Google Apps (correos, tareas, eventos, etc). Aplicaciones hermanas elaboradas por Zoho para complementarse entre ellas y permitir una gran red de operaciones, gestión y administración de cualquier ámbito. | F50: 0 | G50: Integración con productos Microsoft. Integración con: Gmail, Google Calendar, Google Talk, Google Docs, Google sites, Facebook, Twitter y Linkedin (Social media). | H50: 0 | I50: No se integra fácilmente con terceros, por lo que si se desea adquirir productos de otros proveedores se debe evaluar previamente si es realmente la opción más adecuada. | J50: 0 | K50: Integración con Outlook, Google apps, Office Exchange, Mozilla, Thunderbird, entre otros. | L50: 0 | M50: Integración con Office 365, Microsoft Exchange, IBM notes, novell GroupWise. Ipad, Ipod, Android y Blackberry. | N50: 0 | O50: Acceso desde cualquier navegador. Integración con Microsoft Outlook y redes sociales. (CRM social integrado con LinkedIn, Facebook y Twitter). Facilita un único punto de entrada para la integración con Microsoft Exchange. Aplicación nativa para Iphone y dispositivos con Windows 8. | P50: 0 | Q50: Proporciona integración de soportes al back-office, desde productos, precios, cotizaciones y pedidos. Integración con: Microsoft, Google, redes sociales como Facebook y Twitter. | R50: 0 | S50: Integración con dispositivos (Iphone, Android y Blackberry). Integración con: Microsoft Outlook, Excel, Word, Office 2013, Lotus Notes, pagina web de la empresa y otros productos Oracle. | T50: 0 | U50: Integración con dispositivos (Iphone, Android y Blackberry). Integración con: Microsoft Outlook, Excel, Word, Office 2013, Lotus Notes, pagina web de la empresa y otros productos Oracle. . Apoyo de otros proveedores y productos para ofrecer una integración óptima. | V50: 0
B51: KPI´s (Indicadores) | C51: x | D51: 5.555555556 | E51: x | F51: 5.555555556 | G51: x | H51: 5.555555556 | I51: x | J51: 5.555555556 | K51: x | L51: 5.555555556 | M51: x | N51: 5.555555556 | O51: x | P51: 5.555555556 | Q51: x | R51: 5.555555556 | S51: x | T51: 5.555555556 | U51: x | V51: 5.555555556
B52: Seguridad del software | C52: x | D52: 5.555555556 | E52: x | F52: 5.555555556 | G52: x | H52: 5.555555556 | I52: x | J52: 5.555555556 | K52: x | L52: 5.555555556 | M52: x | N52: 5.555555556 | O52: x | P52: 5.555555556 | Q52: x | R52: 5.555555556 | S52: x | T52: 5.555555556 | U52: x | V52: 5.555555556
B53: Acceso restringido | C53: x | D53: 5.555555556 | E53: x | F53: 5.555555556 | G53: x | H53: 5.555555556 | I53: x | J53: 5.555555556 | K53: x | L53: 5.555555556 | M53: x | N53: 5.555555556 | O53: x | P53: 5.555555556 | Q53: x | R53: 5.555555556 | S53: x | T53: 5.555555556 | U53: x | V53: 5.555555556
B54: Tipo de nube (despliegue) | C54: Se puede seleccionar el tipo de nube donde se quiere implementar el sistema CRM, ya sea en la nube pública o privada (incluyendo Amazon Elastic Compute Cloud, Windows Azure Services Platform, Rackspace Cloud, IBM SmartCloud Enterprise) | D54: 0 | E54: Privada o pública | F54: 0 | G54: No existe la opción de despliegue en una nube pública. | H54: 0 | I54: Pública y privada | J54: 0 | K54: Se encuentra alojado en las instalaciones de Amazon en los EE.UU. | L54: 0 | M54: Plataforma de nube multi-tenant que consiste en (IaaS), (PaaS) y (SaaS). | N54: 0 | O54: Tiene tres modos de despliegue: Adquisición de licencias "on premise" (En las instalaciones del cliente). Adquisición por suscripción (alquiler). En la nube (online). | P54: 0 | Q54: En la nube del proveedor Sap | R54: 0 | S54: Nube pública Oracle. | T54: 0 | U54: Nube pública Oracle. | V54: 0
B55: Años en el mercado | C55: Año 2004 | D55: 0 | E55: Año 2006 | F55: 0 | G55: Año 1999 | H55: 0 | I55: Año 2000 | J55: 0 | K55: Año 2004 | L55: 0 | M55: Año 1999 | N55: 0 | O55: Año 1984 | P55: 0 | Q55: Empresa en funcionamiento desde 1972, pero la aplicación en la nube tiene sus inicios en el año 2006. | R55: 0 | S55: Año 2005 | T55: 0 | U55: En el año 2011 es adquirido por Oracle | V55: 0
B56: Países donde ofrece el servicio | C56: Abarca los cinco continentes y alrededor de 120 países, entre los que se pueden nombrar: Asia, Australia, Canadá, China, Europa, Alemania, India, Latino América, México, Medio Oriente, África, UK, USA, entre otros. | D56: 0 | E56: Algunos países en los que ofrece el servicio: España, Portugal, Argentina, Venezuela, Chile, Colombia, México, Perú, Costa Rica, Ecuador, El Salvador, Honduras, Guatemala, Nicaragua, Puerto Rico, Panamá, Paraguay … Chile, Costa Rica, Ecuador, Bolivia Austria, entre otros. | F56: 0 | G56: Con sede principal en San Francisco y sedes regionales en Morges, Suiza (abarcando Europa, Oriente Medio y África, Singapur), la India y Tokio. Otras oficinas principales se encuentran en: Toronto, Chicago, Nueva York, Londres, Sídney, Dublín, Hyderabad, San Mateo, California, Hillsboro y Oregón. | H56: 0 | I56: Ofrece servicio en más de 40 países - Alemania, Austria, Australia, Bélgica, Brasil, Canadá, Colombia, Costa Rica, Chile, Chipre, República Checa, Dinamarca, Estados Unidos, Finlandia, Francia, Grecia, Holanda, Hong Kong, Hungría, India, Irlanda, Israel, Italia, Japón, Luxemburgo, Malasia, México, Nueva Zelanda, noruega, Perú, Polonia, Portugal, Puerto Rico, Reino Unido, Rumanía, Singapur, Suecia, Suiza y Trinidad y Tobago. | J56: 0 | K56: No se facilita información | L56: 0 | M56: Ofrece servicios en: Australia, República Checa, Alemania, Japón, Hong Kong, Singapur, USA, entre otros. | N56: 0 | O56: Ofrece servicios en más de 70 países. Reino Unido e Irlanda, Europa continental, América del norte, África del Sur, Australia, Asia, Brasil, entre otros. | P56: 0 | Q56: Fuerte presencia en Latino América y oferta de servicio en más de 120 países a nivel mundial. | R56: 0 | S56: Alrededor de 127 paises. | T56: 0 | U56: Ofrece servicios en más de 140 países. | V56: 0
B57: País de procedencia | C57: Ubicada en Cupertino, California | D57: 0 | E57: Sedes en: Pleasanton, California, Chennai, India, sucursales: Austin, Nueva Jersey, Londres, Tokio y Beijing. | F57: 0 | G57: Ubicada en: San Francisco, California | H57: 0 | I57: No cuenta con sede central. Lo que la dota de movilidad y oficinas en todo el mundo. | J57: 0 | K57: Ubicada en: USA e India. | L57: 0 | M57: Con un centro de datos primario ubicado en California y un centro de datos de copia de seguridad en Massachusetts, Estados Unidos. | N57: 0 | O57: Sede en Newcastle (Reino Unido). Tiene alrededor de 20 sedes en España. | P57: 0 | Q57: Alemania | R57: 0 | S57: Estados Unidos. | T57: 0 | U57: Bozeman (Montana). Ofrece servicio desde 5 centros de datos localizados en: Santa Clara, California (Savvis), Elk Grove, Illinois (Equinix), Londres, Inglaterra (IBM), Toronto, Canadá (Telus) y Sídney, Australia. | V57: 0
B58: Múltiples lenguajes | C58: Posee alrededor de 26 idiomas programados y más 80 disponibles en los paquetes de idiomas. | D58: 0 | E58: Ofrece gran variedad de idiomas, entre ellos: alemán, turco, inglés, español, italiano, portugués, polaco, japonés, francés, entre otros. | F58: 0 | G58: Ofrece gran variedad de idiomas: chino, danés, inglés, alemán, español, francés, finlandés, japonés, portugués, coreano, ruso, tailandés, otros. | H58: 0 | I58: Ofrece alrededor de 41 idiomas - árabe, inglés, español, chino, tailandés, alemán, francés, danés, griego, húngaro, italiano, japonés, coreano, noruego, polaco, ruso, turco, otros. | J58: 0 | K58: Ofrece gran variedad de idiomas: inglés, francés, dinamarqués, italiano, español, danés, chino, portugués, japonés, rumano, polaco, turco, hebreo, griego, húngaro, ruso, español, entre otros. | L58: 0 | M58: Alrededor de 14 idiomas disponibles. | N58: 0 | O58: Gran variedad de idiomas: francés, alemán, español, italiano, portugués, holandés, chino, turco, entre otros. | P58: 0 | Q58: Disponible en casi todos los idiomas de los países donde ofrece el servicio. | R58: 0 | S58: Alrededor de 27 idiomas. | T58: 0 | U58: Alrededor de 33 idiomas. | V58: 0
B59: Múltiples capacidades de divisas | C59: x | D59: 5.555555556 | E59: x | F59: 5.555555556 | G59: x | H59: 5.555555556 | I59: x | J59: 5.555555556 | K59: x | L59: 5.555555556 | M59: x | N59: 5.555555556 | O59: x | P59: 5.555555556 | Q59: x | R59: 5.555555556 | S59: x | T59: 5.555555556 | U59: x | V59: 5.555555556
B60: Entrenamiento y capacitación | C60: Entrenamiento y capacitación por medio de foros, blogs, clases en vivo, clases virtuales, Sugar University, programa de certificación y base de conocimientos. | D60: 0 | E60: Acceso a documentación y material de entrenamiento en línea. Adicionalmente ofrece un programa de formación y clases virtuales. | F60: 0 | G60: Formación ilimitada en línea. | H60: 0 | I60: Formación y entrenamiento a partir de videos, foros, comunidades, asistencia por módulos, libros electrónicos, kit de aprendizaje y adopción. | J60: 0 | K60: Educación y entrenamiento en vivo 24/5. Reportes, foros, base de conocimiento y blog. | L60: 0 | M60: Entrenamiento por catálogo, roles, usuarios finales, certificaciones y bases de conocimiento. | N60: 0 | O60: Formación online disponible 24/7. Atención telefónica. Apoyo por email. Blog. 3 sesiones de formación remota. | P60: 0 | Q60: Dispone de capacitación a través de cursos presenciales y online, master, blog, foros, clases virtuales. | R60: 0 | S60: Aula presencial. Clases virtuales. Autodidáctico CD-ROM. Formación On Demand . Entrenamiento desde el módulo de soporte Oracle 24/7. Entrenamiento por roles y puesto de trabajo. | T60: 0 | U60: Entrenamiento en línea a través de clases virtuales, universidad Oracle, chat, email, blog, entre otros. | V60: 0
B61: Soporte técnico | C61: El soporte técnico y de mantenimiento ofrece servicio personalizado y con garantía de ajustes. Sin embargo, su sistema automático de actualización y su fácil interfaz reducen las barreras de adopción y los costes de formación. | D61: 0 | E61: Soporte remoto e inmediato 24/7. | F61: 0 | G61: Servicio ininterrumpido de asistencia gratuita 24/7. | H61: 0 | I61: Soporte técnico asistido y sistema de autoayuda. | J61: 0 | K61: Soporte 24/5 con compromiso del 99,9 % de resolución de casos. | L61: 0 | M61: Ofrece soporte inmediato a cualquier evento. | N61: 0 | O61: El soporte y la atención tendrán un coste adicional y unas condiciones dependiendo de la edición de CRM seleccionada. Atención telefónica (número gratuito) con compromiso de respuesta inmediata. Asistencia <24. Asistencia por Email. Manuales online. Boletín técnico mensual. | P61: 0 | Q61: Soporte técnico 24/7. Ofrece servicio de mantenimiento y actualización. | R61: 0 | S61: Soporte técnico en línea - 24/7 acceso al portal de soporte de Oracle. Soporte telefónico gratuito. | T61: 0 | U61: Respuestas y soporte telefónico y en línea 24/7. | V61: 0
B62: Agenda, calendario, lista de actividades y eventos - colaboración instantánea, los comentarios en línea y las funciones de chat. | C62: Ofrece al equipo la posibilidad de compartir documentos, organizar eventos, reuniones, recordatorios y notificaciones mediante el uso de calendarios. Las notificaciones y avisos de pueden enviar de manera personalizada y/o grupal. | D62: 0 | E62: Permite Organizar y realizar un seguimiento de todas las tareas, eventos y convocatorias. Establecer recordatorios y crear actividades recurrentes. Calendario, libro de notas, hojas de cálculo, entre otros. | F62: 0 | G62: Los calendarios, e-mail, la gestión de tareas y notas se encuentran completamente integrado. | H62: 0 | I62: Calendario y lista de actividades | J62: 0 | K62: Calendario, actividades y eventos integrados por email y teléfono. | L62: 0 | M62: Calendario, notas y eventos en tiempo real. | N62: 0 | O62: Agenda de contactos, calendario, comunicados y listas de actividades. | P62: 0 | Q62: Calendario, notificaciones, indicaciones para agendar una próxima visita y auto asignación de tareas y encuestas | R62: 0 | S62: Agenda, calendario, seguimiento de actividades, eventos, tareas, convocatorias, entre otras. | T62: 0 | U62: No se facilita información | V62: 0
B63: Chat en línea | C63: x | D63: 5.555555556 | E63: x | F63: 5.555555556 | G63: x | H63: 5.555555556 | I63: x | J63: 5.555555556 | K63: x | L63: 5.555555556 | M63: x | N63: 5.555555556 | O63: x | P63: 5.555555556 | Q63: x | R63: 5.555555556 | S63: x | T63: 5.555555556 | U63: x | V63: 5.555555556
B64: Escalabilidad del producto | C64: Al ser de código abierto, permite a los cliente crear sus propias extensiones, además de extenderse sin la necesidad de amarrarse a las características nativas del sistema. | D64: 0 | E64: Permite la integración de la cuenta de CRM con otras aplicaciones para crear soluciones de negocio totalmente escalables y personalizadas. | F64: 0 | G64: Es un productiro totalmente escalable, confiable y flexible. | H64: 0 | I64: Totalmente escalable y ágil. | J64: 0 | K64: La herramienta promete escalabilidad, no solo por la posibilidad de código abierto, si no por su adaptabilidad al mercado y sus constantes actualizaciones. | L64: 0 | M64: Es una herramienta totalmente escalable y crece de la mano con la empresa. | N64: 0 | O64: Sage es muy escalable, ya que soporta y proporciona ganancias de eficiencia operativa en las áreas comerciales, de soporte, formación y de gestión de proyectos. | P64: 0 | Q64: Posee un programa de investigación y desarrollo trabajando continuamente para mantenerse escalable en el tiempo y crecer junto a la empresa. | R64: 0 | S64: Oracle diseña sistemas de ingeniería que proporcionan flexibilidad e integración a lo largo de toda la empresa. Es escalable en el tiempo y se adapta a los nuevos cambios de las organizaciones. | T64: 0 | U64: Oracle diseña sistemas de ingeniería que proporcionan flexibilidad e integración a lo largo de toda la empresa. Es escalable en el tiempo y se adapta a los nuevos cambios de las organizaciones. | V64: 0
B65: Tiempo de implementación | C65: Por ser una herramienta de código abierto, puede convertirse en una implementación lenta y de difícil adaptación. Sin embargo, eso depende del equipo y del lider encargado de su implementación. | D65: 0 | E65: La implementación es rápida. La base HTML5 desde mac o linux permite iniciar las sesiones sin previa instalación | F65: 0 | G65: Implementación ágil y rápida. | H65: 0 | I65: Existen diversas versiones de implantación para que los clientes elijan la que más se adapte a su negocio. Si el cliente decide cambiar de versión, se puede realizar el cambio fácilmente. | J65: 0 | K65: La instalación se puede realiza por completo desde una interfaz web HTML / PHP. | L65: 0 | M65: La implementación se lleva a cabo a través de un equipo de expertos que colaborará con la implementación exitosa de la herramienta. | N65: 0 | O65: Es fácil de desplegar, instalar, gestionar, aprender y mantener para compañías que quieren poner foco en su negocio y no su software. | P65: 0 | Q65: Ofrece rápida implementación y funcionamiento. | R65: 0 | S65: Implementación rápida sin costos asociados a infraestructura. | T65: 0 | U65: Requiere de inversión de tiempo, planificación y dedicación para alcanzar los resultados esperados. | V65: 0
A66: Totales | B66: Total Funcionalidades Servicios | C66: =D66/100 -> 0.8888888889 | D66: =SUM(D35:D65) -> 88.88888889 | E66: =F66/100 -> 0.8888888889 | F66: =SUM(F35:F65) -> 88.88888889 | G66: =H66/100 -> 0.8888888889 | H66: =SUM(H35:H65) -> 88.88888889 | I66: =J66/100 -> 1 | J66: =SUM(J35:J65) -> 100 | K66: =L66/100 -> 0.8888888889 | L66: =SUM(L35:L65) -> 88.88888889 | M66: =N66/100 -> 0.8333333333 | N66: =SUM(N35:N65) -> 83.33333333 | O66: =P66/100 -> 0.9444444444 | P66: =SUM(P35:P65) -> 94.44444444 | Q66: =R66/100 -> 1 | R66: =SUM(R35:R65) -> 100 | S66: =T66/100 -> 1 | T66: =SUM(T35:T65) -> 100 | U66: =V66/100 -> 0.8333333333 | V66: =SUM(V35:V65) -> 83.33333333
A67: Tipo de empresa | B67: B2B | C67: x | E67: x | G67: x | I67: x | K67: x | M67: x | O67: x | Q67: x | S67: x | U67: x
B68: B2C | C68: x | E68: x | G68: x | I68: x | K68: x | M68: x | O68: x | Q68: x | S68: x | U68: x
B69: Microempresa | C69: x | E69: no | G69: no | I69: x | K69: x | M69: no | O69: no | Q69: no | S69: no | U69: no
B70: Pequeña | C70: x | E70: x | G70: x | I70: x | K70: x | M70: x | O70: x | Q70: x | S70: x | U70: x
B71: Mediana | C71: x | E71: x | G71: x | I71: x | K71: x | M71: x | O71: x | Q71: x | S71: x | U71: x
B72: Grande | C72: x | E72: no | G72: x | I72: no | K72: no | M72: x | O72: no | Q72: x | S72: x | U72: x
B73: Automoción | G73: x | S73: x
B74: Servicios | C74: x | I74: x | M74: x | O74: x
B75: Comercio | C75: x | G75: x | I75: x | S75: x
B76: Industria | C76: x | I76: x | M76: x | O76: x | S76: x | U76: x
B77: Turismo | U77: x
B78: Aseguradoras | C78: x | S78: x
B79: Institutos de investigación | S79: x
B80: Ingeniería
B81: Minoristas | C81: x | I81: x | U81: x
B82: Empresas informáticas
B83: Asociaciones y federaciones
B84: Auditoria y asesoramiento fiscal
B85: Bienes raíces | C85: x
B86: Consultoría empresarial
B87: sin fines de lucro | C87: x | I87: x | M87: x | U87: x
B88: Alimentación
B89: Medios de comunicación | C89: x | G89: x | M89: x
B90: Transporte y distribución | C90: x | O90: x
B91: Salud | C91: x | G91: x | M91: x | S91: x
B92: Gobierno y sector público | C92: x | G92: x | I92: x | U92: x
B93: Educativo | C93: x | M93: x | Q93: x
B94: Financiero | C94: x | G94: x | I94: x | M94: x | U94: x
B95: Tecnología | C95: x | E95: x | M95: x | Q95: x | S95: x | U95: x
B96: Telecomunicaciones | C96: x | E96: x | I96: x | M96: x | Q96: x | S96: x | U96: x
B97: Construcción
B98: Otros | C98: x | E98: x | G98: x | I98: x | K98: x | M98: x | O98: x | Q98: x | S98: x
A99: Fortalezas y debilidades | B99: Fortalezas | C99: _ Tiene su fuerte en la gestión de campañas de marketing. _ Permite despliegue tanto en la nube como "on premise". _ Ofrece gestión de inventarios. _ Ofrece perfil para los empleados. _ Precio accesible, incluso con versión gratuita. _ Lo apoya una respetable comunidad de seguidores y programadores. | E99: _ Ofrece gestión de productos. _ Ofrece gestión de proveedores, propuestas y facturas. _ Se integra con más de 20 aplicaciones Zoho. _ La versión de prueba ofrece todas las funcionalidades del producto. | G99: _ La interfaz es sumamente intuitiva, proporcionando al usuario una experiencia única y satisfactoria. _ Solicita opiniones a la comunidad y mejora constantemente sus ediciones. _ Excelente integración con las redes sociales. _ Líder en el mercado. | I99: _ La automatización de las fuerzas de ventas es su módulo más fuerte. _ Ofrece una experiencia de uso familiar. (Interfaz muy amigable y de fácil uso). _ Excelente integración con el escritorio. _ Red de socios fuerte. _ Sólida base tecnológica. | K99: _ Ofrece facilidad de descarga, implementación y uso. _ Tiene 20 módulos adaptables a las necesidades de la empresa. _ Ofrece gestión de inventarios y gestión de proyectos. _ Se actualiza con frecuencia con nuevas características y correcciones de errores. _ Actualizaciones fuera de horario de oficina. (Generalmente sábados en la tarde) | M99: _ Ofrece gestión de socios. _ Ofrece apoyo a los departamentos a través de información en tiempo real, basado en roles. _ Mejora la colaboración entre socios a través del buen manejo de campañas de marketing. _ Completa integración entre ventas y finanzas. _ Permite medir la efectividad de las campañas. _ Dota a los clientes de un portal de servicio personalizado e interactivo. _ Apuesta por la satisfacción y la retención de los clientes. _ Ofrece buenos niveles de acuerdos con los clientes. | O99: _ Mide y evalúa de forma comparativa y en tiempo real la satisfacción del cliente. _ Las actualizaciones de las versiones ocurren de manera automática. _ La opción en la nube ofrece acceso inmediato. _ Ofrece autoservicio web. | Q99: _ Es una de las empresas más reconocidas a nivel mundial. _ Posee una amplia gama de productos que pueden ayudar a la escalabilidad e integración de la empresa. _ Es de fácil integración con otros productos. | S99: _ Empresa reconocida y respetada a nivel mundial. _ Se integra fácilmente con todas las aplicaciones ofrecidas por Oracle en el sector empresarial. _ Posee una fuerte herramienta de automatización de fuerzas de venta. _ Ofrece un nivel de seguridad superior a los otros proveedores. | U99: _ Ofrece excelente soporte al cliente. _ Ayuda a la empresa a disminuir costos a través de su excelente herramienta de autoservicio online.
B100: Oportunidades | C100: _ Resistencia al uso de CRM de código abierto. _ Algunos clientes reclaman una débil oferta en lo que respecta a los módulos de servicios y ventas. _ La puesta en práctica puede ser lenta y difícil de manejar. | E100: _ Vaga integración entre los módulos. _ No aporta beneficios a micro empresas. _ No permite el despliegue "on permise" (en las instalaciones de la empresa). | G100: _ No permite el despliegue en nube pública o "on permise" (en las instalaciones de la empresa). _ La automatización de marketing requiere en ocasiones de la instalación de otras aplicaciones o productos de terceros. _ Ofrecen mejor orientación al B2B. _ El producto es bastante genérico y no toma en cuenta consideraciones especiales. | I100: _ Por ser Marketing su módulo más débil, para obtener funcionalidades como: marketing digital o análisis de marketing provechosos, en ocasiones se debe adquirir productos de terceros. _ No se integra facilmente con terceros. | K100: _ La aplicación para dispositivos móviles está disponible a partir de $20 por dispositivos. _ No ofrece gestión de propuestas, ni de cuotas de ventas. | M100: _ Para enriquecer algunas de las aplicaciones las empresas deberán adquirir aplicaciones de terceros como: Aprimo, Eloqua, Marketo o Pardot. Sólo Pardot ofrece integración embalaje para NetSuite. _ Precio elevado en comparación con competidores. | O100: _ El soporte y la atención tendrán un coste adicional y condiciones dependiendo de la edición de CRM seleccionada. | Q100: _ El producto CRM tiene relativamente pocos años en el mercado. _ Entre las aplicaciones disponibles en SAP, su fuerte son los sistemas ERP. - Producto bastante complejo si la empresa no tiene experiencia con otros productos de este proveedor. | S100: _ No posee una fuerte herramienta de automatización de servicios (el producto RightNow de la misma compañía ofrece un CRM indicado para servicios) _ Coste de adquisición por usuario elevado. | U100: _ Es un sistema CRM desbalanceado. _ El sistema ofrece una herramienta de automatización de fuerzas de venta débil en comparación con la fortaleza de servicio.
B101: Punto óptimo (Recomendación) | C101: _ Si la empresa está buscando una herramienta flexible y de código abierto. _ Si la empresa está buscando una solución que se integre fácilmente a las redes sociales. _ Si el presupuesto de adopción es limitado. | E101: _ Si la empresa está buscando una implementación rápida y fácil. _ Si el presupuesto de adopción es limitado. _ Si la empresa está en la búsqueda de un gestor de proyectos. _ Si la empresa busca una integración completa con plataformas en línea como Google. | G101: _ La empresa busca capacidades sociales estrechamente integradas. _ La atención del sistema se centrará en las ventas. _ La empresa se encuentra específicamente en uno de los sectores señalados como parte de la oferta (Ver sectores señalados en el cuadro). _ Los requerimientos no son inusuales y deseas llegar al mercado en corto tiempo. | I101: _ Si la empresa está en la búsqueda de un software de automatización de fuerzas de ventas. _ Si su empresa actualmente está utilizando los productos de Microsoft y Office. _ Si la empresa está buscando el menor costo total de propiedad (TCO) de las soluciones de CRM no modificados. | K101: _ La empresa está buscando un CRM de fácil uso. _ El presupuesto de la empresa es ajustado. _ La empresa podría estar interesada en una opción de código abierto. | M101: _ Su punto fuerte es la pequeña y la mediana empresa. _ Si la empresa busca soluciones más allá de CRM, que incluyan también recursos de contabilidad o sistemas ERP. _ Si la empresa es una organización con múltiples filiales y requiere de una solución en la nube segura y estable. | O101: _ Si la empresa posee otros productos Sage, por ejemplo: un sistema ERP. _ Si la empresa busca una herramienta de rápida implementación. | Q101: _ Si la empresa posee o está en planes de adquirir otros productos Sap. _ Si la empresa no tiene un presupuesto ajustado para la obtención de un sistema CRM. | S101: _ Si la empresa busca un CRM fuerte en la automatización de fuerzas de ventas. _ Si empresa posee otros productos Oracle. _ Si la empresa pertenece a algunos de los sectores seleccionados previamente. (Ver sectores señalados en el cuadro). (También se adapta a otros sectores). | U101: _ Si la empresa está en la búsqueda de una experiencia para el cliente. _ Si la empresa busca un buen apoyo de CRM social. _ Si la empresa pertenece a uno de los sectores identificados anteriormente. (Ver sectores señalados en el cuadro).
B102: Buscar soluciones alternativas | C102: _ Si la empresa requiere de funciones de conjuntos y de funcionalidades avanzadas en todos los módulos. | E102: _ Si la empresa está en la búsqueda de módulos de marketing. _ La empresa busca soluciones integrales. | G102: _ Los vendedores requieren de acceso a la gestión de inventarios. _ La empresa busca un software para la planificación de recursos empresariales. _ Si el presupuesto para la adopción es ajustado. | I102: _ Si la empresa está en la búsqueda de soluciones CRM específicas de la industria madura. _ Si la empresa utiliza sistemas operativos como: Oracle, Linux o Java / J2EE. | K102: _ Si la empresa busca una solución estándar con módulos pre diseñados. _ Si la empresa busca una solución que esté soportada por grandes corporaciones y socios. | M102: _ Si la empresa está en la búsqueda un CRM social. _ Si la empresa busca un centro de datos ubicado en su propio país. (no existen centros de datos en Europa) | O102: _ Si la empresa está buscando integración con sistemas heredados de otras compañías. _ Si la empresa tienen más de 250 empleados. | Q102: _ Si la empresa busca una solución económica y de fácil uso. _ Si la empresa tiene menos de 50 empleados. _ Si la empresa no posee expertos en productos Sap. | S102: _ Si la empresa está buscando una buena integración con las redes sociales. _ Si la empresa no posee otros productos Oracle. | U102: _ Si la empresa busca una herramienta fuerte de automatización de ventas y marketing.
B103: Especialidad | C103: Marketing | E103: Marketing, ventas y servicios | G103: Marketing, ventas y servicios | I103: Marketing, ventas y servicios | K103: Marketing, ventas y servicios | M103: Marketing, ventas y servicios | O103: Marketing, ventas y servicios | Q103: Marketing, ventas y servicios | S103: Ventas | U103: Servicio
A104: Precios y ediciones | B104: Versión gratuita | C104: x | E104: x | G104: no | I104: no | K104: x | M104: no | O104: no | Q104: no | S104: no | U104: no
B105: Tipo de pago | C105: Mensual o anual | E105: Mensual / anual (con 20% de descuento por pago anual) | G105: Mensual o anual | I105: Mensual o anual | K105: Mensual | M105: Mensual | O105: Mensual | Q105: Mensual o anual | S105: Mensual o anual | U105: Mensual / Anual
B106: Versión de prueba | C106: x | E106: x | G106: x | I106: x | K106: x | M106: x | O106: x | Q106: x | S106: x | U106: x
B107: Costo Mensual - Entre 0 y 70 $ usuario/mes | C107: x | E107: x | G107: x | I107: x | K107: x | M107: no | O107: x | Q107: (-) | S107: no | U107: (-)
B108: Costo Mensual - Entre 0 y 100 $ usuario/mes | C108: x | E108: no | G108: x | I108: x | K108: no | M108: x | O108: no | Q108: (-) | S108: no | U108: (-)
B109: Costo Mensual - Entre 0 y 200 $ usuario/mes | C109: x | E109: no | G109: x | I109: x | K109: no | M109: x | O109: no | Q109: (-) | S109: x | U109: (-)
B110: Costo Mensual - Entre 0 y 350 $ usuario/mes | C110: no | E110: no | G110: x | I110: no | K110: no | M110: x | O110: no | Q110: x | S110: x | U110: x
B111: Características y costo anual | C111: Depende de la versión se ofrecen diversas funcionalidades. | E111: Depende de la versión se ofrecen diversas funcionalidades. | G111: Depende de la versión se ofrecen diversas funcionalidades. | I111: Entre los $15 y los $65 dólares por usuario al mes. Según el tamaño de la empresa, así como las necesidades y personalizaciones deseadas, será recomendable una versión diferente. (Los precios y ediciones de los servicios varían según el país y el tipo de moneda con el que se efectúa el pago. A continuación se muestra la lista de precios disponible para Estados Unidos) | K111: Ofrece soporte y atención al cliente por el mismo precio. Generalmente se ofrece la opción de pago por tres años de servicio con precios especiales. Depende de la versión se ofrecen diversas funcionalidades. | M111: El costo por usuario está alrededor de los $99 y los 129$ al mes. Basado en contratos anuales. El precio del software normalmente varía dependiendo de la edición o línea de producto seleccionada. | O111: Las características y funcionalidades varían dependiendo de la edición seleccionada por la empresa. | Q111: Las características varían según la versión seleccionada. Sin embargo, la información sobre las versiones no está disponible directamente en la página web del proveedor. | S111: Depende de la versión se ofrecen diversas funcionalidades. | U111: No se facilita información
B112: Edición 1 | C112: Versión Gratuita - Community Edition | E112: Versión Gratuita | G112: Contact Manager | I112: Essential | K112: Vtiger CRM - Open Source | M112: NetSuite no comunica públicamente los precios de sus productos, incluso tiene un contrato con sus clientes para que no se hagan públicos los precios. | O112: Sage Cloud CRM | Q112: Sap no comunica públicamente los precios de sus productos. | S112: Estándar edition | U112: Rightnow no comunica públicamente los precios de sus productos.
B113: Monto | C113: $0 | E113: $0 usuario/mes | G113: € 5 usuario/mes | I113: $15 usuario/mes - Varía según país | K113: Gratuita | O113: $39 usuario/mes | S113: $ 100 usuario / mes
B114: Funciones | C114: La versión gratuita o de código abierto, es una buena opción para los desarrolladores. Esta versión requiere de instalación y configuración. Requiere PHP, un servidor web y una base de datos. Licencia Pública GNU Affero General. | E114: Gestión de clientes potenciales (Retención de clientes). Gestión de cuentas y contactos. Gestión de oportunidades de venta. CRM Social (Redes sociales). Web Forms. API para desarrolladores. Acceso Móvil. 5.000 registros. | G114: Incluye las siguientes funciones: Gestión de cuentas y contactos. Seguimiento de tareas, promociones y eventos. Integración de correo electrónico Outlook y Gmail. Acceso móvil. Biblioteca de contenido. Informes personalizables. Chatter: ofrece red social empresarial (Chat Online). Gestión de contactos para un máximo de 5 usuarios. | I114: Varía según requisitos de la empresa. (Puede no ser un precio fijo) | K114: La mayoría de las funcionalidades son pagas. La versión gratuita incluye: Integración con Google Contact/Call. 20 módulos diferentes. Acceso móvil. (La adquisición de la aplicación móvil requiere de una única inversión de $20 por dispositivo.) | O114: Sage CRM Essentials incluye: Gestión de contactos. Gestión de oportunidades. Previsiones de ventas. Gestión de presupuestos y pedidos. Gestión de clientes potenciales. | S114: Gestión de redes sociales. Cuadro de mandos. Gestión de previsión de ventas. Gestión de clientes potenciales. Catálogo Ventas. Acceso móvil. Gestión de territorio. Fusión con otros productos Oracle. Administración de cuotas.
B115: Edición 2 | C115: Sugar professional | E115: Standard | G115: Group | I115: Basic | K115: Vtiger CRM On Demand | O115: Sage CRM On-Premise | S115: Enterprise Edition
B116: Monto | C116: $35 usuario/mes | E116: $12 usuario/mes | G116: € 25 usuario/mes | I116: $30 usuario/mes - Varía según país | K116: $12 Usuario/mes | O116: Contactar cliente | S116: $ 140 usuario / mes
B117: Funciones | C117: Automatización y previsión de ventas. Automatización de marketing. Automatización de servicios. La automatización del centro de llamadas. Presentación de informes y cuadros de mando. Aplicación SugarCRM móvil (Android y Apple). En la nube o en las instalaciones de despliegue ofrece almacenamiento de 15 GB. Ilimitada formación y webcasts en línea de productos. Portal de soporte en línea conveniente. Gestión de casos de soporte ilimitado. Gestión de presupuestos y contratos. Gestión de equipos de trabajo. La suscripción anual mínima es de $ 4,200 al año, incluyendo 10 licencias de usuario Gestión integral del flujo de trabajo. | E117: Tiene todas las características de la edición gratuita más: Previsión de ventas. Informes y reportes. Cuadros de Mando. Biblioteca y gestión de documentos. Campañas de Marketing. Email Marketing. Personalización del producto. 100.000 registros. | G117: Todas las funciones de la edición Contact Manager más: Gestión de oportunidades. Puntuación, enrutamiento y asignación de candidatos. Seguimiento de correos electrónicos. Plantillas de correos e informes. | I117: Varía según requisitos de la empresa. (Puede no ser un precio fijo) | K117: La compra de 3 años de servicio incluye entrenamiento, apoyo, alojamiento y administración IT. Adicionalmente ofrece: Email Marketing. Plantillas de correo electrónico e informes. Integración de facturación. Personalizaciones avanzadas. Google Contacto Integración / Call. 20 módulos diferentes. Acceso Móvil ** (La adquisición de la aplicación móvil requiere de una única inversión de $20 por dispositivo). Soporte por email y teléfono 24/5. Servicios de Administración. Actualizaciones automáticas bimensuales. Copias de seguridad automáticas. | O117: Esta solución no se ofrece en el modelo de despliegue en la nube | S117: Todas las funciones de la edición Standard, más: Campañas de ventas. Incentivos de compensación.
B118: Edición 3 | C118: Sugar enterprise | E118: Professional | G118: Professional | I118: Professional | K118: (-) | O118: (-) | S118: Premium Edition
B119: Monto | C119: $60 usuario/mes | E119: $20 usuario/mes | G119: € 65 usuario/mes | I119: $53 usuario/mes - Varía según país | K119: (-) | O119: (-) | S119: $ 200 usuario / mes
B120: Funciones | C120: Versión comercial desarrollada para satisfacer los requerimientos de la mayor parte de las empresas. Ofrece: Gestión de oportunidades. Previsión de ventas. Portal de autoservicio para los clientes. Flujos de actividad personalizados. La presentación de informes de SQL Native. Asistencia telefónica Opción de nube privada de almacenamiento de 60 GB. La suscripción anual mínima es de $ 7,200 al año, incluyendo 10 licencias de usuarios. | E120: Tiene todas las características de la versión Standard más: Gestión e Integración de Email. Atención al cliente. Gestión de inventario. Seguridad basada en roles. Registros ilimitados. | G120: Todas las funciones de la edición Group más: Correo electrónico masivo. Campañas de marketing. Paneles personalizables. CRM completo para equipos de cualquier tamaño. | I120: Seguimiento de las redes sociales. Seguimiento de flujos de trabajo. Automatización de fuerzas de ventas. Automatización de servicio al cliente. Campañas de ventas. Informes y paneles personalizados. Integración mediante servicios web. Acceso a dispositivos móviles. | K120: (-) | O120: (-) | S120: Todas las funciones de la edición Enterprise, más: Base y gestión de contratos
B121: Edición 4 | C121: Sugar Utimate | E121: Enterprise | G121: Enterprise | I121: Enterprise | K121: (-) | O121: (-) | S121: (-)
B122: Monto | C122: $150 usuario/ mes | E122: $35 usuario/mes | G122: € 125 usuario/mes | I122: $163 usuario/mes - Varía según país | K122: (-) | O122: (-) | S122: (-)
B123: Funciones | C123: Solamente disponible en la nube. Soporte 24x7. Cloud privado incluido de almacenamiento de 250 GB | E123: Tiene todas las características de la versión Professional más: Gestión de territorios. Módulos personalizados. Posibilidad de varias divisas. Búsqueda avanzada. Integración con el centro de llamadas. Integración con el Help Desk. | G123: Todas las funciones de la edición Professional más: Automatización de flujos de trabajo. Integración mediante API de servicios web. Perfiles y formatos de página. Desarrollo de aplicaciones personalizadas. CRM personalizado para toda la empresa. | I123: Todas las funciones de la edición Professional más: Microsoft Dynamics Marketing. Gestión de casos. Gestión de marca. Gestión del conocimiento. Atención al cliente através de medios sociales. Chat en web. Centro de servicios centralizado. Acceso a personalizaciones y extensiones | K123: (-) | O123: (-) | S123: (-)
B124: Edición 5 | C124: (-) | D124: (-) | E124: (-) | G124: Performance | I124: Posibilidad de combinar funcionalidades | K124: (-) | O124: (-) | S124: (-)
B125: Monto | C125: (-) | E125: (-) | G125: € 300 usuario/mes | I125: (-) | K125: (-) | O125: (-) | S125: (-)
B126: Funciones | C126: (-) | E126: (-) | G126: Todas las funciones de la edición Enterprise más: Desarrollo ilimitado de aplicaciones personalizadas. Chat desde la página web para los clientes. CRM ampliado para acelerar el rendimiento. | I126: (-) | K126: (-) | O126: (-) | S126: (-)
A127: Gráficas | B127: Torta de porcentajes, en donde se indica en base a un 100% la cantidad de funcionalidades disponibles en cada módulos, en base a las funcionalidades descritas en el cuadro en cuestión.

Sheet Imprimir (hidden)
B1: Para tener acceso al resumen del cuadro comparativo con las soluciones que se adaptan a las necesidades de su empresa, por favor pulser el botón *INICIO FORMULARIO* | C1: Cuadro comparativo con opciones recomendadas - Versión personalizada
A2: Módulo | B2: Funcionalidades | C2: Zoho | D2: SalesForce | E2: Microsoft Dynamics | F2: Vtiger | G2: NetSuite | H2: Sage
A3: Página proveedor | B3: Página Web principal | C3: =IF($C$2=Comparativa!$C$2,Comparativa!C3,IF($C$2=Comparativa!$E$2,Comparativa!E3,IF($C$2=Comparativa!$G$2,Comparativa!G3,IF($C$2=Comparativa!$I$2,Comparativa!I3,IF($C$2=Comparativa!$K$2,Comparativa!K3,IF($C$2=Comparativa!$M$2,Comparativa!M3,IF($C$2=Comparativa!$O$2,Comparativa!O3,IF($C$2=Comparativa!$Q$2,Comparativa!Q3,IF($C$2=Comparativa!$S$2,Comparativa!S3,IF($C$2=Comparativa!$U$2,Comparativa!U3,"")))))))))) -> La página principal de Zoho CRM es de fácil uso, la información se encuentra distribuida de manera similar a la estructura física del software. Muestra información completa sobre funcionalidades, precios y ediciones del producto. | D3: =IF($D$2=Comparativa!$C$2,Comparativa!C3,IF($D$2=Comparativa!$E$2,Comparativa!E3,IF($D$2=Comparativa!$G$2,Comparativa!G3,IF($D$2=Comparativa!$I$2,Comparativa!I3,IF($D$2=Comparativa!$K$2,Comparativa!K3,IF($D$2=Comparativa!$M$2,Comparativa!M3,IF($D$2=Comparativa!$O$2,Comparativa!O3,IF($D$2=Comparativa!$Q$2,Comparativa!Q3,IF($D$2=Comparativa!$S$2,Comparativa!S3,IF($D$2=Comparativa!$U$2,Comparativa!U3,"")))))))))) -> La página principal de SalceForce es de fácil uso. Muestra información completa sobre funcionalidades, precios y ediciones del producto. | E3: =IF($E$2=Comparativa!$C$2,Comparativa!C3,IF($E$2=Comparativa!$E$2,Comparativa!E3,IF($E$2=Comparativa!$G$2,Comparativa!G3,IF($E$2=Comparativa!$I$2,Comparativa!I3,IF($E$2=Comparativa!$K$2,Comparativa!K3,IF($E$2=Comparativa!$M$2,Comparativa!M3,IF($E$2=Comparativa!$O$2,Comparativa!O3,IF($E$2=Comparativa!$Q$2,Comparativa!Q3,IF($E$2=Comparativa!$S$2,Comparativa!S3,IF($E$2=Comparativa!$U$2,Comparativa!U3,"")))))))))) -> La página principal de Microsoft Dynamics es de fácil uso, y posee información clave. No muestra precios y ediciones del producto (Contactar cliente). | F3: =IF($F$2=Comparativa!$C$2,Comparativa!C3,IF($F$2=Comparativa!$E$2,Comparativa!E3,IF($F$2=Comparativa!$G$2,Comparativa!G3,IF($F$2=Comparativa!$I$2,Comparativa!I3,IF($F$2=Comparativa!$K$2,Comparativa!K3,IF($F$2=Comparativa!$M$2,Comparativa!M3,IF($F$2=Comparativa!$O$2,Comparativa!O3,IF($F$2=Comparativa!$Q$2,Comparativa!Q3,IF($F$2=Comparativa!$S$2,Comparativa!S3,IF($F$2=Comparativa!$U$2,Comparativa!U3,"")))))))))) -> La página principal de Vtiger es de fácil uso. Muestra información completa sobre funcionalidades, precios y ediciones del producto. | G3: =IF($G$2=Comparativa!$C$2,Comparativa!C3,IF($G$2=Comparativa!$E$2,Comparativa!E3,IF($G$2=Comparativa!$G$2,Comparativa!G3,IF($G$2=Comparativa!$I$2,Comparativa!I3,IF($G$2=Comparativa!$K$2,Comparativa!K3,IF($G$2=Comparativa!$M$2,Comparativa!M3,IF($G$2=Comparativa!$O$2,Comparativa!O3,IF($G$2=Comparativa!$Q$2,Comparativa!Q3,IF($G$2=Comparativa!$S$2,Comparativa!S3,IF($G$2=Comparativa!$U$2,Comparativa!U3,"")))))))))) -> La página principal de NetSuite es de fácil uso. No muestra información completa sobre funcionalidades, precios y ediciones del producto. | H3: =IF($H$2=Comparativa!$C$2,Comparativa!C3,IF($H$2=Comparativa!$E$2,Comparativa!E3,IF($H$2=Comparativa!$G$2,Comparativa!G3,IF($H$2=Comparativa!$I$2,Comparativa!I3,IF($H$2=Comparativa!$K$2,Comparativa!K3,IF($H$2=Comparativa!$M$2,Comparativa!M3,IF($H$2=Comparativa!$O$2,Comparativa!O3,IF($H$2=Comparativa!$Q$2,Comparativa!Q3,IF($H$2=Comparativa!$S$2,Comparativa!S3,IF($H$2=Comparativa!$U$2,Comparativa!U3,"")))))))))) -> La página principal de Sage es de fácil uso. Muestra información completa sobre funcionalidades, precios y ediciones del producto. | I3: =IF($I$2=Comparativa!$C$2,Comparativa!C3,IF($I$2=Comparativa!$E$2,Comparativa!E3,IF($I$2=Comparativa!$G$2,Comparativa!G3,IF($I$2=Comparativa!$I$2,Comparativa!I3,IF($I$2=Comparativa!$K$2,Comparativa!K3,IF($I$2=Comparativa!$M$2,Comparativa!M3,IF($I$2=Comparativa!$O$2,Comparativa!O3,IF($I$2=Comparativa!$Q$2,Comparativa!Q3,IF($I$2=Comparativa!$S$2,Comparativa!S3,IF($I$2=Comparativa!$U$2,Comparativa!U3,"")))))))))) ->  | J3: =IF($J$2=Comparativa!$C$2,Comparativa!C3,IF($J$2=Comparativa!$E$2,Comparativa!E3,IF($J$2=Comparativa!$G$2,Comparativa!G3,IF($J$2=Comparativa!$I$2,Comparativa!I3,IF($J$2=Comparativa!$K$2,Comparativa!K3,IF($J$2=Comparativa!$M$2,Comparativa!M3,IF($J$2=Comparativa!$O$2,Comparativa!O3,IF($J$2=Comparativa!$Q$2,Comparativa!Q3,IF($J$2=Comparativa!$S$2,Comparativa!S3,IF($J$2=Comparativa!$U$2,Comparativa!U3,"")))))))))) ->  | K3: =IF($K$2=Comparativa!$C$2,Comparativa!C3,IF($K$2=Comparativa!$E$2,Comparativa!E3,IF($K$2=Comparativa!$G$2,Comparativa!G3,IF($K$2=Comparativa!$I$2,Comparativa!I3,IF($K$2=Comparativa!$K$2,Comparativa!K3,IF($K$2=Comparativa!$M$2,Comparativa!M3,IF($K$2=Comparativa!$O$2,Comparativa!O3,IF($K$2=Comparativa!$Q$2,Comparativa!Q3,IF($K$2=Comparativa!$S$2,Comparativa!S3,IF($K$2=Comparativa!$U$2,Comparativa!U3,"")))))))))) ->  | L3: =IF($L$2=Comparativa!$C$2,Comparativa!C3,IF($L$2=Comparativa!$E$2,Comparativa!E3,IF($L$2=Comparativa!$G$2,Comparativa!G3,IF($L$2=Comparativa!$I$2,Comparativa!I3,IF($L$2=Comparativa!$K$2,Comparativa!K3,IF($L$2=Comparativa!$M$2,Comparativa!M3,IF($L$2=Comparativa!$O$2,Comparativa!O3,IF($L$2=Comparativa!$Q$2,Comparativa!Q3,IF($L$2=Comparativa!$S$2,Comparativa!S3,IF($L$2=Comparativa!$U$2,Comparativa!U3,"")))))))))) -> 
A4: Ventas | B4: Gestión de contactos | C4: =IF($C$2=Comparativa!$C$2,Comparativa!C4,IF($C$2=Comparativa!$E$2,Comparativa!E4,IF($C$2=Comparativa!$G$2,Comparativa!G4,IF($C$2=Comparativa!$I$2,Comparativa!I4,IF($C$2=Comparativa!$K$2,Comparativa!K4,IF($C$2=Comparativa!$M$2,Comparativa!M4,IF($C$2=Comparativa!$O$2,Comparativa!O4,IF($C$2=Comparativa!$Q$2,Comparativa!Q4,IF($C$2=Comparativa!$S$2,Comparativa!S4,IF($C$2=Comparativa!$U$2,Comparativa!U4,"")))))))))) -> x | D4: =IF($D$2=Comparativa!$C$2,Comparativa!C4,IF($D$2=Comparativa!$E$2,Comparativa!E4,IF($D$2=Comparativa!$G$2,Comparativa!G4,IF($D$2=Comparativa!$I$2,Comparativa!I4,IF($D$2=Comparativa!$K$2,Comparativa!K4,IF($D$2=Comparativa!$M$2,Comparativa!M4,IF($D$2=Comparativa!$O$2,Comparativa!O4,IF($D$2=Comparativa!$Q$2,Comparativa!Q4,IF($D$2=Comparativa!$S$2,Comparativa!S4,IF($D$2=Comparativa!$U$2,Comparativa!U4,"")))))))))) -> x | E4: =IF($E$2=Comparativa!$C$2,Comparativa!C4,IF($E$2=Comparativa!$E$2,Comparativa!E4,IF($E$2=Comparativa!$G$2,Comparativa!G4,IF($E$2=Comparativa!$I$2,Comparativa!I4,IF($E$2=Comparativa!$K$2,Comparativa!K4,IF($E$2=Comparativa!$M$2,Comparativa!M4,IF($E$2=Comparativa!$O$2,Comparativa!O4,IF($E$2=Comparativa!$Q$2,Comparativa!Q4,IF($E$2=Comparativa!$S$2,Comparativa!S4,IF($E$2=Comparativa!$U$2,Comparativa!U4,"")))))))))) -> x | F4: =IF($F$2=Comparativa!$C$2,Comparativa!C4,IF($F$2=Comparativa!$E$2,Comparativa!E4,IF($F$2=Comparativa!$G$2,Comparativa!G4,IF($F$2=Comparativa!$I$2,Comparativa!I4,IF($F$2=Comparativa!$K$2,Comparativa!K4,IF($F$2=Comparativa!$M$2,Comparativa!M4,IF($F$2=Comparativa!$O$2,Comparativa!O4,IF($F$2=Comparativa!$Q$2,Comparativa!Q4,IF($F$2=Comparativa!$S$2,Comparativa!S4,IF($F$2=Comparativa!$U$2,Comparativa!U4,"")))))))))) -> x | G4: =IF($G$2=Comparativa!$C$2,Comparativa!C4,IF($G$2=Comparativa!$E$2,Comparativa!E4,IF($G$2=Comparativa!$G$2,Comparativa!G4,IF($G$2=Comparativa!$I$2,Comparativa!I4,IF($G$2=Comparativa!$K$2,Comparativa!K4,IF($G$2=Comparativa!$M$2,Comparativa!M4,IF($G$2=Comparativa!$O$2,Comparativa!O4,IF($G$2=Comparativa!$Q$2,Comparativa!Q4,IF($G$2=Comparativa!$S$2,Comparativa!S4,IF($G$2=Comparativa!$U$2,Comparativa!U4,"")))))))))) -> x | H4: =IF($H$2=Comparativa!$C$2,Comparativa!C4,IF($H$2=Comparativa!$E$2,Comparativa!E4,IF($H$2=Comparativa!$G$2,Comparativa!G4,IF($H$2=Comparativa!$I$2,Comparativa!I4,IF($H$2=Comparativa!$K$2,Comparativa!K4,IF($H$2=Comparativa!$M$2,Comparativa!M4,IF($H$2=Comparativa!$O$2,Comparativa!O4,IF($H$2=Comparativa!$Q$2,Comparativa!Q4,IF($H$2=Comparativa!$S$2,Comparativa!S4,IF($H$2=Comparativa!$U$2,Comparativa!U4,"")))))))))) -> x | I4: =IF($I$2=Comparativa!$C$2,Comparativa!C4,IF($I$2=Comparativa!$E$2,Comparativa!E4,IF($I$2=Comparativa!$G$2,Comparativa!G4,IF($I$2=Comparativa!$I$2,Comparativa!I4,IF($I$2=Comparativa!$K$2,Comparativa!K4,IF($I$2=Comparativa!$M$2,Comparativa!M4,IF($I$2=Comparativa!$O$2,Comparativa!O4,IF($I$2=Comparativa!$Q$2,Comparativa!Q4,IF($I$2=Comparativa!$S$2,Comparativa!S4,IF($I$2=Comparativa!$U$2,Comparativa!U4,"")))))))))) ->  | J4: =IF($J$2=Comparativa!$C$2,Comparativa!C4,IF($J$2=Comparativa!$E$2,Comparativa!E4,IF($J$2=Comparativa!$G$2,Comparativa!G4,IF($J$2=Comparativa!$I$2,Comparativa!I4,IF($J$2=Comparativa!$K$2,Comparativa!K4,IF($J$2=Comparativa!$M$2,Comparativa!M4,IF($J$2=Comparativa!$O$2,Comparativa!O4,IF($J$2=Comparativa!$Q$2,Comparativa!Q4,IF($J$2=Comparativa!$S$2,Comparativa!S4,IF($J$2=Comparativa!$U$2,Comparativa!U4,"")))))))))) ->  | K4: =IF($K$2=Comparativa!$C$2,Comparativa!C4,IF($K$2=Comparativa!$E$2,Comparativa!E4,IF($K$2=Comparativa!$G$2,Comparativa!G4,IF($K$2=Comparativa!$I$2,Comparativa!I4,IF($K$2=Comparativa!$K$2,Comparativa!K4,IF($K$2=Comparativa!$M$2,Comparativa!M4,IF($K$2=Comparativa!$O$2,Comparativa!O4,IF($K$2=Comparativa!$Q$2,Comparativa!Q4,IF($K$2=Comparativa!$S$2,Comparativa!S4,IF($K$2=Comparativa!$U$2,Comparativa!U4,"")))))))))) ->  | L4: =IF($L$2=Comparativa!$C$2,Comparativa!C4,IF($L$2=Comparativa!$E$2,Comparativa!E4,IF($L$2=Comparativa!$G$2,Comparativa!G4,IF($L$2=Comparativa!$I$2,Comparativa!I4,IF($L$2=Comparativa!$K$2,Comparativa!K4,IF($L$2=Comparativa!$M$2,Comparativa!M4,IF($L$2=Comparativa!$O$2,Comparativa!O4,IF($L$2=Comparativa!$Q$2,Comparativa!Q4,IF($L$2=Comparativa!$S$2,Comparativa!S4,IF($L$2=Comparativa!$U$2,Comparativa!U4,"")))))))))) -> 
B5: Gestión de oportunidades | C5: =IF($C$2=Comparativa!$C$2,Comparativa!C5,IF($C$2=Comparativa!$E$2,Comparativa!E5,IF($C$2=Comparativa!$G$2,Comparativa!G5,IF($C$2=Comparativa!$I$2,Comparativa!I5,IF($C$2=Comparativa!$K$2,Comparativa!K5,IF($C$2=Comparativa!$M$2,Comparativa!M5,IF($C$2=Comparativa!$O$2,Comparativa!O5,IF($C$2=Comparativa!$Q$2,Comparativa!Q5,IF($C$2=Comparativa!$S$2,Comparativa!S5,IF($C$2=Comparativa!$U$2,Comparativa!U5,"")))))))))) -> x | D5: =IF($D$2=Comparativa!$C$2,Comparativa!C5,IF($D$2=Comparativa!$E$2,Comparativa!E5,IF($D$2=Comparativa!$G$2,Comparativa!G5,IF($D$2=Comparativa!$I$2,Comparativa!I5,IF($D$2=Comparativa!$K$2,Comparativa!K5,IF($D$2=Comparativa!$M$2,Comparativa!M5,IF($D$2=Comparativa!$O$2,Comparativa!O5,IF($D$2=Comparativa!$Q$2,Comparativa!Q5,IF($D$2=Comparativa!$S$2,Comparativa!S5,IF($D$2=Comparativa!$U$2,Comparativa!U5,"")))))))))) -> x | E5: =IF($E$2=Comparativa!$C$2,Comparativa!C5,IF($E$2=Comparativa!$E$2,Comparativa!E5,IF($E$2=Comparativa!$G$2,Comparativa!G5,IF($E$2=Comparativa!$I$2,Comparativa!I5,IF($E$2=Comparativa!$K$2,Comparativa!K5,IF($E$2=Comparativa!$M$2,Comparativa!M5,IF($E$2=Comparativa!$O$2,Comparativa!O5,IF($E$2=Comparativa!$Q$2,Comparativa!Q5,IF($E$2=Comparativa!$S$2,Comparativa!S5,IF($E$2=Comparativa!$U$2,Comparativa!U5,"")))))))))) -> x | F5: =IF($F$2=Comparativa!$C$2,Comparativa!C5,IF($F$2=Comparativa!$E$2,Comparativa!E5,IF($F$2=Comparativa!$G$2,Comparativa!G5,IF($F$2=Comparativa!$I$2,Comparativa!I5,IF($F$2=Comparativa!$K$2,Comparativa!K5,IF($F$2=Comparativa!$M$2,Comparativa!M5,IF($F$2=Comparativa!$O$2,Comparativa!O5,IF($F$2=Comparativa!$Q$2,Comparativa!Q5,IF($F$2=Comparativa!$S$2,Comparativa!S5,IF($F$2=Comparativa!$U$2,Comparativa!U5,"")))))))))) -> x | G5: =IF($G$2=Comparativa!$C$2,Comparativa!C5,IF($G$2=Comparativa!$E$2,Comparativa!E5,IF($G$2=Comparativa!$G$2,Comparativa!G5,IF($G$2=Comparativa!$I$2,Comparativa!I5,IF($G$2=Comparativa!$K$2,Comparativa!K5,IF($G$2=Comparativa!$M$2,Comparativa!M5,IF($G$2=Comparativa!$O$2,Comparativa!O5,IF($G$2=Comparativa!$Q$2,Comparativa!Q5,IF($G$2=Comparativa!$S$2,Comparativa!S5,IF($G$2=Comparativa!$U$2,Comparativa!U5,"")))))))))) -> x | H5: =IF($H$2=Comparativa!$C$2,Comparativa!C5,IF($H$2=Comparativa!$E$2,Comparativa!E5,IF($H$2=Comparativa!$G$2,Comparativa!G5,IF($H$2=Comparativa!$I$2,Comparativa!I5,IF($H$2=Comparativa!$K$2,Comparativa!K5,IF($H$2=Comparativa!$M$2,Comparativa!M5,IF($H$2=Comparativa!$O$2,Comparativa!O5,IF($H$2=Comparativa!$Q$2,Comparativa!Q5,IF($H$2=Comparativa!$S$2,Comparativa!S5,IF($H$2=Comparativa!$U$2,Comparativa!U5,"")))))))))) -> x | I5: =IF($I$2=Comparativa!$C$2,Comparativa!C5,IF($I$2=Comparativa!$E$2,Comparativa!E5,IF($I$2=Comparativa!$G$2,Comparativa!G5,IF($I$2=Comparativa!$I$2,Comparativa!I5,IF($I$2=Comparativa!$K$2,Comparativa!K5,IF($I$2=Comparativa!$M$2,Comparativa!M5,IF($I$2=Comparativa!$O$2,Comparativa!O5,IF($I$2=Comparativa!$Q$2,Comparativa!Q5,IF($I$2=Comparativa!$S$2,Comparativa!S5,IF($I$2=Comparativa!$U$2,Comparativa!U5,"")))))))))) ->  | J5: =IF($J$2=Comparativa!$C$2,Comparativa!C5,IF($J$2=Comparativa!$E$2,Comparativa!E5,IF($J$2=Comparativa!$G$2,Comparativa!G5,IF($J$2=Comparativa!$I$2,Comparativa!I5,IF($J$2=Comparativa!$K$2,Comparativa!K5,IF($J$2=Comparativa!$M$2,Comparativa!M5,IF($J$2=Comparativa!$O$2,Comparativa!O5,IF($J$2=Comparativa!$Q$2,Comparativa!Q5,IF($J$2=Comparativa!$S$2,Comparativa!S5,IF($J$2=Comparativa!$U$2,Comparativa!U5,"")))))))))) ->  | K5: =IF($K$2=Comparativa!$C$2,Comparativa!C5,IF($K$2=Comparativa!$E$2,Comparativa!E5,IF($K$2=Comparativa!$G$2,Comparativa!G5,IF($K$2=Comparativa!$I$2,Comparativa!I5,IF($K$2=Comparativa!$K$2,Comparativa!K5,IF($K$2=Comparativa!$M$2,Comparativa!M5,IF($K$2=Comparativa!$O$2,Comparativa!O5,IF($K$2=Comparativa!$Q$2,Comparativa!Q5,IF($K$2=Comparativa!$S$2,Comparativa!S5,IF($K$2=Comparativa!$U$2,Comparativa!U5,"")))))))))) ->  | L5: =IF($L$2=Comparativa!$C$2,Comparativa!C5,IF($L$2=Comparativa!$E$2,Comparativa!E5,IF($L$2=Comparativa!$G$2,Comparativa!G5,IF($L$2=Comparativa!$I$2,Comparativa!I5,IF($L$2=Comparativa!$K$2,Comparativa!K5,IF($L$2=Comparativa!$M$2,Comparativa!M5,IF($L$2=Comparativa!$O$2,Comparativa!O5,IF($L$2=Comparativa!$Q$2,Comparativa!Q5,IF($L$2=Comparativa!$S$2,Comparativa!S5,IF($L$2=Comparativa!$U$2,Comparativa!U5,"")))))))))) -> 
B6: Gestión de propuestas | C6: =IF($C$2=Comparativa!$C$2,Comparativa!C6,IF($C$2=Comparativa!$E$2,Comparativa!E6,IF($C$2=Comparativa!$G$2,Comparativa!G6,IF($C$2=Comparativa!$I$2,Comparativa!I6,IF($C$2=Comparativa!$K$2,Comparativa!K6,IF($C$2=Comparativa!$M$2,Comparativa!M6,IF($C$2=Comparativa!$O$2,Comparativa!O6,IF($C$2=Comparativa!$Q$2,Comparativa!Q6,IF($C$2=Comparativa!$S$2,Comparativa!S6,IF($C$2=Comparativa!$U$2,Comparativa!U6,"")))))))))) -> x | D6: =IF($D$2=Comparativa!$C$2,Comparativa!C6,IF($D$2=Comparativa!$E$2,Comparativa!E6,IF($D$2=Comparativa!$G$2,Comparativa!G6,IF($D$2=Comparativa!$I$2,Comparativa!I6,IF($D$2=Comparativa!$K$2,Comparativa!K6,IF($D$2=Comparativa!$M$2,Comparativa!M6,IF($D$2=Comparativa!$O$2,Comparativa!O6,IF($D$2=Comparativa!$Q$2,Comparativa!Q6,IF($D$2=Comparativa!$S$2,Comparativa!S6,IF($D$2=Comparativa!$U$2,Comparativa!U6,"")))))))))) -> x | E6: =IF($E$2=Comparativa!$C$2,Comparativa!C6,IF($E$2=Comparativa!$E$2,Comparativa!E6,IF($E$2=Comparativa!$G$2,Comparativa!G6,IF($E$2=Comparativa!$I$2,Comparativa!I6,IF($E$2=Comparativa!$K$2,Comparativa!K6,IF($E$2=Comparativa!$M$2,Comparativa!M6,IF($E$2=Comparativa!$O$2,Comparativa!O6,IF($E$2=Comparativa!$Q$2,Comparativa!Q6,IF($E$2=Comparativa!$S$2,Comparativa!S6,IF($E$2=Comparativa!$U$2,Comparativa!U6,"")))))))))) -> x | F6: =IF($F$2=Comparativa!$C$2,Comparativa!C6,IF($F$2=Comparativa!$E$2,Comparativa!E6,IF($F$2=Comparativa!$G$2,Comparativa!G6,IF($F$2=Comparativa!$I$2,Comparativa!I6,IF($F$2=Comparativa!$K$2,Comparativa!K6,IF($F$2=Comparativa!$M$2,Comparativa!M6,IF($F$2=Comparativa!$O$2,Comparativa!O6,IF($F$2=Comparativa!$Q$2,Comparativa!Q6,IF($F$2=Comparativa!$S$2,Comparativa!S6,IF($F$2=Comparativa!$U$2,Comparativa!U6,"")))))))))) -> no | G6: =IF($G$2=Comparativa!$C$2,Comparativa!C6,IF($G$2=Comparativa!$E$2,Comparativa!E6,IF($G$2=Comparativa!$G$2,Comparativa!G6,IF($G$2=Comparativa!$I$2,Comparativa!I6,IF($G$2=Comparativa!$K$2,Comparativa!K6,IF($G$2=Comparativa!$M$2,Comparativa!M6,IF($G$2=Comparativa!$O$2,Comparativa!O6,IF($G$2=Comparativa!$Q$2,Comparativa!Q6,IF($G$2=Comparativa!$S$2,Comparativa!S6,IF($G$2=Comparativa!$U$2,Comparativa!U6,"")))))))))) -> x | H6: =IF($H$2=Comparativa!$C$2,Comparativa!C6,IF($H$2=Comparativa!$E$2,Comparativa!E6,IF($H$2=Comparativa!$G$2,Comparativa!G6,IF($H$2=Comparativa!$I$2,Comparativa!I6,IF($H$2=Comparativa!$K$2,Comparativa!K6,IF($H$2=Comparativa!$M$2,Comparativa!M6,IF($H$2=Comparativa!$O$2,Comparativa!O6,IF($H$2=Comparativa!$Q$2,Comparativa!Q6,IF($H$2=Comparativa!$S$2,Comparativa!S6,IF($H$2=Comparativa!$U$2,Comparativa!U6,"")))))))))) -> x | I6: =IF($I$2=Comparativa!$C$2,Comparativa!C6,IF($I$2=Comparativa!$E$2,Comparativa!E6,IF($I$2=Comparativa!$G$2,Comparativa!G6,IF($I$2=Comparativa!$I$2,Comparativa!I6,IF($I$2=Comparativa!$K$2,Comparativa!K6,IF($I$2=Comparativa!$M$2,Comparativa!M6,IF($I$2=Comparativa!$O$2,Comparativa!O6,IF($I$2=Comparativa!$Q$2,Comparativa!Q6,IF($I$2=Comparativa!$S$2,Comparativa!S6,IF($I$2=Comparativa!$U$2,Comparativa!U6,"")))))))))) ->  | J6: =IF($J$2=Comparativa!$C$2,Comparativa!C6,IF($J$2=Comparativa!$E$2,Comparativa!E6,IF($J$2=Comparativa!$G$2,Comparativa!G6,IF($J$2=Comparativa!$I$2,Comparativa!I6,IF($J$2=Comparativa!$K$2,Comparativa!K6,IF($J$2=Comparativa!$M$2,Comparativa!M6,IF($J$2=Comparativa!$O$2,Comparativa!O6,IF($J$2=Comparativa!$Q$2,Comparativa!Q6,IF($J$2=Comparativa!$S$2,Comparativa!S6,IF($J$2=Comparativa!$U$2,Comparativa!U6,"")))))))))) ->  | K6: =IF($K$2=Comparativa!$C$2,Comparativa!C6,IF($K$2=Comparativa!$E$2,Comparativa!E6,IF($K$2=Comparativa!$G$2,Comparativa!G6,IF($K$2=Comparativa!$I$2,Comparativa!I6,IF($K$2=Comparativa!$K$2,Comparativa!K6,IF($K$2=Comparativa!$M$2,Comparativa!M6,IF($K$2=Comparativa!$O$2,Comparativa!O6,IF($K$2=Comparativa!$Q$2,Comparativa!Q6,IF($K$2=Comparativa!$S$2,Comparativa!S6,IF($K$2=Comparativa!$U$2,Comparativa!U6,"")))))))))) ->  | L6: =IF($L$2=Comparativa!$C$2,Comparativa!C6,IF($L$2=Comparativa!$E$2,Comparativa!E6,IF($L$2=Comparativa!$G$2,Comparativa!G6,IF($L$2=Comparativa!$I$2,Comparativa!I6,IF($L$2=Comparativa!$K$2,Comparativa!K6,IF($L$2=Comparativa!$M$2,Comparativa!M6,IF($L$2=Comparativa!$O$2,Comparativa!O6,IF($L$2=Comparativa!$Q$2,Comparativa!Q6,IF($L$2=Comparativa!$S$2,Comparativa!S6,IF($L$2=Comparativa!$U$2,Comparativa!U6,"")))))))))) -> 
B7: Gestión de cuentas | C7: =IF($C$2=Comparativa!$C$2,Comparativa!C7,IF($C$2=Comparativa!$E$2,Comparativa!E7,IF($C$2=Comparativa!$G$2,Comparativa!G7,IF($C$2=Comparativa!$I$2,Comparativa!I7,IF($C$2=Comparativa!$K$2,Comparativa!K7,IF($C$2=Comparativa!$M$2,Comparativa!M7,IF($C$2=Comparativa!$O$2,Comparativa!O7,IF($C$2=Comparativa!$Q$2,Comparativa!Q7,IF($C$2=Comparativa!$S$2,Comparativa!S7,IF($C$2=Comparativa!$U$2,Comparativa!U7,"")))))))))) -> x | D7: =IF($D$2=Comparativa!$C$2,Comparativa!C7,IF($D$2=Comparativa!$E$2,Comparativa!E7,IF($D$2=Comparativa!$G$2,Comparativa!G7,IF($D$2=Comparativa!$I$2,Comparativa!I7,IF($D$2=Comparativa!$K$2,Comparativa!K7,IF($D$2=Comparativa!$M$2,Comparativa!M7,IF($D$2=Comparativa!$O$2,Comparativa!O7,IF($D$2=Comparativa!$Q$2,Comparativa!Q7,IF($D$2=Comparativa!$S$2,Comparativa!S7,IF($D$2=Comparativa!$U$2,Comparativa!U7,"")))))))))) -> x | E7: =IF($E$2=Comparativa!$C$2,Comparativa!C7,IF($E$2=Comparativa!$E$2,Comparativa!E7,IF($E$2=Comparativa!$G$2,Comparativa!G7,IF($E$2=Comparativa!$I$2,Comparativa!I7,IF($E$2=Comparativa!$K$2,Comparativa!K7,IF($E$2=Comparativa!$M$2,Comparativa!M7,IF($E$2=Comparativa!$O$2,Comparativa!O7,IF($E$2=Comparativa!$Q$2,Comparativa!Q7,IF($E$2=Comparativa!$S$2,Comparativa!S7,IF($E$2=Comparativa!$U$2,Comparativa!U7,"")))))))))) -> x | F7: =IF($F$2=Comparativa!$C$2,Comparativa!C7,IF($F$2=Comparativa!$E$2,Comparativa!E7,IF($F$2=Comparativa!$G$2,Comparativa!G7,IF($F$2=Comparativa!$I$2,Comparativa!I7,IF($F$2=Comparativa!$K$2,Comparativa!K7,IF($F$2=Comparativa!$M$2,Comparativa!M7,IF($F$2=Comparativa!$O$2,Comparativa!O7,IF($F$2=Comparativa!$Q$2,Comparativa!Q7,IF($F$2=Comparativa!$S$2,Comparativa!S7,IF($F$2=Comparativa!$U$2,Comparativa!U7,"")))))))))) -> x | G7: =IF($G$2=Comparativa!$C$2,Comparativa!C7,IF($G$2=Comparativa!$E$2,Comparativa!E7,IF($G$2=Comparativa!$G$2,Comparativa!G7,IF($G$2=Comparativa!$I$2,Comparativa!I7,IF($G$2=Comparativa!$K$2,Comparativa!K7,IF($G$2=Comparativa!$M$2,Comparativa!M7,IF($G$2=Comparativa!$O$2,Comparativa!O7,IF($G$2=Comparativa!$Q$2,Comparativa!Q7,IF($G$2=Comparativa!$S$2,Comparativa!S7,IF($G$2=Comparativa!$U$2,Comparativa!U7,"")))))))))) -> x | H7: =IF($H$2=Comparativa!$C$2,Comparativa!C7,IF($H$2=Comparativa!$E$2,Comparativa!E7,IF($H$2=Comparativa!$G$2,Comparativa!G7,IF($H$2=Comparativa!$I$2,Comparativa!I7,IF($H$2=Comparativa!$K$2,Comparativa!K7,IF($H$2=Comparativa!$M$2,Comparativa!M7,IF($H$2=Comparativa!$O$2,Comparativa!O7,IF($H$2=Comparativa!$Q$2,Comparativa!Q7,IF($H$2=Comparativa!$S$2,Comparativa!S7,IF($H$2=Comparativa!$U$2,Comparativa!U7,"")))))))))) -> x | I7: =IF($I$2=Comparativa!$C$2,Comparativa!C7,IF($I$2=Comparativa!$E$2,Comparativa!E7,IF($I$2=Comparativa!$G$2,Comparativa!G7,IF($I$2=Comparativa!$I$2,Comparativa!I7,IF($I$2=Comparativa!$K$2,Comparativa!K7,IF($I$2=Comparativa!$M$2,Comparativa!M7,IF($I$2=Comparativa!$O$2,Comparativa!O7,IF($I$2=Comparativa!$Q$2,Comparativa!Q7,IF($I$2=Comparativa!$S$2,Comparativa!S7,IF($I$2=Comparativa!$U$2,Comparativa!U7,"")))))))))) ->  | J7: =IF($J$2=Comparativa!$C$2,Comparativa!C7,IF($J$2=Comparativa!$E$2,Comparativa!E7,IF($J$2=Comparativa!$G$2,Comparativa!G7,IF($J$2=Comparativa!$I$2,Comparativa!I7,IF($J$2=Comparativa!$K$2,Comparativa!K7,IF($J$2=Comparativa!$M$2,Comparativa!M7,IF($J$2=Comparativa!$O$2,Comparativa!O7,IF($J$2=Comparativa!$Q$2,Comparativa!Q7,IF($J$2=Comparativa!$S$2,Comparativa!S7,IF($J$2=Comparativa!$U$2,Comparativa!U7,"")))))))))) ->  | K7: =IF($K$2=Comparativa!$C$2,Comparativa!C7,IF($K$2=Comparativa!$E$2,Comparativa!E7,IF($K$2=Comparativa!$G$2,Comparativa!G7,IF($K$2=Comparativa!$I$2,Comparativa!I7,IF($K$2=Comparativa!$K$2,Comparativa!K7,IF($K$2=Comparativa!$M$2,Comparativa!M7,IF($K$2=Comparativa!$O$2,Comparativa!O7,IF($K$2=Comparativa!$Q$2,Comparativa!Q7,IF($K$2=Comparativa!$S$2,Comparativa!S7,IF($K$2=Comparativa!$U$2,Comparativa!U7,"")))))))))) ->  | L7: =IF($L$2=Comparativa!$C$2,Comparativa!C7,IF($L$2=Comparativa!$E$2,Comparativa!E7,IF($L$2=Comparativa!$G$2,Comparativa!G7,IF($L$2=Comparativa!$I$2,Comparativa!I7,IF($L$2=Comparativa!$K$2,Comparativa!K7,IF($L$2=Comparativa!$M$2,Comparativa!M7,IF($L$2=Comparativa!$O$2,Comparativa!O7,IF($L$2=Comparativa!$Q$2,Comparativa!Q7,IF($L$2=Comparativa!$S$2,Comparativa!S7,IF($L$2=Comparativa!$U$2,Comparativa!U7,"")))))))))) -> 
B8: Gestión de comisiones | C8: =IF($C$2=Comparativa!$C$2,Comparativa!C8,IF($C$2=Comparativa!$E$2,Comparativa!E8,IF($C$2=Comparativa!$G$2,Comparativa!G8,IF($C$2=Comparativa!$I$2,Comparativa!I8,IF($C$2=Comparativa!$K$2,Comparativa!K8,IF($C$2=Comparativa!$M$2,Comparativa!M8,IF($C$2=Comparativa!$O$2,Comparativa!O8,IF($C$2=Comparativa!$Q$2,Comparativa!Q8,IF($C$2=Comparativa!$S$2,Comparativa!S8,IF($C$2=Comparativa!$U$2,Comparativa!U8,"")))))))))) -> x | D8: =IF($D$2=Comparativa!$C$2,Comparativa!C8,IF($D$2=Comparativa!$E$2,Comparativa!E8,IF($D$2=Comparativa!$G$2,Comparativa!G8,IF($D$2=Comparativa!$I$2,Comparativa!I8,IF($D$2=Comparativa!$K$2,Comparativa!K8,IF($D$2=Comparativa!$M$2,Comparativa!M8,IF($D$2=Comparativa!$O$2,Comparativa!O8,IF($D$2=Comparativa!$Q$2,Comparativa!Q8,IF($D$2=Comparativa!$S$2,Comparativa!S8,IF($D$2=Comparativa!$U$2,Comparativa!U8,"")))))))))) -> x | E8: =IF($E$2=Comparativa!$C$2,Comparativa!C8,IF($E$2=Comparativa!$E$2,Comparativa!E8,IF($E$2=Comparativa!$G$2,Comparativa!G8,IF($E$2=Comparativa!$I$2,Comparativa!I8,IF($E$2=Comparativa!$K$2,Comparativa!K8,IF($E$2=Comparativa!$M$2,Comparativa!M8,IF($E$2=Comparativa!$O$2,Comparativa!O8,IF($E$2=Comparativa!$Q$2,Comparativa!Q8,IF($E$2=Comparativa!$S$2,Comparativa!S8,IF($E$2=Comparativa!$U$2,Comparativa!U8,"")))))))))) -> x | F8: =IF($F$2=Comparativa!$C$2,Comparativa!C8,IF($F$2=Comparativa!$E$2,Comparativa!E8,IF($F$2=Comparativa!$G$2,Comparativa!G8,IF($F$2=Comparativa!$I$2,Comparativa!I8,IF($F$2=Comparativa!$K$2,Comparativa!K8,IF($F$2=Comparativa!$M$2,Comparativa!M8,IF($F$2=Comparativa!$O$2,Comparativa!O8,IF($F$2=Comparativa!$Q$2,Comparativa!Q8,IF($F$2=Comparativa!$S$2,Comparativa!S8,IF($F$2=Comparativa!$U$2,Comparativa!U8,"")))))))))) -> x | G8: =IF($G$2=Comparativa!$C$2,Comparativa!C8,IF($G$2=Comparativa!$E$2,Comparativa!E8,IF($G$2=Comparativa!$G$2,Comparativa!G8,IF($G$2=Comparativa!$I$2,Comparativa!I8,IF($G$2=Comparativa!$K$2,Comparativa!K8,IF($G$2=Comparativa!$M$2,Comparativa!M8,IF($G$2=Comparativa!$O$2,Comparativa!O8,IF($G$2=Comparativa!$Q$2,Comparativa!Q8,IF($G$2=Comparativa!$S$2,Comparativa!S8,IF($G$2=Comparativa!$U$2,Comparativa!U8,"")))))))))) -> x | H8: =IF($H$2=Comparativa!$C$2,Comparativa!C8,IF($H$2=Comparativa!$E$2,Comparativa!E8,IF($H$2=Comparativa!$G$2,Comparativa!G8,IF($H$2=Comparativa!$I$2,Comparativa!I8,IF($H$2=Comparativa!$K$2,Comparativa!K8,IF($H$2=Comparativa!$M$2,Comparativa!M8,IF($H$2=Comparativa!$O$2,Comparativa!O8,IF($H$2=Comparativa!$Q$2,Comparativa!Q8,IF($H$2=Comparativa!$S$2,Comparativa!S8,IF($H$2=Comparativa!$U$2,Comparativa!U8,"")))))))))) -> x | I8: =IF($I$2=Comparativa!$C$2,Comparativa!C8,IF($I$2=Comparativa!$E$2,Comparativa!E8,IF($I$2=Comparativa!$G$2,Comparativa!G8,IF($I$2=Comparativa!$I$2,Comparativa!I8,IF($I$2=Comparativa!$K$2,Comparativa!K8,IF($I$2=Comparativa!$M$2,Comparativa!M8,IF($I$2=Comparativa!$O$2,Comparativa!O8,IF($I$2=Comparativa!$Q$2,Comparativa!Q8,IF($I$2=Comparativa!$S$2,Comparativa!S8,IF($I$2=Comparativa!$U$2,Comparativa!U8,"")))))))))) ->  | J8: =IF($J$2=Comparativa!$C$2,Comparativa!C8,IF($J$2=Comparativa!$E$2,Comparativa!E8,IF($J$2=Comparativa!$G$2,Comparativa!G8,IF($J$2=Comparativa!$I$2,Comparativa!I8,IF($J$2=Comparativa!$K$2,Comparativa!K8,IF($J$2=Comparativa!$M$2,Comparativa!M8,IF($J$2=Comparativa!$O$2,Comparativa!O8,IF($J$2=Comparativa!$Q$2,Comparativa!Q8,IF($J$2=Comparativa!$S$2,Comparativa!S8,IF($J$2=Comparativa!$U$2,Comparativa!U8,"")))))))))) ->  | K8: =IF($K$2=Comparativa!$C$2,Comparativa!C8,IF($K$2=Comparativa!$E$2,Comparativa!E8,IF($K$2=Comparativa!$G$2,Comparativa!G8,IF($K$2=Comparativa!$I$2,Comparativa!I8,IF($K$2=Comparativa!$K$2,Comparativa!K8,IF($K$2=Comparativa!$M$2,Comparativa!M8,IF($K$2=Comparativa!$O$2,Comparativa!O8,IF($K$2=Comparativa!$Q$2,Comparativa!Q8,IF($K$2=Comparativa!$S$2,Comparativa!S8,IF($K$2=Comparativa!$U$2,Comparativa!U8,"")))))))))) ->  | L8: =IF($L$2=Comparativa!$C$2,Comparativa!C8,IF($L$2=Comparativa!$E$2,Comparativa!E8,IF($L$2=Comparativa!$G$2,Comparativa!G8,IF($L$2=Comparativa!$I$2,Comparativa!I8,IF($L$2=Comparativa!$K$2,Comparativa!K8,IF($L$2=Comparativa!$M$2,Comparativa!M8,IF($L$2=Comparativa!$O$2,Comparativa!O8,IF($L$2=Comparativa!$Q$2,Comparativa!Q8,IF($L$2=Comparativa!$S$2,Comparativa!S8,IF($L$2=Comparativa!$U$2,Comparativa!U8,"")))))))))) -> 
B9: Gestión de las cuotas de ventas | C9: =IF($C$2=Comparativa!$C$2,Comparativa!C9,IF($C$2=Comparativa!$E$2,Comparativa!E9,IF($C$2=Comparativa!$G$2,Comparativa!G9,IF($C$2=Comparativa!$I$2,Comparativa!I9,IF($C$2=Comparativa!$K$2,Comparativa!K9,IF($C$2=Comparativa!$M$2,Comparativa!M9,IF($C$2=Comparativa!$O$2,Comparativa!O9,IF($C$2=Comparativa!$Q$2,Comparativa!Q9,IF($C$2=Comparativa!$S$2,Comparativa!S9,IF($C$2=Comparativa!$U$2,Comparativa!U9,"")))))))))) -> x | D9: =IF($D$2=Comparativa!$C$2,Comparativa!C9,IF($D$2=Comparativa!$E$2,Comparativa!E9,IF($D$2=Comparativa!$G$2,Comparativa!G9,IF($D$2=Comparativa!$I$2,Comparativa!I9,IF($D$2=Comparativa!$K$2,Comparativa!K9,IF($D$2=Comparativa!$M$2,Comparativa!M9,IF($D$2=Comparativa!$O$2,Comparativa!O9,IF($D$2=Comparativa!$Q$2,Comparativa!Q9,IF($D$2=Comparativa!$S$2,Comparativa!S9,IF($D$2=Comparativa!$U$2,Comparativa!U9,"")))))))))) -> x | E9: =IF($E$2=Comparativa!$C$2,Comparativa!C9,IF($E$2=Comparativa!$E$2,Comparativa!E9,IF($E$2=Comparativa!$G$2,Comparativa!G9,IF($E$2=Comparativa!$I$2,Comparativa!I9,IF($E$2=Comparativa!$K$2,Comparativa!K9,IF($E$2=Comparativa!$M$2,Comparativa!M9,IF($E$2=Comparativa!$O$2,Comparativa!O9,IF($E$2=Comparativa!$Q$2,Comparativa!Q9,IF($E$2=Comparativa!$S$2,Comparativa!S9,IF($E$2=Comparativa!$U$2,Comparativa!U9,"")))))))))) -> x | F9: =IF($F$2=Comparativa!$C$2,Comparativa!C9,IF($F$2=Comparativa!$E$2,Comparativa!E9,IF($F$2=Comparativa!$G$2,Comparativa!G9,IF($F$2=Comparativa!$I$2,Comparativa!I9,IF($F$2=Comparativa!$K$2,Comparativa!K9,IF($F$2=Comparativa!$M$2,Comparativa!M9,IF($F$2=Comparativa!$O$2,Comparativa!O9,IF($F$2=Comparativa!$Q$2,Comparativa!Q9,IF($F$2=Comparativa!$S$2,Comparativa!S9,IF($F$2=Comparativa!$U$2,Comparativa!U9,"")))))))))) -> no | G9: =IF($G$2=Comparativa!$C$2,Comparativa!C9,IF($G$2=Comparativa!$E$2,Comparativa!E9,IF($G$2=Comparativa!$G$2,Comparativa!G9,IF($G$2=Comparativa!$I$2,Comparativa!I9,IF($G$2=Comparativa!$K$2,Comparativa!K9,IF($G$2=Comparativa!$M$2,Comparativa!M9,IF($G$2=Comparativa!$O$2,Comparativa!O9,IF($G$2=Comparativa!$Q$2,Comparativa!Q9,IF($G$2=Comparativa!$S$2,Comparativa!S9,IF($G$2=Comparativa!$U$2,Comparativa!U9,"")))))))))) -> x | H9: =IF($H$2=Comparativa!$C$2,Comparativa!C9,IF($H$2=Comparativa!$E$2,Comparativa!E9,IF($H$2=Comparativa!$G$2,Comparativa!G9,IF($H$2=Comparativa!$I$2,Comparativa!I9,IF($H$2=Comparativa!$K$2,Comparativa!K9,IF($H$2=Comparativa!$M$2,Comparativa!M9,IF($H$2=Comparativa!$O$2,Comparativa!O9,IF($H$2=Comparativa!$Q$2,Comparativa!Q9,IF($H$2=Comparativa!$S$2,Comparativa!S9,IF($H$2=Comparativa!$U$2,Comparativa!U9,"")))))))))) -> x | I9: =IF($I$2=Comparativa!$C$2,Comparativa!C9,IF($I$2=Comparativa!$E$2,Comparativa!E9,IF($I$2=Comparativa!$G$2,Comparativa!G9,IF($I$2=Comparativa!$I$2,Comparativa!I9,IF($I$2=Comparativa!$K$2,Comparativa!K9,IF($I$2=Comparativa!$M$2,Comparativa!M9,IF($I$2=Comparativa!$O$2,Comparativa!O9,IF($I$2=Comparativa!$Q$2,Comparativa!Q9,IF($I$2=Comparativa!$S$2,Comparativa!S9,IF($I$2=Comparativa!$U$2,Comparativa!U9,"")))))))))) ->  | J9: =IF($J$2=Comparativa!$C$2,Comparativa!C9,IF($J$2=Comparativa!$E$2,Comparativa!E9,IF($J$2=Comparativa!$G$2,Comparativa!G9,IF($J$2=Comparativa!$I$2,Comparativa!I9,IF($J$2=Comparativa!$K$2,Comparativa!K9,IF($J$2=Comparativa!$M$2,Comparativa!M9,IF($J$2=Comparativa!$O$2,Comparativa!O9,IF($J$2=Comparativa!$Q$2,Comparativa!Q9,IF($J$2=Comparativa!$S$2,Comparativa!S9,IF($J$2=Comparativa!$U$2,Comparativa!U9,"")))))))))) ->  | K9: =IF($K$2=Comparativa!$C$2,Comparativa!C9,IF($K$2=Comparativa!$E$2,Comparativa!E9,IF($K$2=Comparativa!$G$2,Comparativa!G9,IF($K$2=Comparativa!$I$2,Comparativa!I9,IF($K$2=Comparativa!$K$2,Comparativa!K9,IF($K$2=Comparativa!$M$2,Comparativa!M9,IF($K$2=Comparativa!$O$2,Comparativa!O9,IF($K$2=Comparativa!$Q$2,Comparativa!Q9,IF($K$2=Comparativa!$S$2,Comparativa!S9,IF($K$2=Comparativa!$U$2,Comparativa!U9,"")))))))))) ->  | L9: =IF($L$2=Comparativa!$C$2,Comparativa!C9,IF($L$2=Comparativa!$E$2,Comparativa!E9,IF($L$2=Comparativa!$G$2,Comparativa!G9,IF($L$2=Comparativa!$I$2,Comparativa!I9,IF($L$2=Comparativa!$K$2,Comparativa!K9,IF($L$2=Comparativa!$M$2,Comparativa!M9,IF($L$2=Comparativa!$O$2,Comparativa!O9,IF($L$2=Comparativa!$Q$2,Comparativa!Q9,IF($L$2=Comparativa!$S$2,Comparativa!S9,IF($L$2=Comparativa!$U$2,Comparativa!U9,"")))))))))) -> 
B10: Gestión de documentos | C10: =IF($C$2=Comparativa!$C$2,Comparativa!C10,IF($C$2=Comparativa!$E$2,Comparativa!E10,IF($C$2=Comparativa!$G$2,Comparativa!G10,IF($C$2=Comparativa!$I$2,Comparativa!I10,IF($C$2=Comparativa!$K$2,Comparativa!K10,IF($C$2=Comparativa!$M$2,Comparativa!M10,IF($C$2=Comparativa!$O$2,Comparativa!O10,IF($C$2=Comparativa!$Q$2,Comparativa!Q10,IF($C$2=Comparativa!$S$2,Comparativa!S10,IF($C$2=Comparativa!$U$2,Comparativa!U10,"")))))))))) -> x | D10: =IF($D$2=Comparativa!$C$2,Comparativa!C10,IF($D$2=Comparativa!$E$2,Comparativa!E10,IF($D$2=Comparativa!$G$2,Comparativa!G10,IF($D$2=Comparativa!$I$2,Comparativa!I10,IF($D$2=Comparativa!$K$2,Comparativa!K10,IF($D$2=Comparativa!$M$2,Comparativa!M10,IF($D$2=Comparativa!$O$2,Comparativa!O10,IF($D$2=Comparativa!$Q$2,Comparativa!Q10,IF($D$2=Comparativa!$S$2,Comparativa!S10,IF($D$2=Comparativa!$U$2,Comparativa!U10,"")))))))))) -> x | E10: =IF($E$2=Comparativa!$C$2,Comparativa!C10,IF($E$2=Comparativa!$E$2,Comparativa!E10,IF($E$2=Comparativa!$G$2,Comparativa!G10,IF($E$2=Comparativa!$I$2,Comparativa!I10,IF($E$2=Comparativa!$K$2,Comparativa!K10,IF($E$2=Comparativa!$M$2,Comparativa!M10,IF($E$2=Comparativa!$O$2,Comparativa!O10,IF($E$2=Comparativa!$Q$2,Comparativa!Q10,IF($E$2=Comparativa!$S$2,Comparativa!S10,IF($E$2=Comparativa!$U$2,Comparativa!U10,"")))))))))) -> x | F10: =IF($F$2=Comparativa!$C$2,Comparativa!C10,IF($F$2=Comparativa!$E$2,Comparativa!E10,IF($F$2=Comparativa!$G$2,Comparativa!G10,IF($F$2=Comparativa!$I$2,Comparativa!I10,IF($F$2=Comparativa!$K$2,Comparativa!K10,IF($F$2=Comparativa!$M$2,Comparativa!M10,IF($F$2=Comparativa!$O$2,Comparativa!O10,IF($F$2=Comparativa!$Q$2,Comparativa!Q10,IF($F$2=Comparativa!$S$2,Comparativa!S10,IF($F$2=Comparativa!$U$2,Comparativa!U10,"")))))))))) -> x | G10: =IF($G$2=Comparativa!$C$2,Comparativa!C10,IF($G$2=Comparativa!$E$2,Comparativa!E10,IF($G$2=Comparativa!$G$2,Comparativa!G10,IF($G$2=Comparativa!$I$2,Comparativa!I10,IF($G$2=Comparativa!$K$2,Comparativa!K10,IF($G$2=Comparativa!$M$2,Comparativa!M10,IF($G$2=Comparativa!$O$2,Comparativa!O10,IF($G$2=Comparativa!$Q$2,Comparativa!Q10,IF($G$2=Comparativa!$S$2,Comparativa!S10,IF($G$2=Comparativa!$U$2,Comparativa!U10,"")))))))))) -> x | H10: =IF($H$2=Comparativa!$C$2,Comparativa!C10,IF($H$2=Comparativa!$E$2,Comparativa!E10,IF($H$2=Comparativa!$G$2,Comparativa!G10,IF($H$2=Comparativa!$I$2,Comparativa!I10,IF($H$2=Comparativa!$K$2,Comparativa!K10,IF($H$2=Comparativa!$M$2,Comparativa!M10,IF($H$2=Comparativa!$O$2,Comparativa!O10,IF($H$2=Comparativa!$Q$2,Comparativa!Q10,IF($H$2=Comparativa!$S$2,Comparativa!S10,IF($H$2=Comparativa!$U$2,Comparativa!U10,"")))))))))) -> x | I10: =IF($I$2=Comparativa!$C$2,Comparativa!C10,IF($I$2=Comparativa!$E$2,Comparativa!E10,IF($I$2=Comparativa!$G$2,Comparativa!G10,IF($I$2=Comparativa!$I$2,Comparativa!I10,IF($I$2=Comparativa!$K$2,Comparativa!K10,IF($I$2=Comparativa!$M$2,Comparativa!M10,IF($I$2=Comparativa!$O$2,Comparativa!O10,IF($I$2=Comparativa!$Q$2,Comparativa!Q10,IF($I$2=Comparativa!$S$2,Comparativa!S10,IF($I$2=Comparativa!$U$2,Comparativa!U10,"")))))))))) ->  | J10: =IF($J$2=Comparativa!$C$2,Comparativa!C10,IF($J$2=Comparativa!$E$2,Comparativa!E10,IF($J$2=Comparativa!$G$2,Comparativa!G10,IF($J$2=Comparativa!$I$2,Comparativa!I10,IF($J$2=Comparativa!$K$2,Comparativa!K10,IF($J$2=Comparativa!$M$2,Comparativa!M10,IF($J$2=Comparativa!$O$2,Comparativa!O10,IF($J$2=Comparativa!$Q$2,Comparativa!Q10,IF($J$2=Comparativa!$S$2,Comparativa!S10,IF($J$2=Comparativa!$U$2,Comparativa!U10,"")))))))))) ->  | K10: =IF($K$2=Comparativa!$C$2,Comparativa!C10,IF($K$2=Comparativa!$E$2,Comparativa!E10,IF($K$2=Comparativa!$G$2,Comparativa!G10,IF($K$2=Comparativa!$I$2,Comparativa!I10,IF($K$2=Comparativa!$K$2,Comparativa!K10,IF($K$2=Comparativa!$M$2,Comparativa!M10,IF($K$2=Comparativa!$O$2,Comparativa!O10,IF($K$2=Comparativa!$Q$2,Comparativa!Q10,IF($K$2=Comparativa!$S$2,Comparativa!S10,IF($K$2=Comparativa!$U$2,Comparativa!U10,"")))))))))) ->  | L10: =IF($L$2=Comparativa!$C$2,Comparativa!C10,IF($L$2=Comparativa!$E$2,Comparativa!E10,IF($L$2=Comparativa!$G$2,Comparativa!G10,IF($L$2=Comparativa!$I$2,Comparativa!I10,IF($L$2=Comparativa!$K$2,Comparativa!K10,IF($L$2=Comparativa!$M$2,Comparativa!M10,IF($L$2=Comparativa!$O$2,Comparativa!O10,IF($L$2=Comparativa!$Q$2,Comparativa!Q10,IF($L$2=Comparativa!$S$2,Comparativa!S10,IF($L$2=Comparativa!$U$2,Comparativa!U10,"")))))))))) -> 
B11: Generación de ofertas | C11: =IF($C$2=Comparativa!$C$2,Comparativa!C11,IF($C$2=Comparativa!$E$2,Comparativa!E11,IF($C$2=Comparativa!$G$2,Comparativa!G11,IF($C$2=Comparativa!$I$2,Comparativa!I11,IF($C$2=Comparativa!$K$2,Comparativa!K11,IF($C$2=Comparativa!$M$2,Comparativa!M11,IF($C$2=Comparativa!$O$2,Comparativa!O11,IF($C$2=Comparativa!$Q$2,Comparativa!Q11,IF($C$2=Comparativa!$S$2,Comparativa!S11,IF($C$2=Comparativa!$U$2,Comparativa!U11,"")))))))))) -> x | D11: =IF($D$2=Comparativa!$C$2,Comparativa!C11,IF($D$2=Comparativa!$E$2,Comparativa!E11,IF($D$2=Comparativa!$G$2,Comparativa!G11,IF($D$2=Comparativa!$I$2,Comparativa!I11,IF($D$2=Comparativa!$K$2,Comparativa!K11,IF($D$2=Comparativa!$M$2,Comparativa!M11,IF($D$2=Comparativa!$O$2,Comparativa!O11,IF($D$2=Comparativa!$Q$2,Comparativa!Q11,IF($D$2=Comparativa!$S$2,Comparativa!S11,IF($D$2=Comparativa!$U$2,Comparativa!U11,"")))))))))) -> x | E11: =IF($E$2=Comparativa!$C$2,Comparativa!C11,IF($E$2=Comparativa!$E$2,Comparativa!E11,IF($E$2=Comparativa!$G$2,Comparativa!G11,IF($E$2=Comparativa!$I$2,Comparativa!I11,IF($E$2=Comparativa!$K$2,Comparativa!K11,IF($E$2=Comparativa!$M$2,Comparativa!M11,IF($E$2=Comparativa!$O$2,Comparativa!O11,IF($E$2=Comparativa!$Q$2,Comparativa!Q11,IF($E$2=Comparativa!$S$2,Comparativa!S11,IF($E$2=Comparativa!$U$2,Comparativa!U11,"")))))))))) -> x | F11: =IF($F$2=Comparativa!$C$2,Comparativa!C11,IF($F$2=Comparativa!$E$2,Comparativa!E11,IF($F$2=Comparativa!$G$2,Comparativa!G11,IF($F$2=Comparativa!$I$2,Comparativa!I11,IF($F$2=Comparativa!$K$2,Comparativa!K11,IF($F$2=Comparativa!$M$2,Comparativa!M11,IF($F$2=Comparativa!$O$2,Comparativa!O11,IF($F$2=Comparativa!$Q$2,Comparativa!Q11,IF($F$2=Comparativa!$S$2,Comparativa!S11,IF($F$2=Comparativa!$U$2,Comparativa!U11,"")))))))))) -> x | G11: =IF($G$2=Comparativa!$C$2,Comparativa!C11,IF($G$2=Comparativa!$E$2,Comparativa!E11,IF($G$2=Comparativa!$G$2,Comparativa!G11,IF($G$2=Comparativa!$I$2,Comparativa!I11,IF($G$2=Comparativa!$K$2,Comparativa!K11,IF($G$2=Comparativa!$M$2,Comparativa!M11,IF($G$2=Comparativa!$O$2,Comparativa!O11,IF($G$2=Comparativa!$Q$2,Comparativa!Q11,IF($G$2=Comparativa!$S$2,Comparativa!S11,IF($G$2=Comparativa!$U$2,Comparativa!U11,"")))))))))) -> x | H11: =IF($H$2=Comparativa!$C$2,Comparativa!C11,IF($H$2=Comparativa!$E$2,Comparativa!E11,IF($H$2=Comparativa!$G$2,Comparativa!G11,IF($H$2=Comparativa!$I$2,Comparativa!I11,IF($H$2=Comparativa!$K$2,Comparativa!K11,IF($H$2=Comparativa!$M$2,Comparativa!M11,IF($H$2=Comparativa!$O$2,Comparativa!O11,IF($H$2=Comparativa!$Q$2,Comparativa!Q11,IF($H$2=Comparativa!$S$2,Comparativa!S11,IF($H$2=Comparativa!$U$2,Comparativa!U11,"")))))))))) -> x | I11: =IF($I$2=Comparativa!$C$2,Comparativa!C11,IF($I$2=Comparativa!$E$2,Comparativa!E11,IF($I$2=Comparativa!$G$2,Comparativa!G11,IF($I$2=Comparativa!$I$2,Comparativa!I11,IF($I$2=Comparativa!$K$2,Comparativa!K11,IF($I$2=Comparativa!$M$2,Comparativa!M11,IF($I$2=Comparativa!$O$2,Comparativa!O11,IF($I$2=Comparativa!$Q$2,Comparativa!Q11,IF($I$2=Comparativa!$S$2,Comparativa!S11,IF($I$2=Comparativa!$U$2,Comparativa!U11,"")))))))))) ->  | J11: =IF($J$2=Comparativa!$C$2,Comparativa!C11,IF($J$2=Comparativa!$E$2,Comparativa!E11,IF($J$2=Comparativa!$G$2,Comparativa!G11,IF($J$2=Comparativa!$I$2,Comparativa!I11,IF($J$2=Comparativa!$K$2,Comparativa!K11,IF($J$2=Comparativa!$M$2,Comparativa!M11,IF($J$2=Comparativa!$O$2,Comparativa!O11,IF($J$2=Comparativa!$Q$2,Comparativa!Q11,IF($J$2=Comparativa!$S$2,Comparativa!S11,IF($J$2=Comparativa!$U$2,Comparativa!U11,"")))))))))) ->  | K11: =IF($K$2=Comparativa!$C$2,Comparativa!C11,IF($K$2=Comparativa!$E$2,Comparativa!E11,IF($K$2=Comparativa!$G$2,Comparativa!G11,IF($K$2=Comparativa!$I$2,Comparativa!I11,IF($K$2=Comparativa!$K$2,Comparativa!K11,IF($K$2=Comparativa!$M$2,Comparativa!M11,IF($K$2=Comparativa!$O$2,Comparativa!O11,IF($K$2=Comparativa!$Q$2,Comparativa!Q11,IF($K$2=Comparativa!$S$2,Comparativa!S11,IF($K$2=Comparativa!$U$2,Comparativa!U11,"")))))))))) ->  | L11: =IF($L$2=Comparativa!$C$2,Comparativa!C11,IF($L$2=Comparativa!$E$2,Comparativa!E11,IF($L$2=Comparativa!$G$2,Comparativa!G11,IF($L$2=Comparativa!$I$2,Comparativa!I11,IF($L$2=Comparativa!$K$2,Comparativa!K11,IF($L$2=Comparativa!$M$2,Comparativa!M11,IF($L$2=Comparativa!$O$2,Comparativa!O11,IF($L$2=Comparativa!$Q$2,Comparativa!Q11,IF($L$2=Comparativa!$S$2,Comparativa!S11,IF($L$2=Comparativa!$U$2,Comparativa!U11,"")))))))))) -> 
B12: Seguimiento de pedidos | C12: =IF($C$2=Comparativa!$C$2,Comparativa!C12,IF($C$2=Comparativa!$E$2,Comparativa!E12,IF($C$2=Comparativa!$G$2,Comparativa!G12,IF($C$2=Comparativa!$I$2,Comparativa!I12,IF($C$2=Comparativa!$K$2,Comparativa!K12,IF($C$2=Comparativa!$M$2,Comparativa!M12,IF($C$2=Comparativa!$O$2,Comparativa!O12,IF($C$2=Comparativa!$Q$2,Comparativa!Q12,IF($C$2=Comparativa!$S$2,Comparativa!S12,IF($C$2=Comparativa!$U$2,Comparativa!U12,"")))))))))) -> x | D12: =IF($D$2=Comparativa!$C$2,Comparativa!C12,IF($D$2=Comparativa!$E$2,Comparativa!E12,IF($D$2=Comparativa!$G$2,Comparativa!G12,IF($D$2=Comparativa!$I$2,Comparativa!I12,IF($D$2=Comparativa!$K$2,Comparativa!K12,IF($D$2=Comparativa!$M$2,Comparativa!M12,IF($D$2=Comparativa!$O$2,Comparativa!O12,IF($D$2=Comparativa!$Q$2,Comparativa!Q12,IF($D$2=Comparativa!$S$2,Comparativa!S12,IF($D$2=Comparativa!$U$2,Comparativa!U12,"")))))))))) -> x | E12: =IF($E$2=Comparativa!$C$2,Comparativa!C12,IF($E$2=Comparativa!$E$2,Comparativa!E12,IF($E$2=Comparativa!$G$2,Comparativa!G12,IF($E$2=Comparativa!$I$2,Comparativa!I12,IF($E$2=Comparativa!$K$2,Comparativa!K12,IF($E$2=Comparativa!$M$2,Comparativa!M12,IF($E$2=Comparativa!$O$2,Comparativa!O12,IF($E$2=Comparativa!$Q$2,Comparativa!Q12,IF($E$2=Comparativa!$S$2,Comparativa!S12,IF($E$2=Comparativa!$U$2,Comparativa!U12,"")))))))))) -> x | F12: =IF($F$2=Comparativa!$C$2,Comparativa!C12,IF($F$2=Comparativa!$E$2,Comparativa!E12,IF($F$2=Comparativa!$G$2,Comparativa!G12,IF($F$2=Comparativa!$I$2,Comparativa!I12,IF($F$2=Comparativa!$K$2,Comparativa!K12,IF($F$2=Comparativa!$M$2,Comparativa!M12,IF($F$2=Comparativa!$O$2,Comparativa!O12,IF($F$2=Comparativa!$Q$2,Comparativa!Q12,IF($F$2=Comparativa!$S$2,Comparativa!S12,IF($F$2=Comparativa!$U$2,Comparativa!U12,"")))))))))) -> x | G12: =IF($G$2=Comparativa!$C$2,Comparativa!C12,IF($G$2=Comparativa!$E$2,Comparativa!E12,IF($G$2=Comparativa!$G$2,Comparativa!G12,IF($G$2=Comparativa!$I$2,Comparativa!I12,IF($G$2=Comparativa!$K$2,Comparativa!K12,IF($G$2=Comparativa!$M$2,Comparativa!M12,IF($G$2=Comparativa!$O$2,Comparativa!O12,IF($G$2=Comparativa!$Q$2,Comparativa!Q12,IF($G$2=Comparativa!$S$2,Comparativa!S12,IF($G$2=Comparativa!$U$2,Comparativa!U12,"")))))))))) -> x | H12: =IF($H$2=Comparativa!$C$2,Comparativa!C12,IF($H$2=Comparativa!$E$2,Comparativa!E12,IF($H$2=Comparativa!$G$2,Comparativa!G12,IF($H$2=Comparativa!$I$2,Comparativa!I12,IF($H$2=Comparativa!$K$2,Comparativa!K12,IF($H$2=Comparativa!$M$2,Comparativa!M12,IF($H$2=Comparativa!$O$2,Comparativa!O12,IF($H$2=Comparativa!$Q$2,Comparativa!Q12,IF($H$2=Comparativa!$S$2,Comparativa!S12,IF($H$2=Comparativa!$U$2,Comparativa!U12,"")))))))))) -> x | I12: =IF($I$2=Comparativa!$C$2,Comparativa!C12,IF($I$2=Comparativa!$E$2,Comparativa!E12,IF($I$2=Comparativa!$G$2,Comparativa!G12,IF($I$2=Comparativa!$I$2,Comparativa!I12,IF($I$2=Comparativa!$K$2,Comparativa!K12,IF($I$2=Comparativa!$M$2,Comparativa!M12,IF($I$2=Comparativa!$O$2,Comparativa!O12,IF($I$2=Comparativa!$Q$2,Comparativa!Q12,IF($I$2=Comparativa!$S$2,Comparativa!S12,IF($I$2=Comparativa!$U$2,Comparativa!U12,"")))))))))) ->  | J12: =IF($J$2=Comparativa!$C$2,Comparativa!C12,IF($J$2=Comparativa!$E$2,Comparativa!E12,IF($J$2=Comparativa!$G$2,Comparativa!G12,IF($J$2=Comparativa!$I$2,Comparativa!I12,IF($J$2=Comparativa!$K$2,Comparativa!K12,IF($J$2=Comparativa!$M$2,Comparativa!M12,IF($J$2=Comparativa!$O$2,Comparativa!O12,IF($J$2=Comparativa!$Q$2,Comparativa!Q12,IF($J$2=Comparativa!$S$2,Comparativa!S12,IF($J$2=Comparativa!$U$2,Comparativa!U12,"")))))))))) ->  | K12: =IF($K$2=Comparativa!$C$2,Comparativa!C12,IF($K$2=Comparativa!$E$2,Comparativa!E12,IF($K$2=Comparativa!$G$2,Comparativa!G12,IF($K$2=Comparativa!$I$2,Comparativa!I12,IF($K$2=Comparativa!$K$2,Comparativa!K12,IF($K$2=Comparativa!$M$2,Comparativa!M12,IF($K$2=Comparativa!$O$2,Comparativa!O12,IF($K$2=Comparativa!$Q$2,Comparativa!Q12,IF($K$2=Comparativa!$S$2,Comparativa!S12,IF($K$2=Comparativa!$U$2,Comparativa!U12,"")))))))))) ->  | L12: =IF($L$2=Comparativa!$C$2,Comparativa!C12,IF($L$2=Comparativa!$E$2,Comparativa!E12,IF($L$2=Comparativa!$G$2,Comparativa!G12,IF($L$2=Comparativa!$I$2,Comparativa!I12,IF($L$2=Comparativa!$K$2,Comparativa!K12,IF($L$2=Comparativa!$M$2,Comparativa!M12,IF($L$2=Comparativa!$O$2,Comparativa!O12,IF($L$2=Comparativa!$Q$2,Comparativa!Q12,IF($L$2=Comparativa!$S$2,Comparativa!S12,IF($L$2=Comparativa!$U$2,Comparativa!U12,"")))))))))) -> 
B13: Previsión de ventas | C13: =IF($C$2=Comparativa!$C$2,Comparativa!C13,IF($C$2=Comparativa!$E$2,Comparativa!E13,IF($C$2=Comparativa!$G$2,Comparativa!G13,IF($C$2=Comparativa!$I$2,Comparativa!I13,IF($C$2=Comparativa!$K$2,Comparativa!K13,IF($C$2=Comparativa!$M$2,Comparativa!M13,IF($C$2=Comparativa!$O$2,Comparativa!O13,IF($C$2=Comparativa!$Q$2,Comparativa!Q13,IF($C$2=Comparativa!$S$2,Comparativa!S13,IF($C$2=Comparativa!$U$2,Comparativa!U13,"")))))))))) -> x | D13: =IF($D$2=Comparativa!$C$2,Comparativa!C13,IF($D$2=Comparativa!$E$2,Comparativa!E13,IF($D$2=Comparativa!$G$2,Comparativa!G13,IF($D$2=Comparativa!$I$2,Comparativa!I13,IF($D$2=Comparativa!$K$2,Comparativa!K13,IF($D$2=Comparativa!$M$2,Comparativa!M13,IF($D$2=Comparativa!$O$2,Comparativa!O13,IF($D$2=Comparativa!$Q$2,Comparativa!Q13,IF($D$2=Comparativa!$S$2,Comparativa!S13,IF($D$2=Comparativa!$U$2,Comparativa!U13,"")))))))))) -> x | E13: =IF($E$2=Comparativa!$C$2,Comparativa!C13,IF($E$2=Comparativa!$E$2,Comparativa!E13,IF($E$2=Comparativa!$G$2,Comparativa!G13,IF($E$2=Comparativa!$I$2,Comparativa!I13,IF($E$2=Comparativa!$K$2,Comparativa!K13,IF($E$2=Comparativa!$M$2,Comparativa!M13,IF($E$2=Comparativa!$O$2,Comparativa!O13,IF($E$2=Comparativa!$Q$2,Comparativa!Q13,IF($E$2=Comparativa!$S$2,Comparativa!S13,IF($E$2=Comparativa!$U$2,Comparativa!U13,"")))))))))) -> x | F13: =IF($F$2=Comparativa!$C$2,Comparativa!C13,IF($F$2=Comparativa!$E$2,Comparativa!E13,IF($F$2=Comparativa!$G$2,Comparativa!G13,IF($F$2=Comparativa!$I$2,Comparativa!I13,IF($F$2=Comparativa!$K$2,Comparativa!K13,IF($F$2=Comparativa!$M$2,Comparativa!M13,IF($F$2=Comparativa!$O$2,Comparativa!O13,IF($F$2=Comparativa!$Q$2,Comparativa!Q13,IF($F$2=Comparativa!$S$2,Comparativa!S13,IF($F$2=Comparativa!$U$2,Comparativa!U13,"")))))))))) -> x | G13: =IF($G$2=Comparativa!$C$2,Comparativa!C13,IF($G$2=Comparativa!$E$2,Comparativa!E13,IF($G$2=Comparativa!$G$2,Comparativa!G13,IF($G$2=Comparativa!$I$2,Comparativa!I13,IF($G$2=Comparativa!$K$2,Comparativa!K13,IF($G$2=Comparativa!$M$2,Comparativa!M13,IF($G$2=Comparativa!$O$2,Comparativa!O13,IF($G$2=Comparativa!$Q$2,Comparativa!Q13,IF($G$2=Comparativa!$S$2,Comparativa!S13,IF($G$2=Comparativa!$U$2,Comparativa!U13,"")))))))))) -> x | H13: =IF($H$2=Comparativa!$C$2,Comparativa!C13,IF($H$2=Comparativa!$E$2,Comparativa!E13,IF($H$2=Comparativa!$G$2,Comparativa!G13,IF($H$2=Comparativa!$I$2,Comparativa!I13,IF($H$2=Comparativa!$K$2,Comparativa!K13,IF($H$2=Comparativa!$M$2,Comparativa!M13,IF($H$2=Comparativa!$O$2,Comparativa!O13,IF($H$2=Comparativa!$Q$2,Comparativa!Q13,IF($H$2=Comparativa!$S$2,Comparativa!S13,IF($H$2=Comparativa!$U$2,Comparativa!U13,"")))))))))) -> x | I13: =IF($I$2=Comparativa!$C$2,Comparativa!C13,IF($I$2=Comparativa!$E$2,Comparativa!E13,IF($I$2=Comparativa!$G$2,Comparativa!G13,IF($I$2=Comparativa!$I$2,Comparativa!I13,IF($I$2=Comparativa!$K$2,Comparativa!K13,IF($I$2=Comparativa!$M$2,Comparativa!M13,IF($I$2=Comparativa!$O$2,Comparativa!O13,IF($I$2=Comparativa!$Q$2,Comparativa!Q13,IF($I$2=Comparativa!$S$2,Comparativa!S13,IF($I$2=Comparativa!$U$2,Comparativa!U13,"")))))))))) ->  | J13: =IF($J$2=Comparativa!$C$2,Comparativa!C13,IF($J$2=Comparativa!$E$2,Comparativa!E13,IF($J$2=Comparativa!$G$2,Comparativa!G13,IF($J$2=Comparativa!$I$2,Comparativa!I13,IF($J$2=Comparativa!$K$2,Comparativa!K13,IF($J$2=Comparativa!$M$2,Comparativa!M13,IF($J$2=Comparativa!$O$2,Comparativa!O13,IF($J$2=Comparativa!$Q$2,Comparativa!Q13,IF($J$2=Comparativa!$S$2,Comparativa!S13,IF($J$2=Comparativa!$U$2,Comparativa!U13,"")))))))))) ->  | K13: =IF($K$2=Comparativa!$C$2,Comparativa!C13,IF($K$2=Comparativa!$E$2,Comparativa!E13,IF($K$2=Comparativa!$G$2,Comparativa!G13,IF($K$2=Comparativa!$I$2,Comparativa!I13,IF($K$2=Comparativa!$K$2,Comparativa!K13,IF($K$2=Comparativa!$M$2,Comparativa!M13,IF($K$2=Comparativa!$O$2,Comparativa!O13,IF($K$2=Comparativa!$Q$2,Comparativa!Q13,IF($K$2=Comparativa!$S$2,Comparativa!S13,IF($K$2=Comparativa!$U$2,Comparativa!U13,"")))))))))) ->  | L13: =IF($L$2=Comparativa!$C$2,Comparativa!C13,IF($L$2=Comparativa!$E$2,Comparativa!E13,IF($L$2=Comparativa!$G$2,Comparativa!G13,IF($L$2=Comparativa!$I$2,Comparativa!I13,IF($L$2=Comparativa!$K$2,Comparativa!K13,IF($L$2=Comparativa!$M$2,Comparativa!M13,IF($L$2=Comparativa!$O$2,Comparativa!O13,IF($L$2=Comparativa!$Q$2,Comparativa!Q13,IF($L$2=Comparativa!$S$2,Comparativa!S13,IF($L$2=Comparativa!$U$2,Comparativa!U13,"")))))))))) -> 
B14: Gestión de territorio | C14: =IF($C$2=Comparativa!$C$2,Comparativa!C14,IF($C$2=Comparativa!$E$2,Comparativa!E14,IF($C$2=Comparativa!$G$2,Comparativa!G14,IF($C$2=Comparativa!$I$2,Comparativa!I14,IF($C$2=Comparativa!$K$2,Comparativa!K14,IF($C$2=Comparativa!$M$2,Comparativa!M14,IF($C$2=Comparativa!$O$2,Comparativa!O14,IF($C$2=Comparativa!$Q$2,Comparativa!Q14,IF($C$2=Comparativa!$S$2,Comparativa!S14,IF($C$2=Comparativa!$U$2,Comparativa!U14,"")))))))))) -> x | D14: =IF($D$2=Comparativa!$C$2,Comparativa!C14,IF($D$2=Comparativa!$E$2,Comparativa!E14,IF($D$2=Comparativa!$G$2,Comparativa!G14,IF($D$2=Comparativa!$I$2,Comparativa!I14,IF($D$2=Comparativa!$K$2,Comparativa!K14,IF($D$2=Comparativa!$M$2,Comparativa!M14,IF($D$2=Comparativa!$O$2,Comparativa!O14,IF($D$2=Comparativa!$Q$2,Comparativa!Q14,IF($D$2=Comparativa!$S$2,Comparativa!S14,IF($D$2=Comparativa!$U$2,Comparativa!U14,"")))))))))) -> x | E14: =IF($E$2=Comparativa!$C$2,Comparativa!C14,IF($E$2=Comparativa!$E$2,Comparativa!E14,IF($E$2=Comparativa!$G$2,Comparativa!G14,IF($E$2=Comparativa!$I$2,Comparativa!I14,IF($E$2=Comparativa!$K$2,Comparativa!K14,IF($E$2=Comparativa!$M$2,Comparativa!M14,IF($E$2=Comparativa!$O$2,Comparativa!O14,IF($E$2=Comparativa!$Q$2,Comparativa!Q14,IF($E$2=Comparativa!$S$2,Comparativa!S14,IF($E$2=Comparativa!$U$2,Comparativa!U14,"")))))))))) -> x | F14: =IF($F$2=Comparativa!$C$2,Comparativa!C14,IF($F$2=Comparativa!$E$2,Comparativa!E14,IF($F$2=Comparativa!$G$2,Comparativa!G14,IF($F$2=Comparativa!$I$2,Comparativa!I14,IF($F$2=Comparativa!$K$2,Comparativa!K14,IF($F$2=Comparativa!$M$2,Comparativa!M14,IF($F$2=Comparativa!$O$2,Comparativa!O14,IF($F$2=Comparativa!$Q$2,Comparativa!Q14,IF($F$2=Comparativa!$S$2,Comparativa!S14,IF($F$2=Comparativa!$U$2,Comparativa!U14,"")))))))))) -> x | G14: =IF($G$2=Comparativa!$C$2,Comparativa!C14,IF($G$2=Comparativa!$E$2,Comparativa!E14,IF($G$2=Comparativa!$G$2,Comparativa!G14,IF($G$2=Comparativa!$I$2,Comparativa!I14,IF($G$2=Comparativa!$K$2,Comparativa!K14,IF($G$2=Comparativa!$M$2,Comparativa!M14,IF($G$2=Comparativa!$O$2,Comparativa!O14,IF($G$2=Comparativa!$Q$2,Comparativa!Q14,IF($G$2=Comparativa!$S$2,Comparativa!S14,IF($G$2=Comparativa!$U$2,Comparativa!U14,"")))))))))) -> x | H14: =IF($H$2=Comparativa!$C$2,Comparativa!C14,IF($H$2=Comparativa!$E$2,Comparativa!E14,IF($H$2=Comparativa!$G$2,Comparativa!G14,IF($H$2=Comparativa!$I$2,Comparativa!I14,IF($H$2=Comparativa!$K$2,Comparativa!K14,IF($H$2=Comparativa!$M$2,Comparativa!M14,IF($H$2=Comparativa!$O$2,Comparativa!O14,IF($H$2=Comparativa!$Q$2,Comparativa!Q14,IF($H$2=Comparativa!$S$2,Comparativa!S14,IF($H$2=Comparativa!$U$2,Comparativa!U14,"")))))))))) -> x | I14: =IF($I$2=Comparativa!$C$2,Comparativa!C14,IF($I$2=Comparativa!$E$2,Comparativa!E14,IF($I$2=Comparativa!$G$2,Comparativa!G14,IF($I$2=Comparativa!$I$2,Comparativa!I14,IF($I$2=Comparativa!$K$2,Comparativa!K14,IF($I$2=Comparativa!$M$2,Comparativa!M14,IF($I$2=Comparativa!$O$2,Comparativa!O14,IF($I$2=Comparativa!$Q$2,Comparativa!Q14,IF($I$2=Comparativa!$S$2,Comparativa!S14,IF($I$2=Comparativa!$U$2,Comparativa!U14,"")))))))))) ->  | J14: =IF($J$2=Comparativa!$C$2,Comparativa!C14,IF($J$2=Comparativa!$E$2,Comparativa!E14,IF($J$2=Comparativa!$G$2,Comparativa!G14,IF($J$2=Comparativa!$I$2,Comparativa!I14,IF($J$2=Comparativa!$K$2,Comparativa!K14,IF($J$2=Comparativa!$M$2,Comparativa!M14,IF($J$2=Comparativa!$O$2,Comparativa!O14,IF($J$2=Comparativa!$Q$2,Comparativa!Q14,IF($J$2=Comparativa!$S$2,Comparativa!S14,IF($J$2=Comparativa!$U$2,Comparativa!U14,"")))))))))) ->  | K14: =IF($K$2=Comparativa!$C$2,Comparativa!C14,IF($K$2=Comparativa!$E$2,Comparativa!E14,IF($K$2=Comparativa!$G$2,Comparativa!G14,IF($K$2=Comparativa!$I$2,Comparativa!I14,IF($K$2=Comparativa!$K$2,Comparativa!K14,IF($K$2=Comparativa!$M$2,Comparativa!M14,IF($K$2=Comparativa!$O$2,Comparativa!O14,IF($K$2=Comparativa!$Q$2,Comparativa!Q14,IF($K$2=Comparativa!$S$2,Comparativa!S14,IF($K$2=Comparativa!$U$2,Comparativa!U14,"")))))))))) ->  | L14: =IF($L$2=Comparativa!$C$2,Comparativa!C14,IF($L$2=Comparativa!$E$2,Comparativa!E14,IF($L$2=Comparativa!$G$2,Comparativa!G14,IF($L$2=Comparativa!$I$2,Comparativa!I14,IF($L$2=Comparativa!$K$2,Comparativa!K14,IF($L$2=Comparativa!$M$2,Comparativa!M14,IF($L$2=Comparativa!$O$2,Comparativa!O14,IF($L$2=Comparativa!$Q$2,Comparativa!Q14,IF($L$2=Comparativa!$S$2,Comparativa!S14,IF($L$2=Comparativa!$U$2,Comparativa!U14,"")))))))))) -> 
B15: Otros funcionalidades Ventas | C15: =IF($C$2=Comparativa!$C$2,Comparativa!C15,IF($C$2=Comparativa!$E$2,Comparativa!E15,IF($C$2=Comparativa!$G$2,Comparativa!G15,IF($C$2=Comparativa!$I$2,Comparativa!I15,IF($C$2=Comparativa!$K$2,Comparativa!K15,IF($C$2=Comparativa!$M$2,Comparativa!M15,IF($C$2=Comparativa!$O$2,Comparativa!O15,IF($C$2=Comparativa!$Q$2,Comparativa!Q15,IF($C$2=Comparativa!$S$2,Comparativa!S15,IF($C$2=Comparativa!$U$2,Comparativa!U15,"")))))))))) -> Seguimiento de historial de compras para identificación de oportunidades de ventas cruzadas y up-sell. | D15: =IF($D$2=Comparativa!$C$2,Comparativa!C15,IF($D$2=Comparativa!$E$2,Comparativa!E15,IF($D$2=Comparativa!$G$2,Comparativa!G15,IF($D$2=Comparativa!$I$2,Comparativa!I15,IF($D$2=Comparativa!$K$2,Comparativa!K15,IF($D$2=Comparativa!$M$2,Comparativa!M15,IF($D$2=Comparativa!$O$2,Comparativa!O15,IF($D$2=Comparativa!$Q$2,Comparativa!Q15,IF($D$2=Comparativa!$S$2,Comparativa!S15,IF($D$2=Comparativa!$U$2,Comparativa!U15,"")))))))))) -> Gestión de contratos. Gestión de socios | E15: =IF($E$2=Comparativa!$C$2,Comparativa!C15,IF($E$2=Comparativa!$E$2,Comparativa!E15,IF($E$2=Comparativa!$G$2,Comparativa!G15,IF($E$2=Comparativa!$I$2,Comparativa!I15,IF($E$2=Comparativa!$K$2,Comparativa!K15,IF($E$2=Comparativa!$M$2,Comparativa!M15,IF($E$2=Comparativa!$O$2,Comparativa!O15,IF($E$2=Comparativa!$Q$2,Comparativa!Q15,IF($E$2=Comparativa!$S$2,Comparativa!S15,IF($E$2=Comparativa!$U$2,Comparativa!U15,"")))))))))) -> (-) | F15: =IF($F$2=Comparativa!$C$2,Comparativa!C15,IF($F$2=Comparativa!$E$2,Comparativa!E15,IF($F$2=Comparativa!$G$2,Comparativa!G15,IF($F$2=Comparativa!$I$2,Comparativa!I15,IF($F$2=Comparativa!$K$2,Comparativa!K15,IF($F$2=Comparativa!$M$2,Comparativa!M15,IF($F$2=Comparativa!$O$2,Comparativa!O15,IF($F$2=Comparativa!$Q$2,Comparativa!Q15,IF($F$2=Comparativa!$S$2,Comparativa!S15,IF($F$2=Comparativa!$U$2,Comparativa!U15,"")))))))))) -> Gestión de equipos. Generación de tickets. | G15: =IF($G$2=Comparativa!$C$2,Comparativa!C15,IF($G$2=Comparativa!$E$2,Comparativa!E15,IF($G$2=Comparativa!$G$2,Comparativa!G15,IF($G$2=Comparativa!$I$2,Comparativa!I15,IF($G$2=Comparativa!$K$2,Comparativa!K15,IF($G$2=Comparativa!$M$2,Comparativa!M15,IF($G$2=Comparativa!$O$2,Comparativa!O15,IF($G$2=Comparativa!$Q$2,Comparativa!Q15,IF($G$2=Comparativa!$S$2,Comparativa!S15,IF($G$2=Comparativa!$U$2,Comparativa!U15,"")))))))))) -> Capacidad y manejo de ventas cruzadas y up-sell. | H15: =IF($H$2=Comparativa!$C$2,Comparativa!C15,IF($H$2=Comparativa!$E$2,Comparativa!E15,IF($H$2=Comparativa!$G$2,Comparativa!G15,IF($H$2=Comparativa!$I$2,Comparativa!I15,IF($H$2=Comparativa!$K$2,Comparativa!K15,IF($H$2=Comparativa!$M$2,Comparativa!M15,IF($H$2=Comparativa!$O$2,Comparativa!O15,IF($H$2=Comparativa!$Q$2,Comparativa!Q15,IF($H$2=Comparativa!$S$2,Comparativa!S15,IF($H$2=Comparativa!$U$2,Comparativa!U15,"")))))))))) -> Gestión de equipos. Optimización de ventas cruzadas. Gestión de productos. | I15: =IF($I$2=Comparativa!$C$2,Comparativa!C15,IF($I$2=Comparativa!$E$2,Comparativa!E15,IF($I$2=Comparativa!$G$2,Comparativa!G15,IF($I$2=Comparativa!$I$2,Comparativa!I15,IF($I$2=Comparativa!$K$2,Comparativa!K15,IF($I$2=Comparativa!$M$2,Comparativa!M15,IF($I$2=Comparativa!$O$2,Comparativa!O15,IF($I$2=Comparativa!$Q$2,Comparativa!Q15,IF($I$2=Comparativa!$S$2,Comparativa!S15,IF($I$2=Comparativa!$U$2,Comparativa!U15,"")))))))))) ->  | J15: =IF($J$2=Comparativa!$C$2,Comparativa!C15,IF($J$2=Comparativa!$E$2,Comparativa!E15,IF($J$2=Comparativa!$G$2,Comparativa!G15,IF($J$2=Comparativa!$I$2,Comparativa!I15,IF($J$2=Comparativa!$K$2,Comparativa!K15,IF($J$2=Comparativa!$M$2,Comparativa!M15,IF($J$2=Comparativa!$O$2,Comparativa!O15,IF($J$2=Comparativa!$Q$2,Comparativa!Q15,IF($J$2=Comparativa!$S$2,Comparativa!S15,IF($J$2=Comparativa!$U$2,Comparativa!U15,"")))))))))) ->  | K15: =IF($K$2=Comparativa!$C$2,Comparativa!C15,IF($K$2=Comparativa!$E$2,Comparativa!E15,IF($K$2=Comparativa!$G$2,Comparativa!G15,IF($K$2=Comparativa!$I$2,Comparativa!I15,IF($K$2=Comparativa!$K$2,Comparativa!K15,IF($K$2=Comparativa!$M$2,Comparativa!M15,IF($K$2=Comparativa!$O$2,Comparativa!O15,IF($K$2=Comparativa!$Q$2,Comparativa!Q15,IF($K$2=Comparativa!$S$2,Comparativa!S15,IF($K$2=Comparativa!$U$2,Comparativa!U15,"")))))))))) ->  | L15: =IF($L$2=Comparativa!$C$2,Comparativa!C15,IF($L$2=Comparativa!$E$2,Comparativa!E15,IF($L$2=Comparativa!$G$2,Comparativa!G15,IF($L$2=Comparativa!$I$2,Comparativa!I15,IF($L$2=Comparativa!$K$2,Comparativa!K15,IF($L$2=Comparativa!$M$2,Comparativa!M15,IF($L$2=Comparativa!$O$2,Comparativa!O15,IF($L$2=Comparativa!$Q$2,Comparativa!Q15,IF($L$2=Comparativa!$S$2,Comparativa!S15,IF($L$2=Comparativa!$U$2,Comparativa!U15,"")))))))))) -> 
A16: Totales | B16: Total Funcionalidades Ventas | C16: =IF($C$2=Comparativa!$C$2,Comparativa!C16,IF($C$2=Comparativa!$E$2,Comparativa!E16,IF($C$2=Comparativa!$G$2,Comparativa!G16,IF($C$2=Comparativa!$I$2,Comparativa!I16,IF($C$2=Comparativa!$K$2,Comparativa!K16,IF($C$2=Comparativa!$M$2,Comparativa!M16,IF($C$2=Comparativa!$O$2,Comparativa!O16,IF($C$2=Comparativa!$Q$2,Comparativa!Q16,IF($C$2=Comparativa!$S$2,Comparativa!S16,IF($C$2=Comparativa!$U$2,Comparativa!U16,"")))))))))) -> 1 | D16: =IF($D$2=Comparativa!$C$2,Comparativa!C16,IF($D$2=Comparativa!$E$2,Comparativa!E16,IF($D$2=Comparativa!$G$2,Comparativa!G16,IF($D$2=Comparativa!$I$2,Comparativa!I16,IF($D$2=Comparativa!$K$2,Comparativa!K16,IF($D$2=Comparativa!$M$2,Comparativa!M16,IF($D$2=Comparativa!$O$2,Comparativa!O16,IF($D$2=Comparativa!$Q$2,Comparativa!Q16,IF($D$2=Comparativa!$S$2,Comparativa!S16,IF($D$2=Comparativa!$U$2,Comparativa!U16,"")))))))))) -> 1 | E16: =IF($E$2=Comparativa!$C$2,Comparativa!C16,IF($E$2=Comparativa!$E$2,Comparativa!E16,IF($E$2=Comparativa!$G$2,Comparativa!G16,IF($E$2=Comparativa!$I$2,Comparativa!I16,IF($E$2=Comparativa!$K$2,Comparativa!K16,IF($E$2=Comparativa!$M$2,Comparativa!M16,IF($E$2=Comparativa!$O$2,Comparativa!O16,IF($E$2=Comparativa!$Q$2,Comparativa!Q16,IF($E$2=Comparativa!$S$2,Comparativa!S16,IF($E$2=Comparativa!$U$2,Comparativa!U16,"")))))))))) -> 1 | F16: =IF($F$2=Comparativa!$C$2,Comparativa!C16,IF($F$2=Comparativa!$E$2,Comparativa!E16,IF($F$2=Comparativa!$G$2,Comparativa!G16,IF($F$2=Comparativa!$I$2,Comparativa!I16,IF($F$2=Comparativa!$K$2,Comparativa!K16,IF($F$2=Comparativa!$M$2,Comparativa!M16,IF($F$2=Comparativa!$O$2,Comparativa!O16,IF($F$2=Comparativa!$Q$2,Comparativa!Q16,IF($F$2=Comparativa!$S$2,Comparativa!S16,IF($F$2=Comparativa!$U$2,Comparativa!U16,"")))))))))) -> 0.8181818182 | G16: =IF($G$2=Comparativa!$C$2,Comparativa!C16,IF($G$2=Comparativa!$E$2,Comparativa!E16,IF($G$2=Comparativa!$G$2,Comparativa!G16,IF($G$2=Comparativa!$I$2,Comparativa!I16,IF($G$2=Comparativa!$K$2,Comparativa!K16,IF($G$2=Comparativa!$M$2,Comparativa!M16,IF($G$2=Comparativa!$O$2,Comparativa!O16,IF($G$2=Comparativa!$Q$2,Comparativa!Q16,IF($G$2=Comparativa!$S$2,Comparativa!S16,IF($G$2=Comparativa!$U$2,Comparativa!U16,"")))))))))) -> 1 | H16: =IF($H$2=Comparativa!$C$2,Comparativa!C16,IF($H$2=Comparativa!$E$2,Comparativa!E16,IF($H$2=Comparativa!$G$2,Comparativa!G16,IF($H$2=Comparativa!$I$2,Comparativa!I16,IF($H$2=Comparativa!$K$2,Comparativa!K16,IF($H$2=Comparativa!$M$2,Comparativa!M16,IF($H$2=Comparativa!$O$2,Comparativa!O16,IF($H$2=Comparativa!$Q$2,Comparativa!Q16,IF($H$2=Comparativa!$S$2,Comparativa!S16,IF($H$2=Comparativa!$U$2,Comparativa!U16,"")))))))))) -> 1 | I16: =IF($I$2=Comparativa!$C$2,Comparativa!C16,IF($I$2=Comparativa!$E$2,Comparativa!E16,IF($I$2=Comparativa!$G$2,Comparativa!G16,IF($I$2=Comparativa!$I$2,Comparativa!I16,IF($I$2=Comparativa!$K$2,Comparativa!K16,IF($I$2=Comparativa!$M$2,Comparativa!M16,IF($I$2=Comparativa!$O$2,Comparativa!O16,IF($I$2=Comparativa!$Q$2,Comparativa!Q16,IF($I$2=Comparativa!$S$2,Comparativa!S16,IF($I$2=Comparativa!$U$2,Comparativa!U16,"")))))))))) ->  | J16: =IF($J$2=Comparativa!$C$2,Comparativa!C16,IF($J$2=Comparativa!$E$2,Comparativa!E16,IF($J$2=Comparativa!$G$2,Comparativa!G16,IF($J$2=Comparativa!$I$2,Comparativa!I16,IF($J$2=Comparativa!$K$2,Comparativa!K16,IF($J$2=Comparativa!$M$2,Comparativa!M16,IF($J$2=Comparativa!$O$2,Comparativa!O16,IF($J$2=Comparativa!$Q$2,Comparativa!Q16,IF($J$2=Comparativa!$S$2,Comparativa!S16,IF($J$2=Comparativa!$U$2,Comparativa!U16,"")))))))))) ->  | K16: =IF($K$2=Comparativa!$C$2,Comparativa!C16,IF($K$2=Comparativa!$E$2,Comparativa!E16,IF($K$2=Comparativa!$G$2,Comparativa!G16,IF($K$2=Comparativa!$I$2,Comparativa!I16,IF($K$2=Comparativa!$K$2,Comparativa!K16,IF($K$2=Comparativa!$M$2,Comparativa!M16,IF($K$2=Comparativa!$O$2,Comparativa!O16,IF($K$2=Comparativa!$Q$2,Comparativa!Q16,IF($K$2=Comparativa!$S$2,Comparativa!S16,IF($K$2=Comparativa!$U$2,Comparativa!U16,"")))))))))) ->  | L16: =IF($L$2=Comparativa!$C$2,Comparativa!C16,IF($L$2=Comparativa!$E$2,Comparativa!E16,IF($L$2=Comparativa!$G$2,Comparativa!G16,IF($L$2=Comparativa!$I$2,Comparativa!I16,IF($L$2=Comparativa!$K$2,Comparativa!K16,IF($L$2=Comparativa!$M$2,Comparativa!M16,IF($L$2=Comparativa!$O$2,Comparativa!O16,IF($L$2=Comparativa!$Q$2,Comparativa!Q16,IF($L$2=Comparativa!$S$2,Comparativa!S16,IF($L$2=Comparativa!$U$2,Comparativa!U16,"")))))))))) -> 
A17: Marketing | B17: Campañas de marketing | C17: =IF($C$2=Comparativa!$C$2,Comparativa!C17,IF($C$2=Comparativa!$E$2,Comparativa!E17,IF($C$2=Comparativa!$G$2,Comparativa!G17,IF($C$2=Comparativa!$I$2,Comparativa!I17,IF($C$2=Comparativa!$K$2,Comparativa!K17,IF($C$2=Comparativa!$M$2,Comparativa!M17,IF($C$2=Comparativa!$O$2,Comparativa!O17,IF($C$2=Comparativa!$Q$2,Comparativa!Q17,IF($C$2=Comparativa!$S$2,Comparativa!S17,IF($C$2=Comparativa!$U$2,Comparativa!U17,"")))))))))) -> x | D17: =IF($D$2=Comparativa!$C$2,Comparativa!C17,IF($D$2=Comparativa!$E$2,Comparativa!E17,IF($D$2=Comparativa!$G$2,Comparativa!G17,IF($D$2=Comparativa!$I$2,Comparativa!I17,IF($D$2=Comparativa!$K$2,Comparativa!K17,IF($D$2=Comparativa!$M$2,Comparativa!M17,IF($D$2=Comparativa!$O$2,Comparativa!O17,IF($D$2=Comparativa!$Q$2,Comparativa!Q17,IF($D$2=Comparativa!$S$2,Comparativa!S17,IF($D$2=Comparativa!$U$2,Comparativa!U17,"")))))))))) -> x | E17: =IF($E$2=Comparativa!$C$2,Comparativa!C17,IF($E$2=Comparativa!$E$2,Comparativa!E17,IF($E$2=Comparativa!$G$2,Comparativa!G17,IF($E$2=Comparativa!$I$2,Comparativa!I17,IF($E$2=Comparativa!$K$2,Comparativa!K17,IF($E$2=Comparativa!$M$2,Comparativa!M17,IF($E$2=Comparativa!$O$2,Comparativa!O17,IF($E$2=Comparativa!$Q$2,Comparativa!Q17,IF($E$2=Comparativa!$S$2,Comparativa!S17,IF($E$2=Comparativa!$U$2,Comparativa!U17,"")))))))))) -> x | F17: =IF($F$2=Comparativa!$C$2,Comparativa!C17,IF($F$2=Comparativa!$E$2,Comparativa!E17,IF($F$2=Comparativa!$G$2,Comparativa!G17,IF($F$2=Comparativa!$I$2,Comparativa!I17,IF($F$2=Comparativa!$K$2,Comparativa!K17,IF($F$2=Comparativa!$M$2,Comparativa!M17,IF($F$2=Comparativa!$O$2,Comparativa!O17,IF($F$2=Comparativa!$Q$2,Comparativa!Q17,IF($F$2=Comparativa!$S$2,Comparativa!S17,IF($F$2=Comparativa!$U$2,Comparativa!U17,"")))))))))) -> x | G17: =IF($G$2=Comparativa!$C$2,Comparativa!C17,IF($G$2=Comparativa!$E$2,Comparativa!E17,IF($G$2=Comparativa!$G$2,Comparativa!G17,IF($G$2=Comparativa!$I$2,Comparativa!I17,IF($G$2=Comparativa!$K$2,Comparativa!K17,IF($G$2=Comparativa!$M$2,Comparativa!M17,IF($G$2=Comparativa!$O$2,Comparativa!O17,IF($G$2=Comparativa!$Q$2,Comparativa!Q17,IF($G$2=Comparativa!$S$2,Comparativa!S17,IF($G$2=Comparativa!$U$2,Comparativa!U17,"")))))))))) -> x | H17: =IF($H$2=Comparativa!$C$2,Comparativa!C17,IF($H$2=Comparativa!$E$2,Comparativa!E17,IF($H$2=Comparativa!$G$2,Comparativa!G17,IF($H$2=Comparativa!$I$2,Comparativa!I17,IF($H$2=Comparativa!$K$2,Comparativa!K17,IF($H$2=Comparativa!$M$2,Comparativa!M17,IF($H$2=Comparativa!$O$2,Comparativa!O17,IF($H$2=Comparativa!$Q$2,Comparativa!Q17,IF($H$2=Comparativa!$S$2,Comparativa!S17,IF($H$2=Comparativa!$U$2,Comparativa!U17,"")))))))))) -> x | I17: =IF($I$2=Comparativa!$C$2,Comparativa!C17,IF($I$2=Comparativa!$E$2,Comparativa!E17,IF($I$2=Comparativa!$G$2,Comparativa!G17,IF($I$2=Comparativa!$I$2,Comparativa!I17,IF($I$2=Comparativa!$K$2,Comparativa!K17,IF($I$2=Comparativa!$M$2,Comparativa!M17,IF($I$2=Comparativa!$O$2,Comparativa!O17,IF($I$2=Comparativa!$Q$2,Comparativa!Q17,IF($I$2=Comparativa!$S$2,Comparativa!S17,IF($I$2=Comparativa!$U$2,Comparativa!U17,"")))))))))) ->  | J17: =IF($J$2=Comparativa!$C$2,Comparativa!C17,IF($J$2=Comparativa!$E$2,Comparativa!E17,IF($J$2=Comparativa!$G$2,Comparativa!G17,IF($J$2=Comparativa!$I$2,Comparativa!I17,IF($J$2=Comparativa!$K$2,Comparativa!K17,IF($J$2=Comparativa!$M$2,Comparativa!M17,IF($J$2=Comparativa!$O$2,Comparativa!O17,IF($J$2=Comparativa!$Q$2,Comparativa!Q17,IF($J$2=Comparativa!$S$2,Comparativa!S17,IF($J$2=Comparativa!$U$2,Comparativa!U17,"")))))))))) ->  | K17: =IF($K$2=Comparativa!$C$2,Comparativa!C17,IF($K$2=Comparativa!$E$2,Comparativa!E17,IF($K$2=Comparativa!$G$2,Comparativa!G17,IF($K$2=Comparativa!$I$2,Comparativa!I17,IF($K$2=Comparativa!$K$2,Comparativa!K17,IF($K$2=Comparativa!$M$2,Comparativa!M17,IF($K$2=Comparativa!$O$2,Comparativa!O17,IF($K$2=Comparativa!$Q$2,Comparativa!Q17,IF($K$2=Comparativa!$S$2,Comparativa!S17,IF($K$2=Comparativa!$U$2,Comparativa!U17,"")))))))))) ->  | L17: =IF($L$2=Comparativa!$C$2,Comparativa!C17,IF($L$2=Comparativa!$E$2,Comparativa!E17,IF($L$2=Comparativa!$G$2,Comparativa!G17,IF($L$2=Comparativa!$I$2,Comparativa!I17,IF($L$2=Comparativa!$K$2,Comparativa!K17,IF($L$2=Comparativa!$M$2,Comparativa!M17,IF($L$2=Comparativa!$O$2,Comparativa!O17,IF($L$2=Comparativa!$Q$2,Comparativa!Q17,IF($L$2=Comparativa!$S$2,Comparativa!S17,IF($L$2=Comparativa!$U$2,Comparativa!U17,"")))))))))) -> 
B18: Plantillas | C18: =IF($C$2=Comparativa!$C$2,Comparativa!C18,IF($C$2=Comparativa!$E$2,Comparativa!E18,IF($C$2=Comparativa!$G$2,Comparativa!G18,IF($C$2=Comparativa!$I$2,Comparativa!I18,IF($C$2=Comparativa!$K$2,Comparativa!K18,IF($C$2=Comparativa!$M$2,Comparativa!M18,IF($C$2=Comparativa!$O$2,Comparativa!O18,IF($C$2=Comparativa!$Q$2,Comparativa!Q18,IF($C$2=Comparativa!$S$2,Comparativa!S18,IF($C$2=Comparativa!$U$2,Comparativa!U18,"")))))))))) -> x | D18: =IF($D$2=Comparativa!$C$2,Comparativa!C18,IF($D$2=Comparativa!$E$2,Comparativa!E18,IF($D$2=Comparativa!$G$2,Comparativa!G18,IF($D$2=Comparativa!$I$2,Comparativa!I18,IF($D$2=Comparativa!$K$2,Comparativa!K18,IF($D$2=Comparativa!$M$2,Comparativa!M18,IF($D$2=Comparativa!$O$2,Comparativa!O18,IF($D$2=Comparativa!$Q$2,Comparativa!Q18,IF($D$2=Comparativa!$S$2,Comparativa!S18,IF($D$2=Comparativa!$U$2,Comparativa!U18,"")))))))))) -> x | E18: =IF($E$2=Comparativa!$C$2,Comparativa!C18,IF($E$2=Comparativa!$E$2,Comparativa!E18,IF($E$2=Comparativa!$G$2,Comparativa!G18,IF($E$2=Comparativa!$I$2,Comparativa!I18,IF($E$2=Comparativa!$K$2,Comparativa!K18,IF($E$2=Comparativa!$M$2,Comparativa!M18,IF($E$2=Comparativa!$O$2,Comparativa!O18,IF($E$2=Comparativa!$Q$2,Comparativa!Q18,IF($E$2=Comparativa!$S$2,Comparativa!S18,IF($E$2=Comparativa!$U$2,Comparativa!U18,"")))))))))) -> x | F18: =IF($F$2=Comparativa!$C$2,Comparativa!C18,IF($F$2=Comparativa!$E$2,Comparativa!E18,IF($F$2=Comparativa!$G$2,Comparativa!G18,IF($F$2=Comparativa!$I$2,Comparativa!I18,IF($F$2=Comparativa!$K$2,Comparativa!K18,IF($F$2=Comparativa!$M$2,Comparativa!M18,IF($F$2=Comparativa!$O$2,Comparativa!O18,IF($F$2=Comparativa!$Q$2,Comparativa!Q18,IF($F$2=Comparativa!$S$2,Comparativa!S18,IF($F$2=Comparativa!$U$2,Comparativa!U18,"")))))))))) -> x | G18: =IF($G$2=Comparativa!$C$2,Comparativa!C18,IF($G$2=Comparativa!$E$2,Comparativa!E18,IF($G$2=Comparativa!$G$2,Comparativa!G18,IF($G$2=Comparativa!$I$2,Comparativa!I18,IF($G$2=Comparativa!$K$2,Comparativa!K18,IF($G$2=Comparativa!$M$2,Comparativa!M18,IF($G$2=Comparativa!$O$2,Comparativa!O18,IF($G$2=Comparativa!$Q$2,Comparativa!Q18,IF($G$2=Comparativa!$S$2,Comparativa!S18,IF($G$2=Comparativa!$U$2,Comparativa!U18,"")))))))))) -> x | H18: =IF($H$2=Comparativa!$C$2,Comparativa!C18,IF($H$2=Comparativa!$E$2,Comparativa!E18,IF($H$2=Comparativa!$G$2,Comparativa!G18,IF($H$2=Comparativa!$I$2,Comparativa!I18,IF($H$2=Comparativa!$K$2,Comparativa!K18,IF($H$2=Comparativa!$M$2,Comparativa!M18,IF($H$2=Comparativa!$O$2,Comparativa!O18,IF($H$2=Comparativa!$Q$2,Comparativa!Q18,IF($H$2=Comparativa!$S$2,Comparativa!S18,IF($H$2=Comparativa!$U$2,Comparativa!U18,"")))))))))) -> x | I18: =IF($I$2=Comparativa!$C$2,Comparativa!C18,IF($I$2=Comparativa!$E$2,Comparativa!E18,IF($I$2=Comparativa!$G$2,Comparativa!G18,IF($I$2=Comparativa!$I$2,Comparativa!I18,IF($I$2=Comparativa!$K$2,Comparativa!K18,IF($I$2=Comparativa!$M$2,Comparativa!M18,IF($I$2=Comparativa!$O$2,Comparativa!O18,IF($I$2=Comparativa!$Q$2,Comparativa!Q18,IF($I$2=Comparativa!$S$2,Comparativa!S18,IF($I$2=Comparativa!$U$2,Comparativa!U18,"")))))))))) ->  | J18: =IF($J$2=Comparativa!$C$2,Comparativa!C18,IF($J$2=Comparativa!$E$2,Comparativa!E18,IF($J$2=Comparativa!$G$2,Comparativa!G18,IF($J$2=Comparativa!$I$2,Comparativa!I18,IF($J$2=Comparativa!$K$2,Comparativa!K18,IF($J$2=Comparativa!$M$2,Comparativa!M18,IF($J$2=Comparativa!$O$2,Comparativa!O18,IF($J$2=Comparativa!$Q$2,Comparativa!Q18,IF($J$2=Comparativa!$S$2,Comparativa!S18,IF($J$2=Comparativa!$U$2,Comparativa!U18,"")))))))))) ->  | K18: =IF($K$2=Comparativa!$C$2,Comparativa!C18,IF($K$2=Comparativa!$E$2,Comparativa!E18,IF($K$2=Comparativa!$G$2,Comparativa!G18,IF($K$2=Comparativa!$I$2,Comparativa!I18,IF($K$2=Comparativa!$K$2,Comparativa!K18,IF($K$2=Comparativa!$M$2,Comparativa!M18,IF($K$2=Comparativa!$O$2,Comparativa!O18,IF($K$2=Comparativa!$Q$2,Comparativa!Q18,IF($K$2=Comparativa!$S$2,Comparativa!S18,IF($K$2=Comparativa!$U$2,Comparativa!U18,"")))))))))) ->  | L18: =IF($L$2=Comparativa!$C$2,Comparativa!C18,IF($L$2=Comparativa!$E$2,Comparativa!E18,IF($L$2=Comparativa!$G$2,Comparativa!G18,IF($L$2=Comparativa!$I$2,Comparativa!I18,IF($L$2=Comparativa!$K$2,Comparativa!K18,IF($L$2=Comparativa!$M$2,Comparativa!M18,IF($L$2=Comparativa!$O$2,Comparativa!O18,IF($L$2=Comparativa!$Q$2,Comparativa!Q18,IF($L$2=Comparativa!$S$2,Comparativa!S18,IF($L$2=Comparativa!$U$2,Comparativa!U18,"")))))))))) -> 
B19: Monitoreo de ROI | C19: =IF($C$2=Comparativa!$C$2,Comparativa!C19,IF($C$2=Comparativa!$E$2,Comparativa!E19,IF($C$2=Comparativa!$G$2,Comparativa!G19,IF($C$2=Comparativa!$I$2,Comparativa!I19,IF($C$2=Comparativa!$K$2,Comparativa!K19,IF($C$2=Comparativa!$M$2,Comparativa!M19,IF($C$2=Comparativa!$O$2,Comparativa!O19,IF($C$2=Comparativa!$Q$2,Comparativa!Q19,IF($C$2=Comparativa!$S$2,Comparativa!S19,IF($C$2=Comparativa!$U$2,Comparativa!U19,"")))))))))) -> x | D19: =IF($D$2=Comparativa!$C$2,Comparativa!C19,IF($D$2=Comparativa!$E$2,Comparativa!E19,IF($D$2=Comparativa!$G$2,Comparativa!G19,IF($D$2=Comparativa!$I$2,Comparativa!I19,IF($D$2=Comparativa!$K$2,Comparativa!K19,IF($D$2=Comparativa!$M$2,Comparativa!M19,IF($D$2=Comparativa!$O$2,Comparativa!O19,IF($D$2=Comparativa!$Q$2,Comparativa!Q19,IF($D$2=Comparativa!$S$2,Comparativa!S19,IF($D$2=Comparativa!$U$2,Comparativa!U19,"")))))))))) -> x | E19: =IF($E$2=Comparativa!$C$2,Comparativa!C19,IF($E$2=Comparativa!$E$2,Comparativa!E19,IF($E$2=Comparativa!$G$2,Comparativa!G19,IF($E$2=Comparativa!$I$2,Comparativa!I19,IF($E$2=Comparativa!$K$2,Comparativa!K19,IF($E$2=Comparativa!$M$2,Comparativa!M19,IF($E$2=Comparativa!$O$2,Comparativa!O19,IF($E$2=Comparativa!$Q$2,Comparativa!Q19,IF($E$2=Comparativa!$S$2,Comparativa!S19,IF($E$2=Comparativa!$U$2,Comparativa!U19,"")))))))))) -> x | F19: =IF($F$2=Comparativa!$C$2,Comparativa!C19,IF($F$2=Comparativa!$E$2,Comparativa!E19,IF($F$2=Comparativa!$G$2,Comparativa!G19,IF($F$2=Comparativa!$I$2,Comparativa!I19,IF($F$2=Comparativa!$K$2,Comparativa!K19,IF($F$2=Comparativa!$M$2,Comparativa!M19,IF($F$2=Comparativa!$O$2,Comparativa!O19,IF($F$2=Comparativa!$Q$2,Comparativa!Q19,IF($F$2=Comparativa!$S$2,Comparativa!S19,IF($F$2=Comparativa!$U$2,Comparativa!U19,"")))))))))) -> x | G19: =IF($G$2=Comparativa!$C$2,Comparativa!C19,IF($G$2=Comparativa!$E$2,Comparativa!E19,IF($G$2=Comparativa!$G$2,Comparativa!G19,IF($G$2=Comparativa!$I$2,Comparativa!I19,IF($G$2=Comparativa!$K$2,Comparativa!K19,IF($G$2=Comparativa!$M$2,Comparativa!M19,IF($G$2=Comparativa!$O$2,Comparativa!O19,IF($G$2=Comparativa!$Q$2,Comparativa!Q19,IF($G$2=Comparativa!$S$2,Comparativa!S19,IF($G$2=Comparativa!$U$2,Comparativa!U19,"")))))))))) -> x | H19: =IF($H$2=Comparativa!$C$2,Comparativa!C19,IF($H$2=Comparativa!$E$2,Comparativa!E19,IF($H$2=Comparativa!$G$2,Comparativa!G19,IF($H$2=Comparativa!$I$2,Comparativa!I19,IF($H$2=Comparativa!$K$2,Comparativa!K19,IF($H$2=Comparativa!$M$2,Comparativa!M19,IF($H$2=Comparativa!$O$2,Comparativa!O19,IF($H$2=Comparativa!$Q$2,Comparativa!Q19,IF($H$2=Comparativa!$S$2,Comparativa!S19,IF($H$2=Comparativa!$U$2,Comparativa!U19,"")))))))))) -> x | I19: =IF($I$2=Comparativa!$C$2,Comparativa!C19,IF($I$2=Comparativa!$E$2,Comparativa!E19,IF($I$2=Comparativa!$G$2,Comparativa!G19,IF($I$2=Comparativa!$I$2,Comparativa!I19,IF($I$2=Comparativa!$K$2,Comparativa!K19,IF($I$2=Comparativa!$M$2,Comparativa!M19,IF($I$2=Comparativa!$O$2,Comparativa!O19,IF($I$2=Comparativa!$Q$2,Comparativa!Q19,IF($I$2=Comparativa!$S$2,Comparativa!S19,IF($I$2=Comparativa!$U$2,Comparativa!U19,"")))))))))) ->  | J19: =IF($J$2=Comparativa!$C$2,Comparativa!C19,IF($J$2=Comparativa!$E$2,Comparativa!E19,IF($J$2=Comparativa!$G$2,Comparativa!G19,IF($J$2=Comparativa!$I$2,Comparativa!I19,IF($J$2=Comparativa!$K$2,Comparativa!K19,IF($J$2=Comparativa!$M$2,Comparativa!M19,IF($J$2=Comparativa!$O$2,Comparativa!O19,IF($J$2=Comparativa!$Q$2,Comparativa!Q19,IF($J$2=Comparativa!$S$2,Comparativa!S19,IF($J$2=Comparativa!$U$2,Comparativa!U19,"")))))))))) ->  | K19: =IF($K$2=Comparativa!$C$2,Comparativa!C19,IF($K$2=Comparativa!$E$2,Comparativa!E19,IF($K$2=Comparativa!$G$2,Comparativa!G19,IF($K$2=Comparativa!$I$2,Comparativa!I19,IF($K$2=Comparativa!$K$2,Comparativa!K19,IF($K$2=Comparativa!$M$2,Comparativa!M19,IF($K$2=Comparativa!$O$2,Comparativa!O19,IF($K$2=Comparativa!$Q$2,Comparativa!Q19,IF($K$2=Comparativa!$S$2,Comparativa!S19,IF($K$2=Comparativa!$U$2,Comparativa!U19,"")))))))))) ->  | L19: =IF($L$2=Comparativa!$C$2,Comparativa!C19,IF($L$2=Comparativa!$E$2,Comparativa!E19,IF($L$2=Comparativa!$G$2,Comparativa!G19,IF($L$2=Comparativa!$I$2,Comparativa!I19,IF($L$2=Comparativa!$K$2,Comparativa!K19,IF($L$2=Comparativa!$M$2,Comparativa!M19,IF($L$2=Comparativa!$O$2,Comparativa!O19,IF($L$2=Comparativa!$Q$2,Comparativa!Q19,IF($L$2=Comparativa!$S$2,Comparativa!S19,IF($L$2=Comparativa!$U$2,Comparativa!U19,"")))))))))) -> 
B20: Creación de listas | C20: =IF($C$2=Comparativa!$C$2,Comparativa!C20,IF($C$2=Comparativa!$E$2,Comparativa!E20,IF($C$2=Comparativa!$G$2,Comparativa!G20,IF($C$2=Comparativa!$I$2,Comparativa!I20,IF($C$2=Comparativa!$K$2,Comparativa!K20,IF($C$2=Comparativa!$M$2,Comparativa!M20,IF($C$2=Comparativa!$O$2,Comparativa!O20,IF($C$2=Comparativa!$Q$2,Comparativa!Q20,IF($C$2=Comparativa!$S$2,Comparativa!S20,IF($C$2=Comparativa!$U$2,Comparativa!U20,"")))))))))) -> x | D20: =IF($D$2=Comparativa!$C$2,Comparativa!C20,IF($D$2=Comparativa!$E$2,Comparativa!E20,IF($D$2=Comparativa!$G$2,Comparativa!G20,IF($D$2=Comparativa!$I$2,Comparativa!I20,IF($D$2=Comparativa!$K$2,Comparativa!K20,IF($D$2=Comparativa!$M$2,Comparativa!M20,IF($D$2=Comparativa!$O$2,Comparativa!O20,IF($D$2=Comparativa!$Q$2,Comparativa!Q20,IF($D$2=Comparativa!$S$2,Comparativa!S20,IF($D$2=Comparativa!$U$2,Comparativa!U20,"")))))))))) -> x | E20: =IF($E$2=Comparativa!$C$2,Comparativa!C20,IF($E$2=Comparativa!$E$2,Comparativa!E20,IF($E$2=Comparativa!$G$2,Comparativa!G20,IF($E$2=Comparativa!$I$2,Comparativa!I20,IF($E$2=Comparativa!$K$2,Comparativa!K20,IF($E$2=Comparativa!$M$2,Comparativa!M20,IF($E$2=Comparativa!$O$2,Comparativa!O20,IF($E$2=Comparativa!$Q$2,Comparativa!Q20,IF($E$2=Comparativa!$S$2,Comparativa!S20,IF($E$2=Comparativa!$U$2,Comparativa!U20,"")))))))))) -> x | F20: =IF($F$2=Comparativa!$C$2,Comparativa!C20,IF($F$2=Comparativa!$E$2,Comparativa!E20,IF($F$2=Comparativa!$G$2,Comparativa!G20,IF($F$2=Comparativa!$I$2,Comparativa!I20,IF($F$2=Comparativa!$K$2,Comparativa!K20,IF($F$2=Comparativa!$M$2,Comparativa!M20,IF($F$2=Comparativa!$O$2,Comparativa!O20,IF($F$2=Comparativa!$Q$2,Comparativa!Q20,IF($F$2=Comparativa!$S$2,Comparativa!S20,IF($F$2=Comparativa!$U$2,Comparativa!U20,"")))))))))) -> x | G20: =IF($G$2=Comparativa!$C$2,Comparativa!C20,IF($G$2=Comparativa!$E$2,Comparativa!E20,IF($G$2=Comparativa!$G$2,Comparativa!G20,IF($G$2=Comparativa!$I$2,Comparativa!I20,IF($G$2=Comparativa!$K$2,Comparativa!K20,IF($G$2=Comparativa!$M$2,Comparativa!M20,IF($G$2=Comparativa!$O$2,Comparativa!O20,IF($G$2=Comparativa!$Q$2,Comparativa!Q20,IF($G$2=Comparativa!$S$2,Comparativa!S20,IF($G$2=Comparativa!$U$2,Comparativa!U20,"")))))))))) -> x | H20: =IF($H$2=Comparativa!$C$2,Comparativa!C20,IF($H$2=Comparativa!$E$2,Comparativa!E20,IF($H$2=Comparativa!$G$2,Comparativa!G20,IF($H$2=Comparativa!$I$2,Comparativa!I20,IF($H$2=Comparativa!$K$2,Comparativa!K20,IF($H$2=Comparativa!$M$2,Comparativa!M20,IF($H$2=Comparativa!$O$2,Comparativa!O20,IF($H$2=Comparativa!$Q$2,Comparativa!Q20,IF($H$2=Comparativa!$S$2,Comparativa!S20,IF($H$2=Comparativa!$U$2,Comparativa!U20,"")))))))))) -> x | I20: =IF($I$2=Comparativa!$C$2,Comparativa!C20,IF($I$2=Comparativa!$E$2,Comparativa!E20,IF($I$2=Comparativa!$G$2,Comparativa!G20,IF($I$2=Comparativa!$I$2,Comparativa!I20,IF($I$2=Comparativa!$K$2,Comparativa!K20,IF($I$2=Comparativa!$M$2,Comparativa!M20,IF($I$2=Comparativa!$O$2,Comparativa!O20,IF($I$2=Comparativa!$Q$2,Comparativa!Q20,IF($I$2=Comparativa!$S$2,Comparativa!S20,IF($I$2=Comparativa!$U$2,Comparativa!U20,"")))))))))) ->  | J20: =IF($J$2=Comparativa!$C$2,Comparativa!C20,IF($J$2=Comparativa!$E$2,Comparativa!E20,IF($J$2=Comparativa!$G$2,Comparativa!G20,IF($J$2=Comparativa!$I$2,Comparativa!I20,IF($J$2=Comparativa!$K$2,Comparativa!K20,IF($J$2=Comparativa!$M$2,Comparativa!M20,IF($J$2=Comparativa!$O$2,Comparativa!O20,IF($J$2=Comparativa!$Q$2,Comparativa!Q20,IF($J$2=Comparativa!$S$2,Comparativa!S20,IF($J$2=Comparativa!$U$2,Comparativa!U20,"")))))))))) ->  | K20: =IF($K$2=Comparativa!$C$2,Comparativa!C20,IF($K$2=Comparativa!$E$2,Comparativa!E20,IF($K$2=Comparativa!$G$2,Comparativa!G20,IF($K$2=Comparativa!$I$2,Comparativa!I20,IF($K$2=Comparativa!$K$2,Comparativa!K20,IF($K$2=Comparativa!$M$2,Comparativa!M20,IF($K$2=Comparativa!$O$2,Comparativa!O20,IF($K$2=Comparativa!$Q$2,Comparativa!Q20,IF($K$2=Comparativa!$S$2,Comparativa!S20,IF($K$2=Comparativa!$U$2,Comparativa!U20,"")))))))))) ->  | L20: =IF($L$2=Comparativa!$C$2,Comparativa!C20,IF($L$2=Comparativa!$E$2,Comparativa!E20,IF($L$2=Comparativa!$G$2,Comparativa!G20,IF($L$2=Comparativa!$I$2,Comparativa!I20,IF($L$2=Comparativa!$K$2,Comparativa!K20,IF($L$2=Comparativa!$M$2,Comparativa!M20,IF($L$2=Comparativa!$O$2,Comparativa!O20,IF($L$2=Comparativa!$Q$2,Comparativa!Q20,IF($L$2=Comparativa!$S$2,Comparativa!S20,IF($L$2=Comparativa!$U$2,Comparativa!U20,"")))))))))) -> 
B21: Seguimiento de la información de marketing | C21: =IF($C$2=Comparativa!$C$2,Comparativa!C21,IF($C$2=Comparativa!$E$2,Comparativa!E21,IF($C$2=Comparativa!$G$2,Comparativa!G21,IF($C$2=Comparativa!$I$2,Comparativa!I21,IF($C$2=Comparativa!$K$2,Comparativa!K21,IF($C$2=Comparativa!$M$2,Comparativa!M21,IF($C$2=Comparativa!$O$2,Comparativa!O21,IF($C$2=Comparativa!$Q$2,Comparativa!Q21,IF($C$2=Comparativa!$S$2,Comparativa!S21,IF($C$2=Comparativa!$U$2,Comparativa!U21,"")))))))))) -> x | D21: =IF($D$2=Comparativa!$C$2,Comparativa!C21,IF($D$2=Comparativa!$E$2,Comparativa!E21,IF($D$2=Comparativa!$G$2,Comparativa!G21,IF($D$2=Comparativa!$I$2,Comparativa!I21,IF($D$2=Comparativa!$K$2,Comparativa!K21,IF($D$2=Comparativa!$M$2,Comparativa!M21,IF($D$2=Comparativa!$O$2,Comparativa!O21,IF($D$2=Comparativa!$Q$2,Comparativa!Q21,IF($D$2=Comparativa!$S$2,Comparativa!S21,IF($D$2=Comparativa!$U$2,Comparativa!U21,"")))))))))) -> x | E21: =IF($E$2=Comparativa!$C$2,Comparativa!C21,IF($E$2=Comparativa!$E$2,Comparativa!E21,IF($E$2=Comparativa!$G$2,Comparativa!G21,IF($E$2=Comparativa!$I$2,Comparativa!I21,IF($E$2=Comparativa!$K$2,Comparativa!K21,IF($E$2=Comparativa!$M$2,Comparativa!M21,IF($E$2=Comparativa!$O$2,Comparativa!O21,IF($E$2=Comparativa!$Q$2,Comparativa!Q21,IF($E$2=Comparativa!$S$2,Comparativa!S21,IF($E$2=Comparativa!$U$2,Comparativa!U21,"")))))))))) -> x | F21: =IF($F$2=Comparativa!$C$2,Comparativa!C21,IF($F$2=Comparativa!$E$2,Comparativa!E21,IF($F$2=Comparativa!$G$2,Comparativa!G21,IF($F$2=Comparativa!$I$2,Comparativa!I21,IF($F$2=Comparativa!$K$2,Comparativa!K21,IF($F$2=Comparativa!$M$2,Comparativa!M21,IF($F$2=Comparativa!$O$2,Comparativa!O21,IF($F$2=Comparativa!$Q$2,Comparativa!Q21,IF($F$2=Comparativa!$S$2,Comparativa!S21,IF($F$2=Comparativa!$U$2,Comparativa!U21,"")))))))))) -> x | G21: =IF($G$2=Comparativa!$C$2,Comparativa!C21,IF($G$2=Comparativa!$E$2,Comparativa!E21,IF($G$2=Comparativa!$G$2,Comparativa!G21,IF($G$2=Comparativa!$I$2,Comparativa!I21,IF($G$2=Comparativa!$K$2,Comparativa!K21,IF($G$2=Comparativa!$M$2,Comparativa!M21,IF($G$2=Comparativa!$O$2,Comparativa!O21,IF($G$2=Comparativa!$Q$2,Comparativa!Q21,IF($G$2=Comparativa!$S$2,Comparativa!S21,IF($G$2=Comparativa!$U$2,Comparativa!U21,"")))))))))) -> x | H21: =IF($H$2=Comparativa!$C$2,Comparativa!C21,IF($H$2=Comparativa!$E$2,Comparativa!E21,IF($H$2=Comparativa!$G$2,Comparativa!G21,IF($H$2=Comparativa!$I$2,Comparativa!I21,IF($H$2=Comparativa!$K$2,Comparativa!K21,IF($H$2=Comparativa!$M$2,Comparativa!M21,IF($H$2=Comparativa!$O$2,Comparativa!O21,IF($H$2=Comparativa!$Q$2,Comparativa!Q21,IF($H$2=Comparativa!$S$2,Comparativa!S21,IF($H$2=Comparativa!$U$2,Comparativa!U21,"")))))))))) -> x | I21: =IF($I$2=Comparativa!$C$2,Comparativa!C21,IF($I$2=Comparativa!$E$2,Comparativa!E21,IF($I$2=Comparativa!$G$2,Comparativa!G21,IF($I$2=Comparativa!$I$2,Comparativa!I21,IF($I$2=Comparativa!$K$2,Comparativa!K21,IF($I$2=Comparativa!$M$2,Comparativa!M21,IF($I$2=Comparativa!$O$2,Comparativa!O21,IF($I$2=Comparativa!$Q$2,Comparativa!Q21,IF($I$2=Comparativa!$S$2,Comparativa!S21,IF($I$2=Comparativa!$U$2,Comparativa!U21,"")))))))))) ->  | J21: =IF($J$2=Comparativa!$C$2,Comparativa!C21,IF($J$2=Comparativa!$E$2,Comparativa!E21,IF($J$2=Comparativa!$G$2,Comparativa!G21,IF($J$2=Comparativa!$I$2,Comparativa!I21,IF($J$2=Comparativa!$K$2,Comparativa!K21,IF($J$2=Comparativa!$M$2,Comparativa!M21,IF($J$2=Comparativa!$O$2,Comparativa!O21,IF($J$2=Comparativa!$Q$2,Comparativa!Q21,IF($J$2=Comparativa!$S$2,Comparativa!S21,IF($J$2=Comparativa!$U$2,Comparativa!U21,"")))))))))) ->  | K21: =IF($K$2=Comparativa!$C$2,Comparativa!C21,IF($K$2=Comparativa!$E$2,Comparativa!E21,IF($K$2=Comparativa!$G$2,Comparativa!G21,IF($K$2=Comparativa!$I$2,Comparativa!I21,IF($K$2=Comparativa!$K$2,Comparativa!K21,IF($K$2=Comparativa!$M$2,Comparativa!M21,IF($K$2=Comparativa!$O$2,Comparativa!O21,IF($K$2=Comparativa!$Q$2,Comparativa!Q21,IF($K$2=Comparativa!$S$2,Comparativa!S21,IF($K$2=Comparativa!$U$2,Comparativa!U21,"")))))))))) ->  | L21: =IF($L$2=Comparativa!$C$2,Comparativa!C21,IF($L$2=Comparativa!$E$2,Comparativa!E21,IF($L$2=Comparativa!$G$2,Comparativa!G21,IF($L$2=Comparativa!$I$2,Comparativa!I21,IF($L$2=Comparativa!$K$2,Comparativa!K21,IF($L$2=Comparativa!$M$2,Comparativa!M21,IF($L$2=Comparativa!$O$2,Comparativa!O21,IF($L$2=Comparativa!$Q$2,Comparativa!Q21,IF($L$2=Comparativa!$S$2,Comparativa!S21,IF($L$2=Comparativa!$U$2,Comparativa!U21,"")))))))))) -> 
B22: Seguimiento del flujo de trabajo | C22: =IF($C$2=Comparativa!$C$2,Comparativa!C22,IF($C$2=Comparativa!$E$2,Comparativa!E22,IF($C$2=Comparativa!$G$2,Comparativa!G22,IF($C$2=Comparativa!$I$2,Comparativa!I22,IF($C$2=Comparativa!$K$2,Comparativa!K22,IF($C$2=Comparativa!$M$2,Comparativa!M22,IF($C$2=Comparativa!$O$2,Comparativa!O22,IF($C$2=Comparativa!$Q$2,Comparativa!Q22,IF($C$2=Comparativa!$S$2,Comparativa!S22,IF($C$2=Comparativa!$U$2,Comparativa!U22,"")))))))))) -> x | D22: =IF($D$2=Comparativa!$C$2,Comparativa!C22,IF($D$2=Comparativa!$E$2,Comparativa!E22,IF($D$2=Comparativa!$G$2,Comparativa!G22,IF($D$2=Comparativa!$I$2,Comparativa!I22,IF($D$2=Comparativa!$K$2,Comparativa!K22,IF($D$2=Comparativa!$M$2,Comparativa!M22,IF($D$2=Comparativa!$O$2,Comparativa!O22,IF($D$2=Comparativa!$Q$2,Comparativa!Q22,IF($D$2=Comparativa!$S$2,Comparativa!S22,IF($D$2=Comparativa!$U$2,Comparativa!U22,"")))))))))) -> x | E22: =IF($E$2=Comparativa!$C$2,Comparativa!C22,IF($E$2=Comparativa!$E$2,Comparativa!E22,IF($E$2=Comparativa!$G$2,Comparativa!G22,IF($E$2=Comparativa!$I$2,Comparativa!I22,IF($E$2=Comparativa!$K$2,Comparativa!K22,IF($E$2=Comparativa!$M$2,Comparativa!M22,IF($E$2=Comparativa!$O$2,Comparativa!O22,IF($E$2=Comparativa!$Q$2,Comparativa!Q22,IF($E$2=Comparativa!$S$2,Comparativa!S22,IF($E$2=Comparativa!$U$2,Comparativa!U22,"")))))))))) -> x | F22: =IF($F$2=Comparativa!$C$2,Comparativa!C22,IF($F$2=Comparativa!$E$2,Comparativa!E22,IF($F$2=Comparativa!$G$2,Comparativa!G22,IF($F$2=Comparativa!$I$2,Comparativa!I22,IF($F$2=Comparativa!$K$2,Comparativa!K22,IF($F$2=Comparativa!$M$2,Comparativa!M22,IF($F$2=Comparativa!$O$2,Comparativa!O22,IF($F$2=Comparativa!$Q$2,Comparativa!Q22,IF($F$2=Comparativa!$S$2,Comparativa!S22,IF($F$2=Comparativa!$U$2,Comparativa!U22,"")))))))))) -> x | G22: =IF($G$2=Comparativa!$C$2,Comparativa!C22,IF($G$2=Comparativa!$E$2,Comparativa!E22,IF($G$2=Comparativa!$G$2,Comparativa!G22,IF($G$2=Comparativa!$I$2,Comparativa!I22,IF($G$2=Comparativa!$K$2,Comparativa!K22,IF($G$2=Comparativa!$M$2,Comparativa!M22,IF($G$2=Comparativa!$O$2,Comparativa!O22,IF($G$2=Comparativa!$Q$2,Comparativa!Q22,IF($G$2=Comparativa!$S$2,Comparativa!S22,IF($G$2=Comparativa!$U$2,Comparativa!U22,"")))))))))) -> x | H22: =IF($H$2=Comparativa!$C$2,Comparativa!C22,IF($H$2=Comparativa!$E$2,Comparativa!E22,IF($H$2=Comparativa!$G$2,Comparativa!G22,IF($H$2=Comparativa!$I$2,Comparativa!I22,IF($H$2=Comparativa!$K$2,Comparativa!K22,IF($H$2=Comparativa!$M$2,Comparativa!M22,IF($H$2=Comparativa!$O$2,Comparativa!O22,IF($H$2=Comparativa!$Q$2,Comparativa!Q22,IF($H$2=Comparativa!$S$2,Comparativa!S22,IF($H$2=Comparativa!$U$2,Comparativa!U22,"")))))))))) -> x | I22: =IF($I$2=Comparativa!$C$2,Comparativa!C22,IF($I$2=Comparativa!$E$2,Comparativa!E22,IF($I$2=Comparativa!$G$2,Comparativa!G22,IF($I$2=Comparativa!$I$2,Comparativa!I22,IF($I$2=Comparativa!$K$2,Comparativa!K22,IF($I$2=Comparativa!$M$2,Comparativa!M22,IF($I$2=Comparativa!$O$2,Comparativa!O22,IF($I$2=Comparativa!$Q$2,Comparativa!Q22,IF($I$2=Comparativa!$S$2,Comparativa!S22,IF($I$2=Comparativa!$U$2,Comparativa!U22,"")))))))))) ->  | J22: =IF($J$2=Comparativa!$C$2,Comparativa!C22,IF($J$2=Comparativa!$E$2,Comparativa!E22,IF($J$2=Comparativa!$G$2,Comparativa!G22,IF($J$2=Comparativa!$I$2,Comparativa!I22,IF($J$2=Comparativa!$K$2,Comparativa!K22,IF($J$2=Comparativa!$M$2,Comparativa!M22,IF($J$2=Comparativa!$O$2,Comparativa!O22,IF($J$2=Comparativa!$Q$2,Comparativa!Q22,IF($J$2=Comparativa!$S$2,Comparativa!S22,IF($J$2=Comparativa!$U$2,Comparativa!U22,"")))))))))) ->  | K22: =IF($K$2=Comparativa!$C$2,Comparativa!C22,IF($K$2=Comparativa!$E$2,Comparativa!E22,IF($K$2=Comparativa!$G$2,Comparativa!G22,IF($K$2=Comparativa!$I$2,Comparativa!I22,IF($K$2=Comparativa!$K$2,Comparativa!K22,IF($K$2=Comparativa!$M$2,Comparativa!M22,IF($K$2=Comparativa!$O$2,Comparativa!O22,IF($K$2=Comparativa!$Q$2,Comparativa!Q22,IF($K$2=Comparativa!$S$2,Comparativa!S22,IF($K$2=Comparativa!$U$2,Comparativa!U22,"")))))))))) ->  | L22: =IF($L$2=Comparativa!$C$2,Comparativa!C22,IF($L$2=Comparativa!$E$2,Comparativa!E22,IF($L$2=Comparativa!$G$2,Comparativa!G22,IF($L$2=Comparativa!$I$2,Comparativa!I22,IF($L$2=Comparativa!$K$2,Comparativa!K22,IF($L$2=Comparativa!$M$2,Comparativa!M22,IF($L$2=Comparativa!$O$2,Comparativa!O22,IF($L$2=Comparativa!$Q$2,Comparativa!Q22,IF($L$2=Comparativa!$S$2,Comparativa!S22,IF($L$2=Comparativa!$U$2,Comparativa!U22,"")))))))))) -> 
B23: Gestión de promociones y eventos | C23: =IF($C$2=Comparativa!$C$2,Comparativa!C23,IF($C$2=Comparativa!$E$2,Comparativa!E23,IF($C$2=Comparativa!$G$2,Comparativa!G23,IF($C$2=Comparativa!$I$2,Comparativa!I23,IF($C$2=Comparativa!$K$2,Comparativa!K23,IF($C$2=Comparativa!$M$2,Comparativa!M23,IF($C$2=Comparativa!$O$2,Comparativa!O23,IF($C$2=Comparativa!$Q$2,Comparativa!Q23,IF($C$2=Comparativa!$S$2,Comparativa!S23,IF($C$2=Comparativa!$U$2,Comparativa!U23,"")))))))))) -> x | D23: =IF($D$2=Comparativa!$C$2,Comparativa!C23,IF($D$2=Comparativa!$E$2,Comparativa!E23,IF($D$2=Comparativa!$G$2,Comparativa!G23,IF($D$2=Comparativa!$I$2,Comparativa!I23,IF($D$2=Comparativa!$K$2,Comparativa!K23,IF($D$2=Comparativa!$M$2,Comparativa!M23,IF($D$2=Comparativa!$O$2,Comparativa!O23,IF($D$2=Comparativa!$Q$2,Comparativa!Q23,IF($D$2=Comparativa!$S$2,Comparativa!S23,IF($D$2=Comparativa!$U$2,Comparativa!U23,"")))))))))) -> x | E23: =IF($E$2=Comparativa!$C$2,Comparativa!C23,IF($E$2=Comparativa!$E$2,Comparativa!E23,IF($E$2=Comparativa!$G$2,Comparativa!G23,IF($E$2=Comparativa!$I$2,Comparativa!I23,IF($E$2=Comparativa!$K$2,Comparativa!K23,IF($E$2=Comparativa!$M$2,Comparativa!M23,IF($E$2=Comparativa!$O$2,Comparativa!O23,IF($E$2=Comparativa!$Q$2,Comparativa!Q23,IF($E$2=Comparativa!$S$2,Comparativa!S23,IF($E$2=Comparativa!$U$2,Comparativa!U23,"")))))))))) -> x | F23: =IF($F$2=Comparativa!$C$2,Comparativa!C23,IF($F$2=Comparativa!$E$2,Comparativa!E23,IF($F$2=Comparativa!$G$2,Comparativa!G23,IF($F$2=Comparativa!$I$2,Comparativa!I23,IF($F$2=Comparativa!$K$2,Comparativa!K23,IF($F$2=Comparativa!$M$2,Comparativa!M23,IF($F$2=Comparativa!$O$2,Comparativa!O23,IF($F$2=Comparativa!$Q$2,Comparativa!Q23,IF($F$2=Comparativa!$S$2,Comparativa!S23,IF($F$2=Comparativa!$U$2,Comparativa!U23,"")))))))))) -> x | G23: =IF($G$2=Comparativa!$C$2,Comparativa!C23,IF($G$2=Comparativa!$E$2,Comparativa!E23,IF($G$2=Comparativa!$G$2,Comparativa!G23,IF($G$2=Comparativa!$I$2,Comparativa!I23,IF($G$2=Comparativa!$K$2,Comparativa!K23,IF($G$2=Comparativa!$M$2,Comparativa!M23,IF($G$2=Comparativa!$O$2,Comparativa!O23,IF($G$2=Comparativa!$Q$2,Comparativa!Q23,IF($G$2=Comparativa!$S$2,Comparativa!S23,IF($G$2=Comparativa!$U$2,Comparativa!U23,"")))))))))) -> x | H23: =IF($H$2=Comparativa!$C$2,Comparativa!C23,IF($H$2=Comparativa!$E$2,Comparativa!E23,IF($H$2=Comparativa!$G$2,Comparativa!G23,IF($H$2=Comparativa!$I$2,Comparativa!I23,IF($H$2=Comparativa!$K$2,Comparativa!K23,IF($H$2=Comparativa!$M$2,Comparativa!M23,IF($H$2=Comparativa!$O$2,Comparativa!O23,IF($H$2=Comparativa!$Q$2,Comparativa!Q23,IF($H$2=Comparativa!$S$2,Comparativa!S23,IF($H$2=Comparativa!$U$2,Comparativa!U23,"")))))))))) -> x | I23: =IF($I$2=Comparativa!$C$2,Comparativa!C23,IF($I$2=Comparativa!$E$2,Comparativa!E23,IF($I$2=Comparativa!$G$2,Comparativa!G23,IF($I$2=Comparativa!$I$2,Comparativa!I23,IF($I$2=Comparativa!$K$2,Comparativa!K23,IF($I$2=Comparativa!$M$2,Comparativa!M23,IF($I$2=Comparativa!$O$2,Comparativa!O23,IF($I$2=Comparativa!$Q$2,Comparativa!Q23,IF($I$2=Comparativa!$S$2,Comparativa!S23,IF($I$2=Comparativa!$U$2,Comparativa!U23,"")))))))))) ->  | J23: =IF($J$2=Comparativa!$C$2,Comparativa!C23,IF($J$2=Comparativa!$E$2,Comparativa!E23,IF($J$2=Comparativa!$G$2,Comparativa!G23,IF($J$2=Comparativa!$I$2,Comparativa!I23,IF($J$2=Comparativa!$K$2,Comparativa!K23,IF($J$2=Comparativa!$M$2,Comparativa!M23,IF($J$2=Comparativa!$O$2,Comparativa!O23,IF($J$2=Comparativa!$Q$2,Comparativa!Q23,IF($J$2=Comparativa!$S$2,Comparativa!S23,IF($J$2=Comparativa!$U$2,Comparativa!U23,"")))))))))) ->  | K23: =IF($K$2=Comparativa!$C$2,Comparativa!C23,IF($K$2=Comparativa!$E$2,Comparativa!E23,IF($K$2=Comparativa!$G$2,Comparativa!G23,IF($K$2=Comparativa!$I$2,Comparativa!I23,IF($K$2=Comparativa!$K$2,Comparativa!K23,IF($K$2=Comparativa!$M$2,Comparativa!M23,IF($K$2=Comparativa!$O$2,Comparativa!O23,IF($K$2=Comparativa!$Q$2,Comparativa!Q23,IF($K$2=Comparativa!$S$2,Comparativa!S23,IF($K$2=Comparativa!$U$2,Comparativa!U23,"")))))))))) ->  | L23: =IF($L$2=Comparativa!$C$2,Comparativa!C23,IF($L$2=Comparativa!$E$2,Comparativa!E23,IF($L$2=Comparativa!$G$2,Comparativa!G23,IF($L$2=Comparativa!$I$2,Comparativa!I23,IF($L$2=Comparativa!$K$2,Comparativa!K23,IF($L$2=Comparativa!$M$2,Comparativa!M23,IF($L$2=Comparativa!$O$2,Comparativa!O23,IF($L$2=Comparativa!$Q$2,Comparativa!Q23,IF($L$2=Comparativa!$S$2,Comparativa!S23,IF($L$2=Comparativa!$U$2,Comparativa!U23,"")))))))))) -> 
B24: Programas de retención | C24: =IF($C$2=Comparativa!$C$2,Comparativa!C24,IF($C$2=Comparativa!$E$2,Comparativa!E24,IF($C$2=Comparativa!$G$2,Comparativa!G24,IF($C$2=Comparativa!$I$2,Comparativa!I24,IF($C$2=Comparativa!$K$2,Comparativa!K24,IF($C$2=Comparativa!$M$2,Comparativa!M24,IF($C$2=Comparativa!$O$2,Comparativa!O24,IF($C$2=Comparativa!$Q$2,Comparativa!Q24,IF($C$2=Comparativa!$S$2,Comparativa!S24,IF($C$2=Comparativa!$U$2,Comparativa!U24,"")))))))))) -> x | D24: =IF($D$2=Comparativa!$C$2,Comparativa!C24,IF($D$2=Comparativa!$E$2,Comparativa!E24,IF($D$2=Comparativa!$G$2,Comparativa!G24,IF($D$2=Comparativa!$I$2,Comparativa!I24,IF($D$2=Comparativa!$K$2,Comparativa!K24,IF($D$2=Comparativa!$M$2,Comparativa!M24,IF($D$2=Comparativa!$O$2,Comparativa!O24,IF($D$2=Comparativa!$Q$2,Comparativa!Q24,IF($D$2=Comparativa!$S$2,Comparativa!S24,IF($D$2=Comparativa!$U$2,Comparativa!U24,"")))))))))) -> x | E24: =IF($E$2=Comparativa!$C$2,Comparativa!C24,IF($E$2=Comparativa!$E$2,Comparativa!E24,IF($E$2=Comparativa!$G$2,Comparativa!G24,IF($E$2=Comparativa!$I$2,Comparativa!I24,IF($E$2=Comparativa!$K$2,Comparativa!K24,IF($E$2=Comparativa!$M$2,Comparativa!M24,IF($E$2=Comparativa!$O$2,Comparativa!O24,IF($E$2=Comparativa!$Q$2,Comparativa!Q24,IF($E$2=Comparativa!$S$2,Comparativa!S24,IF($E$2=Comparativa!$U$2,Comparativa!U24,"")))))))))) -> x | F24: =IF($F$2=Comparativa!$C$2,Comparativa!C24,IF($F$2=Comparativa!$E$2,Comparativa!E24,IF($F$2=Comparativa!$G$2,Comparativa!G24,IF($F$2=Comparativa!$I$2,Comparativa!I24,IF($F$2=Comparativa!$K$2,Comparativa!K24,IF($F$2=Comparativa!$M$2,Comparativa!M24,IF($F$2=Comparativa!$O$2,Comparativa!O24,IF($F$2=Comparativa!$Q$2,Comparativa!Q24,IF($F$2=Comparativa!$S$2,Comparativa!S24,IF($F$2=Comparativa!$U$2,Comparativa!U24,"")))))))))) -> x | G24: =IF($G$2=Comparativa!$C$2,Comparativa!C24,IF($G$2=Comparativa!$E$2,Comparativa!E24,IF($G$2=Comparativa!$G$2,Comparativa!G24,IF($G$2=Comparativa!$I$2,Comparativa!I24,IF($G$2=Comparativa!$K$2,Comparativa!K24,IF($G$2=Comparativa!$M$2,Comparativa!M24,IF($G$2=Comparativa!$O$2,Comparativa!O24,IF($G$2=Comparativa!$Q$2,Comparativa!Q24,IF($G$2=Comparativa!$S$2,Comparativa!S24,IF($G$2=Comparativa!$U$2,Comparativa!U24,"")))))))))) -> x | H24: =IF($H$2=Comparativa!$C$2,Comparativa!C24,IF($H$2=Comparativa!$E$2,Comparativa!E24,IF($H$2=Comparativa!$G$2,Comparativa!G24,IF($H$2=Comparativa!$I$2,Comparativa!I24,IF($H$2=Comparativa!$K$2,Comparativa!K24,IF($H$2=Comparativa!$M$2,Comparativa!M24,IF($H$2=Comparativa!$O$2,Comparativa!O24,IF($H$2=Comparativa!$Q$2,Comparativa!Q24,IF($H$2=Comparativa!$S$2,Comparativa!S24,IF($H$2=Comparativa!$U$2,Comparativa!U24,"")))))))))) -> x | I24: =IF($I$2=Comparativa!$C$2,Comparativa!C24,IF($I$2=Comparativa!$E$2,Comparativa!E24,IF($I$2=Comparativa!$G$2,Comparativa!G24,IF($I$2=Comparativa!$I$2,Comparativa!I24,IF($I$2=Comparativa!$K$2,Comparativa!K24,IF($I$2=Comparativa!$M$2,Comparativa!M24,IF($I$2=Comparativa!$O$2,Comparativa!O24,IF($I$2=Comparativa!$Q$2,Comparativa!Q24,IF($I$2=Comparativa!$S$2,Comparativa!S24,IF($I$2=Comparativa!$U$2,Comparativa!U24,"")))))))))) ->  | J24: =IF($J$2=Comparativa!$C$2,Comparativa!C24,IF($J$2=Comparativa!$E$2,Comparativa!E24,IF($J$2=Comparativa!$G$2,Comparativa!G24,IF($J$2=Comparativa!$I$2,Comparativa!I24,IF($J$2=Comparativa!$K$2,Comparativa!K24,IF($J$2=Comparativa!$M$2,Comparativa!M24,IF($J$2=Comparativa!$O$2,Comparativa!O24,IF($J$2=Comparativa!$Q$2,Comparativa!Q24,IF($J$2=Comparativa!$S$2,Comparativa!S24,IF($J$2=Comparativa!$U$2,Comparativa!U24,"")))))))))) ->  | K24: =IF($K$2=Comparativa!$C$2,Comparativa!C24,IF($K$2=Comparativa!$E$2,Comparativa!E24,IF($K$2=Comparativa!$G$2,Comparativa!G24,IF($K$2=Comparativa!$I$2,Comparativa!I24,IF($K$2=Comparativa!$K$2,Comparativa!K24,IF($K$2=Comparativa!$M$2,Comparativa!M24,IF($K$2=Comparativa!$O$2,Comparativa!O24,IF($K$2=Comparativa!$Q$2,Comparativa!Q24,IF($K$2=Comparativa!$S$2,Comparativa!S24,IF($K$2=Comparativa!$U$2,Comparativa!U24,"")))))))))) ->  | L24: =IF($L$2=Comparativa!$C$2,Comparativa!C24,IF($L$2=Comparativa!$E$2,Comparativa!E24,IF($L$2=Comparativa!$G$2,Comparativa!G24,IF($L$2=Comparativa!$I$2,Comparativa!I24,IF($L$2=Comparativa!$K$2,Comparativa!K24,IF($L$2=Comparativa!$M$2,Comparativa!M24,IF($L$2=Comparativa!$O$2,Comparativa!O24,IF($L$2=Comparativa!$Q$2,Comparativa!Q24,IF($L$2=Comparativa!$S$2,Comparativa!S24,IF($L$2=Comparativa!$U$2,Comparativa!U24,"")))))))))) -> 
B25: Email marketing | C25: =IF($C$2=Comparativa!$C$2,Comparativa!C25,IF($C$2=Comparativa!$E$2,Comparativa!E25,IF($C$2=Comparativa!$G$2,Comparativa!G25,IF($C$2=Comparativa!$I$2,Comparativa!I25,IF($C$2=Comparativa!$K$2,Comparativa!K25,IF($C$2=Comparativa!$M$2,Comparativa!M25,IF($C$2=Comparativa!$O$2,Comparativa!O25,IF($C$2=Comparativa!$Q$2,Comparativa!Q25,IF($C$2=Comparativa!$S$2,Comparativa!S25,IF($C$2=Comparativa!$U$2,Comparativa!U25,"")))))))))) -> x | D25: =IF($D$2=Comparativa!$C$2,Comparativa!C25,IF($D$2=Comparativa!$E$2,Comparativa!E25,IF($D$2=Comparativa!$G$2,Comparativa!G25,IF($D$2=Comparativa!$I$2,Comparativa!I25,IF($D$2=Comparativa!$K$2,Comparativa!K25,IF($D$2=Comparativa!$M$2,Comparativa!M25,IF($D$2=Comparativa!$O$2,Comparativa!O25,IF($D$2=Comparativa!$Q$2,Comparativa!Q25,IF($D$2=Comparativa!$S$2,Comparativa!S25,IF($D$2=Comparativa!$U$2,Comparativa!U25,"")))))))))) -> x | E25: =IF($E$2=Comparativa!$C$2,Comparativa!C25,IF($E$2=Comparativa!$E$2,Comparativa!E25,IF($E$2=Comparativa!$G$2,Comparativa!G25,IF($E$2=Comparativa!$I$2,Comparativa!I25,IF($E$2=Comparativa!$K$2,Comparativa!K25,IF($E$2=Comparativa!$M$2,Comparativa!M25,IF($E$2=Comparativa!$O$2,Comparativa!O25,IF($E$2=Comparativa!$Q$2,Comparativa!Q25,IF($E$2=Comparativa!$S$2,Comparativa!S25,IF($E$2=Comparativa!$U$2,Comparativa!U25,"")))))))))) -> x | F25: =IF($F$2=Comparativa!$C$2,Comparativa!C25,IF($F$2=Comparativa!$E$2,Comparativa!E25,IF($F$2=Comparativa!$G$2,Comparativa!G25,IF($F$2=Comparativa!$I$2,Comparativa!I25,IF($F$2=Comparativa!$K$2,Comparativa!K25,IF($F$2=Comparativa!$M$2,Comparativa!M25,IF($F$2=Comparativa!$O$2,Comparativa!O25,IF($F$2=Comparativa!$Q$2,Comparativa!Q25,IF($F$2=Comparativa!$S$2,Comparativa!S25,IF($F$2=Comparativa!$U$2,Comparativa!U25,"")))))))))) -> x | G25: =IF($G$2=Comparativa!$C$2,Comparativa!C25,IF($G$2=Comparativa!$E$2,Comparativa!E25,IF($G$2=Comparativa!$G$2,Comparativa!G25,IF($G$2=Comparativa!$I$2,Comparativa!I25,IF($G$2=Comparativa!$K$2,Comparativa!K25,IF($G$2=Comparativa!$M$2,Comparativa!M25,IF($G$2=Comparativa!$O$2,Comparativa!O25,IF($G$2=Comparativa!$Q$2,Comparativa!Q25,IF($G$2=Comparativa!$S$2,Comparativa!S25,IF($G$2=Comparativa!$U$2,Comparativa!U25,"")))))))))) -> x | H25: =IF($H$2=Comparativa!$C$2,Comparativa!C25,IF($H$2=Comparativa!$E$2,Comparativa!E25,IF($H$2=Comparativa!$G$2,Comparativa!G25,IF($H$2=Comparativa!$I$2,Comparativa!I25,IF($H$2=Comparativa!$K$2,Comparativa!K25,IF($H$2=Comparativa!$M$2,Comparativa!M25,IF($H$2=Comparativa!$O$2,Comparativa!O25,IF($H$2=Comparativa!$Q$2,Comparativa!Q25,IF($H$2=Comparativa!$S$2,Comparativa!S25,IF($H$2=Comparativa!$U$2,Comparativa!U25,"")))))))))) -> x | I25: =IF($I$2=Comparativa!$C$2,Comparativa!C25,IF($I$2=Comparativa!$E$2,Comparativa!E25,IF($I$2=Comparativa!$G$2,Comparativa!G25,IF($I$2=Comparativa!$I$2,Comparativa!I25,IF($I$2=Comparativa!$K$2,Comparativa!K25,IF($I$2=Comparativa!$M$2,Comparativa!M25,IF($I$2=Comparativa!$O$2,Comparativa!O25,IF($I$2=Comparativa!$Q$2,Comparativa!Q25,IF($I$2=Comparativa!$S$2,Comparativa!S25,IF($I$2=Comparativa!$U$2,Comparativa!U25,"")))))))))) ->  | J25: =IF($J$2=Comparativa!$C$2,Comparativa!C25,IF($J$2=Comparativa!$E$2,Comparativa!E25,IF($J$2=Comparativa!$G$2,Comparativa!G25,IF($J$2=Comparativa!$I$2,Comparativa!I25,IF($J$2=Comparativa!$K$2,Comparativa!K25,IF($J$2=Comparativa!$M$2,Comparativa!M25,IF($J$2=Comparativa!$O$2,Comparativa!O25,IF($J$2=Comparativa!$Q$2,Comparativa!Q25,IF($J$2=Comparativa!$S$2,Comparativa!S25,IF($J$2=Comparativa!$U$2,Comparativa!U25,"")))))))))) ->  | K25: =IF($K$2=Comparativa!$C$2,Comparativa!C25,IF($K$2=Comparativa!$E$2,Comparativa!E25,IF($K$2=Comparativa!$G$2,Comparativa!G25,IF($K$2=Comparativa!$I$2,Comparativa!I25,IF($K$2=Comparativa!$K$2,Comparativa!K25,IF($K$2=Comparativa!$M$2,Comparativa!M25,IF($K$2=Comparativa!$O$2,Comparativa!O25,IF($K$2=Comparativa!$Q$2,Comparativa!Q25,IF($K$2=Comparativa!$S$2,Comparativa!S25,IF($K$2=Comparativa!$U$2,Comparativa!U25,"")))))))))) ->  | L25: =IF($L$2=Comparativa!$C$2,Comparativa!C25,IF($L$2=Comparativa!$E$2,Comparativa!E25,IF($L$2=Comparativa!$G$2,Comparativa!G25,IF($L$2=Comparativa!$I$2,Comparativa!I25,IF($L$2=Comparativa!$K$2,Comparativa!K25,IF($L$2=Comparativa!$M$2,Comparativa!M25,IF($L$2=Comparativa!$O$2,Comparativa!O25,IF($L$2=Comparativa!$Q$2,Comparativa!Q25,IF($L$2=Comparativa!$S$2,Comparativa!S25,IF($L$2=Comparativa!$U$2,Comparativa!U25,"")))))))))) -> 
B26: Capacidad de vincular las ventas con los esfuerzos de marketing. | C26: =IF($C$2=Comparativa!$C$2,Comparativa!C26,IF($C$2=Comparativa!$E$2,Comparativa!E26,IF($C$2=Comparativa!$G$2,Comparativa!G26,IF($C$2=Comparativa!$I$2,Comparativa!I26,IF($C$2=Comparativa!$K$2,Comparativa!K26,IF($C$2=Comparativa!$M$2,Comparativa!M26,IF($C$2=Comparativa!$O$2,Comparativa!O26,IF($C$2=Comparativa!$Q$2,Comparativa!Q26,IF($C$2=Comparativa!$S$2,Comparativa!S26,IF($C$2=Comparativa!$U$2,Comparativa!U26,"")))))))))) -> Con algunas dificultades | D26: =IF($D$2=Comparativa!$C$2,Comparativa!C26,IF($D$2=Comparativa!$E$2,Comparativa!E26,IF($D$2=Comparativa!$G$2,Comparativa!G26,IF($D$2=Comparativa!$I$2,Comparativa!I26,IF($D$2=Comparativa!$K$2,Comparativa!K26,IF($D$2=Comparativa!$M$2,Comparativa!M26,IF($D$2=Comparativa!$O$2,Comparativa!O26,IF($D$2=Comparativa!$Q$2,Comparativa!Q26,IF($D$2=Comparativa!$S$2,Comparativa!S26,IF($D$2=Comparativa!$U$2,Comparativa!U26,"")))))))))) -> x | E26: =IF($E$2=Comparativa!$C$2,Comparativa!C26,IF($E$2=Comparativa!$E$2,Comparativa!E26,IF($E$2=Comparativa!$G$2,Comparativa!G26,IF($E$2=Comparativa!$I$2,Comparativa!I26,IF($E$2=Comparativa!$K$2,Comparativa!K26,IF($E$2=Comparativa!$M$2,Comparativa!M26,IF($E$2=Comparativa!$O$2,Comparativa!O26,IF($E$2=Comparativa!$Q$2,Comparativa!Q26,IF($E$2=Comparativa!$S$2,Comparativa!S26,IF($E$2=Comparativa!$U$2,Comparativa!U26,"")))))))))) -> x | F26: =IF($F$2=Comparativa!$C$2,Comparativa!C26,IF($F$2=Comparativa!$E$2,Comparativa!E26,IF($F$2=Comparativa!$G$2,Comparativa!G26,IF($F$2=Comparativa!$I$2,Comparativa!I26,IF($F$2=Comparativa!$K$2,Comparativa!K26,IF($F$2=Comparativa!$M$2,Comparativa!M26,IF($F$2=Comparativa!$O$2,Comparativa!O26,IF($F$2=Comparativa!$Q$2,Comparativa!Q26,IF($F$2=Comparativa!$S$2,Comparativa!S26,IF($F$2=Comparativa!$U$2,Comparativa!U26,"")))))))))) -> x | G26: =IF($G$2=Comparativa!$C$2,Comparativa!C26,IF($G$2=Comparativa!$E$2,Comparativa!E26,IF($G$2=Comparativa!$G$2,Comparativa!G26,IF($G$2=Comparativa!$I$2,Comparativa!I26,IF($G$2=Comparativa!$K$2,Comparativa!K26,IF($G$2=Comparativa!$M$2,Comparativa!M26,IF($G$2=Comparativa!$O$2,Comparativa!O26,IF($G$2=Comparativa!$Q$2,Comparativa!Q26,IF($G$2=Comparativa!$S$2,Comparativa!S26,IF($G$2=Comparativa!$U$2,Comparativa!U26,"")))))))))) -> x | H26: =IF($H$2=Comparativa!$C$2,Comparativa!C26,IF($H$2=Comparativa!$E$2,Comparativa!E26,IF($H$2=Comparativa!$G$2,Comparativa!G26,IF($H$2=Comparativa!$I$2,Comparativa!I26,IF($H$2=Comparativa!$K$2,Comparativa!K26,IF($H$2=Comparativa!$M$2,Comparativa!M26,IF($H$2=Comparativa!$O$2,Comparativa!O26,IF($H$2=Comparativa!$Q$2,Comparativa!Q26,IF($H$2=Comparativa!$S$2,Comparativa!S26,IF($H$2=Comparativa!$U$2,Comparativa!U26,"")))))))))) -> x | I26: =IF($I$2=Comparativa!$C$2,Comparativa!C26,IF($I$2=Comparativa!$E$2,Comparativa!E26,IF($I$2=Comparativa!$G$2,Comparativa!G26,IF($I$2=Comparativa!$I$2,Comparativa!I26,IF($I$2=Comparativa!$K$2,Comparativa!K26,IF($I$2=Comparativa!$M$2,Comparativa!M26,IF($I$2=Comparativa!$O$2,Comparativa!O26,IF($I$2=Comparativa!$Q$2,Comparativa!Q26,IF($I$2=Comparativa!$S$2,Comparativa!S26,IF($I$2=Comparativa!$U$2,Comparativa!U26,"")))))))))) ->  | J26: =IF($J$2=Comparativa!$C$2,Comparativa!C26,IF($J$2=Comparativa!$E$2,Comparativa!E26,IF($J$2=Comparativa!$G$2,Comparativa!G26,IF($J$2=Comparativa!$I$2,Comparativa!I26,IF($J$2=Comparativa!$K$2,Comparativa!K26,IF($J$2=Comparativa!$M$2,Comparativa!M26,IF($J$2=Comparativa!$O$2,Comparativa!O26,IF($J$2=Comparativa!$Q$2,Comparativa!Q26,IF($J$2=Comparativa!$S$2,Comparativa!S26,IF($J$2=Comparativa!$U$2,Comparativa!U26,"")))))))))) ->  | K26: =IF($K$2=Comparativa!$C$2,Comparativa!C26,IF($K$2=Comparativa!$E$2,Comparativa!E26,IF($K$2=Comparativa!$G$2,Comparativa!G26,IF($K$2=Comparativa!$I$2,Comparativa!I26,IF($K$2=Comparativa!$K$2,Comparativa!K26,IF($K$2=Comparativa!$M$2,Comparativa!M26,IF($K$2=Comparativa!$O$2,Comparativa!O26,IF($K$2=Comparativa!$Q$2,Comparativa!Q26,IF($K$2=Comparativa!$S$2,Comparativa!S26,IF($K$2=Comparativa!$U$2,Comparativa!U26,"")))))))))) ->  | L26: =IF($L$2=Comparativa!$C$2,Comparativa!C26,IF($L$2=Comparativa!$E$2,Comparativa!E26,IF($L$2=Comparativa!$G$2,Comparativa!G26,IF($L$2=Comparativa!$I$2,Comparativa!I26,IF($L$2=Comparativa!$K$2,Comparativa!K26,IF($L$2=Comparativa!$M$2,Comparativa!M26,IF($L$2=Comparativa!$O$2,Comparativa!O26,IF($L$2=Comparativa!$Q$2,Comparativa!Q26,IF($L$2=Comparativa!$S$2,Comparativa!S26,IF($L$2=Comparativa!$U$2,Comparativa!U26,"")))))))))) -> 
A27: Totales | B27: Total Funcionalidades Marketing | C27: =IF($C$2=Comparativa!$C$2,Comparativa!C27,IF($C$2=Comparativa!$E$2,Comparativa!E27,IF($C$2=Comparativa!$G$2,Comparativa!G27,IF($C$2=Comparativa!$I$2,Comparativa!I27,IF($C$2=Comparativa!$K$2,Comparativa!K27,IF($C$2=Comparativa!$M$2,Comparativa!M27,IF($C$2=Comparativa!$O$2,Comparativa!O27,IF($C$2=Comparativa!$Q$2,Comparativa!Q27,IF($C$2=Comparativa!$S$2,Comparativa!S27,IF($C$2=Comparativa!$U$2,Comparativa!U27,"")))))))))) -> 0.9 | D27: =IF($D$2=Comparativa!$C$2,Comparativa!C27,IF($D$2=Comparativa!$E$2,Comparativa!E27,IF($D$2=Comparativa!$G$2,Comparativa!G27,IF($D$2=Comparativa!$I$2,Comparativa!I27,IF($D$2=Comparativa!$K$2,Comparativa!K27,IF($D$2=Comparativa!$M$2,Comparativa!M27,IF($D$2=Comparativa!$O$2,Comparativa!O27,IF($D$2=Comparativa!$Q$2,Comparativa!Q27,IF($D$2=Comparativa!$S$2,Comparativa!S27,IF($D$2=Comparativa!$U$2,Comparativa!U27,"")))))))))) -> 1 | E27: =IF($E$2=Comparativa!$C$2,Comparativa!C27,IF($E$2=Comparativa!$E$2,Comparativa!E27,IF($E$2=Comparativa!$G$2,Comparativa!G27,IF($E$2=Comparativa!$I$2,Comparativa!I27,IF($E$2=Comparativa!$K$2,Comparativa!K27,IF($E$2=Comparativa!$M$2,Comparativa!M27,IF($E$2=Comparativa!$O$2,Comparativa!O27,IF($E$2=Comparativa!$Q$2,Comparativa!Q27,IF($E$2=Comparativa!$S$2,Comparativa!S27,IF($E$2=Comparativa!$U$2,Comparativa!U27,"")))))))))) -> 1 | F27: =IF($F$2=Comparativa!$C$2,Comparativa!C27,IF($F$2=Comparativa!$E$2,Comparativa!E27,IF($F$2=Comparativa!$G$2,Comparativa!G27,IF($F$2=Comparativa!$I$2,Comparativa!I27,IF($F$2=Comparativa!$K$2,Comparativa!K27,IF($F$2=Comparativa!$M$2,Comparativa!M27,IF($F$2=Comparativa!$O$2,Comparativa!O27,IF($F$2=Comparativa!$Q$2,Comparativa!Q27,IF($F$2=Comparativa!$S$2,Comparativa!S27,IF($F$2=Comparativa!$U$2,Comparativa!U27,"")))))))))) -> 1 | G27: =IF($G$2=Comparativa!$C$2,Comparativa!C27,IF($G$2=Comparativa!$E$2,Comparativa!E27,IF($G$2=Comparativa!$G$2,Comparativa!G27,IF($G$2=Comparativa!$I$2,Comparativa!I27,IF($G$2=Comparativa!$K$2,Comparativa!K27,IF($G$2=Comparativa!$M$2,Comparativa!M27,IF($G$2=Comparativa!$O$2,Comparativa!O27,IF($G$2=Comparativa!$Q$2,Comparativa!Q27,IF($G$2=Comparativa!$S$2,Comparativa!S27,IF($G$2=Comparativa!$U$2,Comparativa!U27,"")))))))))) -> 1 | H27: =IF($H$2=Comparativa!$C$2,Comparativa!C27,IF($H$2=Comparativa!$E$2,Comparativa!E27,IF($H$2=Comparativa!$G$2,Comparativa!G27,IF($H$2=Comparativa!$I$2,Comparativa!I27,IF($H$2=Comparativa!$K$2,Comparativa!K27,IF($H$2=Comparativa!$M$2,Comparativa!M27,IF($H$2=Comparativa!$O$2,Comparativa!O27,IF($H$2=Comparativa!$Q$2,Comparativa!Q27,IF($H$2=Comparativa!$S$2,Comparativa!S27,IF($H$2=Comparativa!$U$2,Comparativa!U27,"")))))))))) -> 1 | I27: =IF($I$2=Comparativa!$C$2,Comparativa!C27,IF($I$2=Comparativa!$E$2,Comparativa!E27,IF($I$2=Comparativa!$G$2,Comparativa!G27,IF($I$2=Comparativa!$I$2,Comparativa!I27,IF($I$2=Comparativa!$K$2,Comparativa!K27,IF($I$2=Comparativa!$M$2,Comparativa!M27,IF($I$2=Comparativa!$O$2,Comparativa!O27,IF($I$2=Comparativa!$Q$2,Comparativa!Q27,IF($I$2=Comparativa!$S$2,Comparativa!S27,IF($I$2=Comparativa!$U$2,Comparativa!U27,"")))))))))) ->  | J27: =IF($J$2=Comparativa!$C$2,Comparativa!C27,IF($J$2=Comparativa!$E$2,Comparativa!E27,IF($J$2=Comparativa!$G$2,Comparativa!G27,IF($J$2=Comparativa!$I$2,Comparativa!I27,IF($J$2=Comparativa!$K$2,Comparativa!K27,IF($J$2=Comparativa!$M$2,Comparativa!M27,IF($J$2=Comparativa!$O$2,Comparativa!O27,IF($J$2=Comparativa!$Q$2,Comparativa!Q27,IF($J$2=Comparativa!$S$2,Comparativa!S27,IF($J$2=Comparativa!$U$2,Comparativa!U27,"")))))))))) ->  | K27: =IF($K$2=Comparativa!$C$2,Comparativa!C27,IF($K$2=Comparativa!$E$2,Comparativa!E27,IF($K$2=Comparativa!$G$2,Comparativa!G27,IF($K$2=Comparativa!$I$2,Comparativa!I27,IF($K$2=Comparativa!$K$2,Comparativa!K27,IF($K$2=Comparativa!$M$2,Comparativa!M27,IF($K$2=Comparativa!$O$2,Comparativa!O27,IF($K$2=Comparativa!$Q$2,Comparativa!Q27,IF($K$2=Comparativa!$S$2,Comparativa!S27,IF($K$2=Comparativa!$U$2,Comparativa!U27,"")))))))))) ->  | L27: =IF($L$2=Comparativa!$C$2,Comparativa!C27,IF($L$2=Comparativa!$E$2,Comparativa!E27,IF($L$2=Comparativa!$G$2,Comparativa!G27,IF($L$2=Comparativa!$I$2,Comparativa!I27,IF($L$2=Comparativa!$K$2,Comparativa!K27,IF($L$2=Comparativa!$M$2,Comparativa!M27,IF($L$2=Comparativa!$O$2,Comparativa!O27,IF($L$2=Comparativa!$Q$2,Comparativa!Q27,IF($L$2=Comparativa!$S$2,Comparativa!S27,IF($L$2=Comparativa!$U$2,Comparativa!U27,"")))))))))) -> 
A28: Servicio | B28: Gestión de casos | C28: =IF($C$2=Comparativa!$C$2,Comparativa!C28,IF($C$2=Comparativa!$E$2,Comparativa!E28,IF($C$2=Comparativa!$G$2,Comparativa!G28,IF($C$2=Comparativa!$I$2,Comparativa!I28,IF($C$2=Comparativa!$K$2,Comparativa!K28,IF($C$2=Comparativa!$M$2,Comparativa!M28,IF($C$2=Comparativa!$O$2,Comparativa!O28,IF($C$2=Comparativa!$Q$2,Comparativa!Q28,IF($C$2=Comparativa!$S$2,Comparativa!S28,IF($C$2=Comparativa!$U$2,Comparativa!U28,"")))))))))) -> x | D28: =IF($D$2=Comparativa!$C$2,Comparativa!C28,IF($D$2=Comparativa!$E$2,Comparativa!E28,IF($D$2=Comparativa!$G$2,Comparativa!G28,IF($D$2=Comparativa!$I$2,Comparativa!I28,IF($D$2=Comparativa!$K$2,Comparativa!K28,IF($D$2=Comparativa!$M$2,Comparativa!M28,IF($D$2=Comparativa!$O$2,Comparativa!O28,IF($D$2=Comparativa!$Q$2,Comparativa!Q28,IF($D$2=Comparativa!$S$2,Comparativa!S28,IF($D$2=Comparativa!$U$2,Comparativa!U28,"")))))))))) -> x | E28: =IF($E$2=Comparativa!$C$2,Comparativa!C28,IF($E$2=Comparativa!$E$2,Comparativa!E28,IF($E$2=Comparativa!$G$2,Comparativa!G28,IF($E$2=Comparativa!$I$2,Comparativa!I28,IF($E$2=Comparativa!$K$2,Comparativa!K28,IF($E$2=Comparativa!$M$2,Comparativa!M28,IF($E$2=Comparativa!$O$2,Comparativa!O28,IF($E$2=Comparativa!$Q$2,Comparativa!Q28,IF($E$2=Comparativa!$S$2,Comparativa!S28,IF($E$2=Comparativa!$U$2,Comparativa!U28,"")))))))))) -> x | F28: =IF($F$2=Comparativa!$C$2,Comparativa!C28,IF($F$2=Comparativa!$E$2,Comparativa!E28,IF($F$2=Comparativa!$G$2,Comparativa!G28,IF($F$2=Comparativa!$I$2,Comparativa!I28,IF($F$2=Comparativa!$K$2,Comparativa!K28,IF($F$2=Comparativa!$M$2,Comparativa!M28,IF($F$2=Comparativa!$O$2,Comparativa!O28,IF($F$2=Comparativa!$Q$2,Comparativa!Q28,IF($F$2=Comparativa!$S$2,Comparativa!S28,IF($F$2=Comparativa!$U$2,Comparativa!U28,"")))))))))) -> x | G28: =IF($G$2=Comparativa!$C$2,Comparativa!C28,IF($G$2=Comparativa!$E$2,Comparativa!E28,IF($G$2=Comparativa!$G$2,Comparativa!G28,IF($G$2=Comparativa!$I$2,Comparativa!I28,IF($G$2=Comparativa!$K$2,Comparativa!K28,IF($G$2=Comparativa!$M$2,Comparativa!M28,IF($G$2=Comparativa!$O$2,Comparativa!O28,IF($G$2=Comparativa!$Q$2,Comparativa!Q28,IF($G$2=Comparativa!$S$2,Comparativa!S28,IF($G$2=Comparativa!$U$2,Comparativa!U28,"")))))))))) -> x | H28: =IF($H$2=Comparativa!$C$2,Comparativa!C28,IF($H$2=Comparativa!$E$2,Comparativa!E28,IF($H$2=Comparativa!$G$2,Comparativa!G28,IF($H$2=Comparativa!$I$2,Comparativa!I28,IF($H$2=Comparativa!$K$2,Comparativa!K28,IF($H$2=Comparativa!$M$2,Comparativa!M28,IF($H$2=Comparativa!$O$2,Comparativa!O28,IF($H$2=Comparativa!$Q$2,Comparativa!Q28,IF($H$2=Comparativa!$S$2,Comparativa!S28,IF($H$2=Comparativa!$U$2,Comparativa!U28,"")))))))))) -> x | I28: =IF($I$2=Comparativa!$C$2,Comparativa!C28,IF($I$2=Comparativa!$E$2,Comparativa!E28,IF($I$2=Comparativa!$G$2,Comparativa!G28,IF($I$2=Comparativa!$I$2,Comparativa!I28,IF($I$2=Comparativa!$K$2,Comparativa!K28,IF($I$2=Comparativa!$M$2,Comparativa!M28,IF($I$2=Comparativa!$O$2,Comparativa!O28,IF($I$2=Comparativa!$Q$2,Comparativa!Q28,IF($I$2=Comparativa!$S$2,Comparativa!S28,IF($I$2=Comparativa!$U$2,Comparativa!U28,"")))))))))) ->  | J28: =IF($J$2=Comparativa!$C$2,Comparativa!C28,IF($J$2=Comparativa!$E$2,Comparativa!E28,IF($J$2=Comparativa!$G$2,Comparativa!G28,IF($J$2=Comparativa!$I$2,Comparativa!I28,IF($J$2=Comparativa!$K$2,Comparativa!K28,IF($J$2=Comparativa!$M$2,Comparativa!M28,IF($J$2=Comparativa!$O$2,Comparativa!O28,IF($J$2=Comparativa!$Q$2,Comparativa!Q28,IF($J$2=Comparativa!$S$2,Comparativa!S28,IF($J$2=Comparativa!$U$2,Comparativa!U28,"")))))))))) ->  | K28: =IF($K$2=Comparativa!$C$2,Comparativa!C28,IF($K$2=Comparativa!$E$2,Comparativa!E28,IF($K$2=Comparativa!$G$2,Comparativa!G28,IF($K$2=Comparativa!$I$2,Comparativa!I28,IF($K$2=Comparativa!$K$2,Comparativa!K28,IF($K$2=Comparativa!$M$2,Comparativa!M28,IF($K$2=Comparativa!$O$2,Comparativa!O28,IF($K$2=Comparativa!$Q$2,Comparativa!Q28,IF($K$2=Comparativa!$S$2,Comparativa!S28,IF($K$2=Comparativa!$U$2,Comparativa!U28,"")))))))))) ->  | L28: =IF($L$2=Comparativa!$C$2,Comparativa!C28,IF($L$2=Comparativa!$E$2,Comparativa!E28,IF($L$2=Comparativa!$G$2,Comparativa!G28,IF($L$2=Comparativa!$I$2,Comparativa!I28,IF($L$2=Comparativa!$K$2,Comparativa!K28,IF($L$2=Comparativa!$M$2,Comparativa!M28,IF($L$2=Comparativa!$O$2,Comparativa!O28,IF($L$2=Comparativa!$Q$2,Comparativa!Q28,IF($L$2=Comparativa!$S$2,Comparativa!S28,IF($L$2=Comparativa!$U$2,Comparativa!U28,"")))))))))) -> 
B29: Vista completa de información de clientes | C29: =IF($C$2=Comparativa!$C$2,Comparativa!C29,IF($C$2=Comparativa!$E$2,Comparativa!E29,IF($C$2=Comparativa!$G$2,Comparativa!G29,IF($C$2=Comparativa!$I$2,Comparativa!I29,IF($C$2=Comparativa!$K$2,Comparativa!K29,IF($C$2=Comparativa!$M$2,Comparativa!M29,IF($C$2=Comparativa!$O$2,Comparativa!O29,IF($C$2=Comparativa!$Q$2,Comparativa!Q29,IF($C$2=Comparativa!$S$2,Comparativa!S29,IF($C$2=Comparativa!$U$2,Comparativa!U29,"")))))))))) -> x | D29: =IF($D$2=Comparativa!$C$2,Comparativa!C29,IF($D$2=Comparativa!$E$2,Comparativa!E29,IF($D$2=Comparativa!$G$2,Comparativa!G29,IF($D$2=Comparativa!$I$2,Comparativa!I29,IF($D$2=Comparativa!$K$2,Comparativa!K29,IF($D$2=Comparativa!$M$2,Comparativa!M29,IF($D$2=Comparativa!$O$2,Comparativa!O29,IF($D$2=Comparativa!$Q$2,Comparativa!Q29,IF($D$2=Comparativa!$S$2,Comparativa!S29,IF($D$2=Comparativa!$U$2,Comparativa!U29,"")))))))))) -> x | E29: =IF($E$2=Comparativa!$C$2,Comparativa!C29,IF($E$2=Comparativa!$E$2,Comparativa!E29,IF($E$2=Comparativa!$G$2,Comparativa!G29,IF($E$2=Comparativa!$I$2,Comparativa!I29,IF($E$2=Comparativa!$K$2,Comparativa!K29,IF($E$2=Comparativa!$M$2,Comparativa!M29,IF($E$2=Comparativa!$O$2,Comparativa!O29,IF($E$2=Comparativa!$Q$2,Comparativa!Q29,IF($E$2=Comparativa!$S$2,Comparativa!S29,IF($E$2=Comparativa!$U$2,Comparativa!U29,"")))))))))) -> x | F29: =IF($F$2=Comparativa!$C$2,Comparativa!C29,IF($F$2=Comparativa!$E$2,Comparativa!E29,IF($F$2=Comparativa!$G$2,Comparativa!G29,IF($F$2=Comparativa!$I$2,Comparativa!I29,IF($F$2=Comparativa!$K$2,Comparativa!K29,IF($F$2=Comparativa!$M$2,Comparativa!M29,IF($F$2=Comparativa!$O$2,Comparativa!O29,IF($F$2=Comparativa!$Q$2,Comparativa!Q29,IF($F$2=Comparativa!$S$2,Comparativa!S29,IF($F$2=Comparativa!$U$2,Comparativa!U29,"")))))))))) -> x | G29: =IF($G$2=Comparativa!$C$2,Comparativa!C29,IF($G$2=Comparativa!$E$2,Comparativa!E29,IF($G$2=Comparativa!$G$2,Comparativa!G29,IF($G$2=Comparativa!$I$2,Comparativa!I29,IF($G$2=Comparativa!$K$2,Comparativa!K29,IF($G$2=Comparativa!$M$2,Comparativa!M29,IF($G$2=Comparativa!$O$2,Comparativa!O29,IF($G$2=Comparativa!$Q$2,Comparativa!Q29,IF($G$2=Comparativa!$S$2,Comparativa!S29,IF($G$2=Comparativa!$U$2,Comparativa!U29,"")))))))))) -> x | H29: =IF($H$2=Comparativa!$C$2,Comparativa!C29,IF($H$2=Comparativa!$E$2,Comparativa!E29,IF($H$2=Comparativa!$G$2,Comparativa!G29,IF($H$2=Comparativa!$I$2,Comparativa!I29,IF($H$2=Comparativa!$K$2,Comparativa!K29,IF($H$2=Comparativa!$M$2,Comparativa!M29,IF($H$2=Comparativa!$O$2,Comparativa!O29,IF($H$2=Comparativa!$Q$2,Comparativa!Q29,IF($H$2=Comparativa!$S$2,Comparativa!S29,IF($H$2=Comparativa!$U$2,Comparativa!U29,"")))))))))) -> x | I29: =IF($I$2=Comparativa!$C$2,Comparativa!C29,IF($I$2=Comparativa!$E$2,Comparativa!E29,IF($I$2=Comparativa!$G$2,Comparativa!G29,IF($I$2=Comparativa!$I$2,Comparativa!I29,IF($I$2=Comparativa!$K$2,Comparativa!K29,IF($I$2=Comparativa!$M$2,Comparativa!M29,IF($I$2=Comparativa!$O$2,Comparativa!O29,IF($I$2=Comparativa!$Q$2,Comparativa!Q29,IF($I$2=Comparativa!$S$2,Comparativa!S29,IF($I$2=Comparativa!$U$2,Comparativa!U29,"")))))))))) ->  | J29: =IF($J$2=Comparativa!$C$2,Comparativa!C29,IF($J$2=Comparativa!$E$2,Comparativa!E29,IF($J$2=Comparativa!$G$2,Comparativa!G29,IF($J$2=Comparativa!$I$2,Comparativa!I29,IF($J$2=Comparativa!$K$2,Comparativa!K29,IF($J$2=Comparativa!$M$2,Comparativa!M29,IF($J$2=Comparativa!$O$2,Comparativa!O29,IF($J$2=Comparativa!$Q$2,Comparativa!Q29,IF($J$2=Comparativa!$S$2,Comparativa!S29,IF($J$2=Comparativa!$U$2,Comparativa!U29,"")))))))))) ->  | K29: =IF($K$2=Comparativa!$C$2,Comparativa!C29,IF($K$2=Comparativa!$E$2,Comparativa!E29,IF($K$2=Comparativa!$G$2,Comparativa!G29,IF($K$2=Comparativa!$I$2,Comparativa!I29,IF($K$2=Comparativa!$K$2,Comparativa!K29,IF($K$2=Comparativa!$M$2,Comparativa!M29,IF($K$2=Comparativa!$O$2,Comparativa!O29,IF($K$2=Comparativa!$Q$2,Comparativa!Q29,IF($K$2=Comparativa!$S$2,Comparativa!S29,IF($K$2=Comparativa!$U$2,Comparativa!U29,"")))))))))) ->  | L29: =IF($L$2=Comparativa!$C$2,Comparativa!C29,IF($L$2=Comparativa!$E$2,Comparativa!E29,IF($L$2=Comparativa!$G$2,Comparativa!G29,IF($L$2=Comparativa!$I$2,Comparativa!I29,IF($L$2=Comparativa!$K$2,Comparativa!K29,IF($L$2=Comparativa!$M$2,Comparativa!M29,IF($L$2=Comparativa!$O$2,Comparativa!O29,IF($L$2=Comparativa!$Q$2,Comparativa!Q29,IF($L$2=Comparativa!$S$2,Comparativa!S29,IF($L$2=Comparativa!$U$2,Comparativa!U29,"")))))))))) -> 
B30: Gestión de correos electrónicos | C30: =IF($C$2=Comparativa!$C$2,Comparativa!C30,IF($C$2=Comparativa!$E$2,Comparativa!E30,IF($C$2=Comparativa!$G$2,Comparativa!G30,IF($C$2=Comparativa!$I$2,Comparativa!I30,IF($C$2=Comparativa!$K$2,Comparativa!K30,IF($C$2=Comparativa!$M$2,Comparativa!M30,IF($C$2=Comparativa!$O$2,Comparativa!O30,IF($C$2=Comparativa!$Q$2,Comparativa!Q30,IF($C$2=Comparativa!$S$2,Comparativa!S30,IF($C$2=Comparativa!$U$2,Comparativa!U30,"")))))))))) -> x | D30: =IF($D$2=Comparativa!$C$2,Comparativa!C30,IF($D$2=Comparativa!$E$2,Comparativa!E30,IF($D$2=Comparativa!$G$2,Comparativa!G30,IF($D$2=Comparativa!$I$2,Comparativa!I30,IF($D$2=Comparativa!$K$2,Comparativa!K30,IF($D$2=Comparativa!$M$2,Comparativa!M30,IF($D$2=Comparativa!$O$2,Comparativa!O30,IF($D$2=Comparativa!$Q$2,Comparativa!Q30,IF($D$2=Comparativa!$S$2,Comparativa!S30,IF($D$2=Comparativa!$U$2,Comparativa!U30,"")))))))))) -> x | E30: =IF($E$2=Comparativa!$C$2,Comparativa!C30,IF($E$2=Comparativa!$E$2,Comparativa!E30,IF($E$2=Comparativa!$G$2,Comparativa!G30,IF($E$2=Comparativa!$I$2,Comparativa!I30,IF($E$2=Comparativa!$K$2,Comparativa!K30,IF($E$2=Comparativa!$M$2,Comparativa!M30,IF($E$2=Comparativa!$O$2,Comparativa!O30,IF($E$2=Comparativa!$Q$2,Comparativa!Q30,IF($E$2=Comparativa!$S$2,Comparativa!S30,IF($E$2=Comparativa!$U$2,Comparativa!U30,"")))))))))) -> x | F30: =IF($F$2=Comparativa!$C$2,Comparativa!C30,IF($F$2=Comparativa!$E$2,Comparativa!E30,IF($F$2=Comparativa!$G$2,Comparativa!G30,IF($F$2=Comparativa!$I$2,Comparativa!I30,IF($F$2=Comparativa!$K$2,Comparativa!K30,IF($F$2=Comparativa!$M$2,Comparativa!M30,IF($F$2=Comparativa!$O$2,Comparativa!O30,IF($F$2=Comparativa!$Q$2,Comparativa!Q30,IF($F$2=Comparativa!$S$2,Comparativa!S30,IF($F$2=Comparativa!$U$2,Comparativa!U30,"")))))))))) -> x | G30: =IF($G$2=Comparativa!$C$2,Comparativa!C30,IF($G$2=Comparativa!$E$2,Comparativa!E30,IF($G$2=Comparativa!$G$2,Comparativa!G30,IF($G$2=Comparativa!$I$2,Comparativa!I30,IF($G$2=Comparativa!$K$2,Comparativa!K30,IF($G$2=Comparativa!$M$2,Comparativa!M30,IF($G$2=Comparativa!$O$2,Comparativa!O30,IF($G$2=Comparativa!$Q$2,Comparativa!Q30,IF($G$2=Comparativa!$S$2,Comparativa!S30,IF($G$2=Comparativa!$U$2,Comparativa!U30,"")))))))))) -> x | H30: =IF($H$2=Comparativa!$C$2,Comparativa!C30,IF($H$2=Comparativa!$E$2,Comparativa!E30,IF($H$2=Comparativa!$G$2,Comparativa!G30,IF($H$2=Comparativa!$I$2,Comparativa!I30,IF($H$2=Comparativa!$K$2,Comparativa!K30,IF($H$2=Comparativa!$M$2,Comparativa!M30,IF($H$2=Comparativa!$O$2,Comparativa!O30,IF($H$2=Comparativa!$Q$2,Comparativa!Q30,IF($H$2=Comparativa!$S$2,Comparativa!S30,IF($H$2=Comparativa!$U$2,Comparativa!U30,"")))))))))) -> x | I30: =IF($I$2=Comparativa!$C$2,Comparativa!C30,IF($I$2=Comparativa!$E$2,Comparativa!E30,IF($I$2=Comparativa!$G$2,Comparativa!G30,IF($I$2=Comparativa!$I$2,Comparativa!I30,IF($I$2=Comparativa!$K$2,Comparativa!K30,IF($I$2=Comparativa!$M$2,Comparativa!M30,IF($I$2=Comparativa!$O$2,Comparativa!O30,IF($I$2=Comparativa!$Q$2,Comparativa!Q30,IF($I$2=Comparativa!$S$2,Comparativa!S30,IF($I$2=Comparativa!$U$2,Comparativa!U30,"")))))))))) ->  | J30: =IF($J$2=Comparativa!$C$2,Comparativa!C30,IF($J$2=Comparativa!$E$2,Comparativa!E30,IF($J$2=Comparativa!$G$2,Comparativa!G30,IF($J$2=Comparativa!$I$2,Comparativa!I30,IF($J$2=Comparativa!$K$2,Comparativa!K30,IF($J$2=Comparativa!$M$2,Comparativa!M30,IF($J$2=Comparativa!$O$2,Comparativa!O30,IF($J$2=Comparativa!$Q$2,Comparativa!Q30,IF($J$2=Comparativa!$S$2,Comparativa!S30,IF($J$2=Comparativa!$U$2,Comparativa!U30,"")))))))))) ->  | K30: =IF($K$2=Comparativa!$C$2,Comparativa!C30,IF($K$2=Comparativa!$E$2,Comparativa!E30,IF($K$2=Comparativa!$G$2,Comparativa!G30,IF($K$2=Comparativa!$I$2,Comparativa!I30,IF($K$2=Comparativa!$K$2,Comparativa!K30,IF($K$2=Comparativa!$M$2,Comparativa!M30,IF($K$2=Comparativa!$O$2,Comparativa!O30,IF($K$2=Comparativa!$Q$2,Comparativa!Q30,IF($K$2=Comparativa!$S$2,Comparativa!S30,IF($K$2=Comparativa!$U$2,Comparativa!U30,"")))))))))) ->  | L30: =IF($L$2=Comparativa!$C$2,Comparativa!C30,IF($L$2=Comparativa!$E$2,Comparativa!E30,IF($L$2=Comparativa!$G$2,Comparativa!G30,IF($L$2=Comparativa!$I$2,Comparativa!I30,IF($L$2=Comparativa!$K$2,Comparativa!K30,IF($L$2=Comparativa!$M$2,Comparativa!M30,IF($L$2=Comparativa!$O$2,Comparativa!O30,IF($L$2=Comparativa!$Q$2,Comparativa!Q30,IF($L$2=Comparativa!$S$2,Comparativa!S30,IF($L$2=Comparativa!$U$2,Comparativa!U30,"")))))))))) -> 
B31: Base de datos de conocimiento donde se pueden realizar búsquedas | C31: =IF($C$2=Comparativa!$C$2,Comparativa!C31,IF($C$2=Comparativa!$E$2,Comparativa!E31,IF($C$2=Comparativa!$G$2,Comparativa!G31,IF($C$2=Comparativa!$I$2,Comparativa!I31,IF($C$2=Comparativa!$K$2,Comparativa!K31,IF($C$2=Comparativa!$M$2,Comparativa!M31,IF($C$2=Comparativa!$O$2,Comparativa!O31,IF($C$2=Comparativa!$Q$2,Comparativa!Q31,IF($C$2=Comparativa!$S$2,Comparativa!S31,IF($C$2=Comparativa!$U$2,Comparativa!U31,"")))))))))) -> x | D31: =IF($D$2=Comparativa!$C$2,Comparativa!C31,IF($D$2=Comparativa!$E$2,Comparativa!E31,IF($D$2=Comparativa!$G$2,Comparativa!G31,IF($D$2=Comparativa!$I$2,Comparativa!I31,IF($D$2=Comparativa!$K$2,Comparativa!K31,IF($D$2=Comparativa!$M$2,Comparativa!M31,IF($D$2=Comparativa!$O$2,Comparativa!O31,IF($D$2=Comparativa!$Q$2,Comparativa!Q31,IF($D$2=Comparativa!$S$2,Comparativa!S31,IF($D$2=Comparativa!$U$2,Comparativa!U31,"")))))))))) -> x | E31: =IF($E$2=Comparativa!$C$2,Comparativa!C31,IF($E$2=Comparativa!$E$2,Comparativa!E31,IF($E$2=Comparativa!$G$2,Comparativa!G31,IF($E$2=Comparativa!$I$2,Comparativa!I31,IF($E$2=Comparativa!$K$2,Comparativa!K31,IF($E$2=Comparativa!$M$2,Comparativa!M31,IF($E$2=Comparativa!$O$2,Comparativa!O31,IF($E$2=Comparativa!$Q$2,Comparativa!Q31,IF($E$2=Comparativa!$S$2,Comparativa!S31,IF($E$2=Comparativa!$U$2,Comparativa!U31,"")))))))))) -> x | F31: =IF($F$2=Comparativa!$C$2,Comparativa!C31,IF($F$2=Comparativa!$E$2,Comparativa!E31,IF($F$2=Comparativa!$G$2,Comparativa!G31,IF($F$2=Comparativa!$I$2,Comparativa!I31,IF($F$2=Comparativa!$K$2,Comparativa!K31,IF($F$2=Comparativa!$M$2,Comparativa!M31,IF($F$2=Comparativa!$O$2,Comparativa!O31,IF($F$2=Comparativa!$Q$2,Comparativa!Q31,IF($F$2=Comparativa!$S$2,Comparativa!S31,IF($F$2=Comparativa!$U$2,Comparativa!U31,"")))))))))) -> x | G31: =IF($G$2=Comparativa!$C$2,Comparativa!C31,IF($G$2=Comparativa!$E$2,Comparativa!E31,IF($G$2=Comparativa!$G$2,Comparativa!G31,IF($G$2=Comparativa!$I$2,Comparativa!I31,IF($G$2=Comparativa!$K$2,Comparativa!K31,IF($G$2=Comparativa!$M$2,Comparativa!M31,IF($G$2=Comparativa!$O$2,Comparativa!O31,IF($G$2=Comparativa!$Q$2,Comparativa!Q31,IF($G$2=Comparativa!$S$2,Comparativa!S31,IF($G$2=Comparativa!$U$2,Comparativa!U31,"")))))))))) -> x | H31: =IF($H$2=Comparativa!$C$2,Comparativa!C31,IF($H$2=Comparativa!$E$2,Comparativa!E31,IF($H$2=Comparativa!$G$2,Comparativa!G31,IF($H$2=Comparativa!$I$2,Comparativa!I31,IF($H$2=Comparativa!$K$2,Comparativa!K31,IF($H$2=Comparativa!$M$2,Comparativa!M31,IF($H$2=Comparativa!$O$2,Comparativa!O31,IF($H$2=Comparativa!$Q$2,Comparativa!Q31,IF($H$2=Comparativa!$S$2,Comparativa!S31,IF($H$2=Comparativa!$U$2,Comparativa!U31,"")))))))))) -> x | I31: =IF($I$2=Comparativa!$C$2,Comparativa!C31,IF($I$2=Comparativa!$E$2,Comparativa!E31,IF($I$2=Comparativa!$G$2,Comparativa!G31,IF($I$2=Comparativa!$I$2,Comparativa!I31,IF($I$2=Comparativa!$K$2,Comparativa!K31,IF($I$2=Comparativa!$M$2,Comparativa!M31,IF($I$2=Comparativa!$O$2,Comparativa!O31,IF($I$2=Comparativa!$Q$2,Comparativa!Q31,IF($I$2=Comparativa!$S$2,Comparativa!S31,IF($I$2=Comparativa!$U$2,Comparativa!U31,"")))))))))) ->  | J31: =IF($J$2=Comparativa!$C$2,Comparativa!C31,IF($J$2=Comparativa!$E$2,Comparativa!E31,IF($J$2=Comparativa!$G$2,Comparativa!G31,IF($J$2=Comparativa!$I$2,Comparativa!I31,IF($J$2=Comparativa!$K$2,Comparativa!K31,IF($J$2=Comparativa!$M$2,Comparativa!M31,IF($J$2=Comparativa!$O$2,Comparativa!O31,IF($J$2=Comparativa!$Q$2,Comparativa!Q31,IF($J$2=Comparativa!$S$2,Comparativa!S31,IF($J$2=Comparativa!$U$2,Comparativa!U31,"")))))))))) ->  | K31: =IF($K$2=Comparativa!$C$2,Comparativa!C31,IF($K$2=Comparativa!$E$2,Comparativa!E31,IF($K$2=Comparativa!$G$2,Comparativa!G31,IF($K$2=Comparativa!$I$2,Comparativa!I31,IF($K$2=Comparativa!$K$2,Comparativa!K31,IF($K$2=Comparativa!$M$2,Comparativa!M31,IF($K$2=Comparativa!$O$2,Comparativa!O31,IF($K$2=Comparativa!$Q$2,Comparativa!Q31,IF($K$2=Comparativa!$S$2,Comparativa!S31,IF($K$2=Comparativa!$U$2,Comparativa!U31,"")))))))))) ->  | L31: =IF($L$2=Comparativa!$C$2,Comparativa!C31,IF($L$2=Comparativa!$E$2,Comparativa!E31,IF($L$2=Comparativa!$G$2,Comparativa!G31,IF($L$2=Comparativa!$I$2,Comparativa!I31,IF($L$2=Comparativa!$K$2,Comparativa!K31,IF($L$2=Comparativa!$M$2,Comparativa!M31,IF($L$2=Comparativa!$O$2,Comparativa!O31,IF($L$2=Comparativa!$Q$2,Comparativa!Q31,IF($L$2=Comparativa!$S$2,Comparativa!S31,IF($L$2=Comparativa!$U$2,Comparativa!U31,"")))))))))) -> 
B32: Servicio de atención al cliente (Centro de contacto) | C32: =IF($C$2=Comparativa!$C$2,Comparativa!C32,IF($C$2=Comparativa!$E$2,Comparativa!E32,IF($C$2=Comparativa!$G$2,Comparativa!G32,IF($C$2=Comparativa!$I$2,Comparativa!I32,IF($C$2=Comparativa!$K$2,Comparativa!K32,IF($C$2=Comparativa!$M$2,Comparativa!M32,IF($C$2=Comparativa!$O$2,Comparativa!O32,IF($C$2=Comparativa!$Q$2,Comparativa!Q32,IF($C$2=Comparativa!$S$2,Comparativa!S32,IF($C$2=Comparativa!$U$2,Comparativa!U32,"")))))))))) -> x | D32: =IF($D$2=Comparativa!$C$2,Comparativa!C32,IF($D$2=Comparativa!$E$2,Comparativa!E32,IF($D$2=Comparativa!$G$2,Comparativa!G32,IF($D$2=Comparativa!$I$2,Comparativa!I32,IF($D$2=Comparativa!$K$2,Comparativa!K32,IF($D$2=Comparativa!$M$2,Comparativa!M32,IF($D$2=Comparativa!$O$2,Comparativa!O32,IF($D$2=Comparativa!$Q$2,Comparativa!Q32,IF($D$2=Comparativa!$S$2,Comparativa!S32,IF($D$2=Comparativa!$U$2,Comparativa!U32,"")))))))))) -> x | E32: =IF($E$2=Comparativa!$C$2,Comparativa!C32,IF($E$2=Comparativa!$E$2,Comparativa!E32,IF($E$2=Comparativa!$G$2,Comparativa!G32,IF($E$2=Comparativa!$I$2,Comparativa!I32,IF($E$2=Comparativa!$K$2,Comparativa!K32,IF($E$2=Comparativa!$M$2,Comparativa!M32,IF($E$2=Comparativa!$O$2,Comparativa!O32,IF($E$2=Comparativa!$Q$2,Comparativa!Q32,IF($E$2=Comparativa!$S$2,Comparativa!S32,IF($E$2=Comparativa!$U$2,Comparativa!U32,"")))))))))) -> x | F32: =IF($F$2=Comparativa!$C$2,Comparativa!C32,IF($F$2=Comparativa!$E$2,Comparativa!E32,IF($F$2=Comparativa!$G$2,Comparativa!G32,IF($F$2=Comparativa!$I$2,Comparativa!I32,IF($F$2=Comparativa!$K$2,Comparativa!K32,IF($F$2=Comparativa!$M$2,Comparativa!M32,IF($F$2=Comparativa!$O$2,Comparativa!O32,IF($F$2=Comparativa!$Q$2,Comparativa!Q32,IF($F$2=Comparativa!$S$2,Comparativa!S32,IF($F$2=Comparativa!$U$2,Comparativa!U32,"")))))))))) -> x | G32: =IF($G$2=Comparativa!$C$2,Comparativa!C32,IF($G$2=Comparativa!$E$2,Comparativa!E32,IF($G$2=Comparativa!$G$2,Comparativa!G32,IF($G$2=Comparativa!$I$2,Comparativa!I32,IF($G$2=Comparativa!$K$2,Comparativa!K32,IF($G$2=Comparativa!$M$2,Comparativa!M32,IF($G$2=Comparativa!$O$2,Comparativa!O32,IF($G$2=Comparativa!$Q$2,Comparativa!Q32,IF($G$2=Comparativa!$S$2,Comparativa!S32,IF($G$2=Comparativa!$U$2,Comparativa!U32,"")))))))))) -> x | H32: =IF($H$2=Comparativa!$C$2,Comparativa!C32,IF($H$2=Comparativa!$E$2,Comparativa!E32,IF($H$2=Comparativa!$G$2,Comparativa!G32,IF($H$2=Comparativa!$I$2,Comparativa!I32,IF($H$2=Comparativa!$K$2,Comparativa!K32,IF($H$2=Comparativa!$M$2,Comparativa!M32,IF($H$2=Comparativa!$O$2,Comparativa!O32,IF($H$2=Comparativa!$Q$2,Comparativa!Q32,IF($H$2=Comparativa!$S$2,Comparativa!S32,IF($H$2=Comparativa!$U$2,Comparativa!U32,"")))))))))) -> x | I32: =IF($I$2=Comparativa!$C$2,Comparativa!C32,IF($I$2=Comparativa!$E$2,Comparativa!E32,IF($I$2=Comparativa!$G$2,Comparativa!G32,IF($I$2=Comparativa!$I$2,Comparativa!I32,IF($I$2=Comparativa!$K$2,Comparativa!K32,IF($I$2=Comparativa!$M$2,Comparativa!M32,IF($I$2=Comparativa!$O$2,Comparativa!O32,IF($I$2=Comparativa!$Q$2,Comparativa!Q32,IF($I$2=Comparativa!$S$2,Comparativa!S32,IF($I$2=Comparativa!$U$2,Comparativa!U32,"")))))))))) ->  | J32: =IF($J$2=Comparativa!$C$2,Comparativa!C32,IF($J$2=Comparativa!$E$2,Comparativa!E32,IF($J$2=Comparativa!$G$2,Comparativa!G32,IF($J$2=Comparativa!$I$2,Comparativa!I32,IF($J$2=Comparativa!$K$2,Comparativa!K32,IF($J$2=Comparativa!$M$2,Comparativa!M32,IF($J$2=Comparativa!$O$2,Comparativa!O32,IF($J$2=Comparativa!$Q$2,Comparativa!Q32,IF($J$2=Comparativa!$S$2,Comparativa!S32,IF($J$2=Comparativa!$U$2,Comparativa!U32,"")))))))))) ->  | K32: =IF($K$2=Comparativa!$C$2,Comparativa!C32,IF($K$2=Comparativa!$E$2,Comparativa!E32,IF($K$2=Comparativa!$G$2,Comparativa!G32,IF($K$2=Comparativa!$I$2,Comparativa!I32,IF($K$2=Comparativa!$K$2,Comparativa!K32,IF($K$2=Comparativa!$M$2,Comparativa!M32,IF($K$2=Comparativa!$O$2,Comparativa!O32,IF($K$2=Comparativa!$Q$2,Comparativa!Q32,IF($K$2=Comparativa!$S$2,Comparativa!S32,IF($K$2=Comparativa!$U$2,Comparativa!U32,"")))))))))) ->  | L32: =IF($L$2=Comparativa!$C$2,Comparativa!C32,IF($L$2=Comparativa!$E$2,Comparativa!E32,IF($L$2=Comparativa!$G$2,Comparativa!G32,IF($L$2=Comparativa!$I$2,Comparativa!I32,IF($L$2=Comparativa!$K$2,Comparativa!K32,IF($L$2=Comparativa!$M$2,Comparativa!M32,IF($L$2=Comparativa!$O$2,Comparativa!O32,IF($L$2=Comparativa!$Q$2,Comparativa!Q32,IF($L$2=Comparativa!$S$2,Comparativa!S32,IF($L$2=Comparativa!$U$2,Comparativa!U32,"")))))))))) -> 
B33: Servicio de soporte / Help desk | C33: =IF($C$2=Comparativa!$C$2,Comparativa!C33,IF($C$2=Comparativa!$E$2,Comparativa!E33,IF($C$2=Comparativa!$G$2,Comparativa!G33,IF($C$2=Comparativa!$I$2,Comparativa!I33,IF($C$2=Comparativa!$K$2,Comparativa!K33,IF($C$2=Comparativa!$M$2,Comparativa!M33,IF($C$2=Comparativa!$O$2,Comparativa!O33,IF($C$2=Comparativa!$Q$2,Comparativa!Q33,IF($C$2=Comparativa!$S$2,Comparativa!S33,IF($C$2=Comparativa!$U$2,Comparativa!U33,"")))))))))) -> x | D33: =IF($D$2=Comparativa!$C$2,Comparativa!C33,IF($D$2=Comparativa!$E$2,Comparativa!E33,IF($D$2=Comparativa!$G$2,Comparativa!G33,IF($D$2=Comparativa!$I$2,Comparativa!I33,IF($D$2=Comparativa!$K$2,Comparativa!K33,IF($D$2=Comparativa!$M$2,Comparativa!M33,IF($D$2=Comparativa!$O$2,Comparativa!O33,IF($D$2=Comparativa!$Q$2,Comparativa!Q33,IF($D$2=Comparativa!$S$2,Comparativa!S33,IF($D$2=Comparativa!$U$2,Comparativa!U33,"")))))))))) -> x | E33: =IF($E$2=Comparativa!$C$2,Comparativa!C33,IF($E$2=Comparativa!$E$2,Comparativa!E33,IF($E$2=Comparativa!$G$2,Comparativa!G33,IF($E$2=Comparativa!$I$2,Comparativa!I33,IF($E$2=Comparativa!$K$2,Comparativa!K33,IF($E$2=Comparativa!$M$2,Comparativa!M33,IF($E$2=Comparativa!$O$2,Comparativa!O33,IF($E$2=Comparativa!$Q$2,Comparativa!Q33,IF($E$2=Comparativa!$S$2,Comparativa!S33,IF($E$2=Comparativa!$U$2,Comparativa!U33,"")))))))))) -> x | F33: =IF($F$2=Comparativa!$C$2,Comparativa!C33,IF($F$2=Comparativa!$E$2,Comparativa!E33,IF($F$2=Comparativa!$G$2,Comparativa!G33,IF($F$2=Comparativa!$I$2,Comparativa!I33,IF($F$2=Comparativa!$K$2,Comparativa!K33,IF($F$2=Comparativa!$M$2,Comparativa!M33,IF($F$2=Comparativa!$O$2,Comparativa!O33,IF($F$2=Comparativa!$Q$2,Comparativa!Q33,IF($F$2=Comparativa!$S$2,Comparativa!S33,IF($F$2=Comparativa!$U$2,Comparativa!U33,"")))))))))) -> x | G33: =IF($G$2=Comparativa!$C$2,Comparativa!C33,IF($G$2=Comparativa!$E$2,Comparativa!E33,IF($G$2=Comparativa!$G$2,Comparativa!G33,IF($G$2=Comparativa!$I$2,Comparativa!I33,IF($G$2=Comparativa!$K$2,Comparativa!K33,IF($G$2=Comparativa!$M$2,Comparativa!M33,IF($G$2=Comparativa!$O$2,Comparativa!O33,IF($G$2=Comparativa!$Q$2,Comparativa!Q33,IF($G$2=Comparativa!$S$2,Comparativa!S33,IF($G$2=Comparativa!$U$2,Comparativa!U33,"")))))))))) -> x | H33: =IF($H$2=Comparativa!$C$2,Comparativa!C33,IF($H$2=Comparativa!$E$2,Comparativa!E33,IF($H$2=Comparativa!$G$2,Comparativa!G33,IF($H$2=Comparativa!$I$2,Comparativa!I33,IF($H$2=Comparativa!$K$2,Comparativa!K33,IF($H$2=Comparativa!$M$2,Comparativa!M33,IF($H$2=Comparativa!$O$2,Comparativa!O33,IF($H$2=Comparativa!$Q$2,Comparativa!Q33,IF($H$2=Comparativa!$S$2,Comparativa!S33,IF($H$2=Comparativa!$U$2,Comparativa!U33,"")))))))))) -> x | I33: =IF($I$2=Comparativa!$C$2,Comparativa!C33,IF($I$2=Comparativa!$E$2,Comparativa!E33,IF($I$2=Comparativa!$G$2,Comparativa!G33,IF($I$2=Comparativa!$I$2,Comparativa!I33,IF($I$2=Comparativa!$K$2,Comparativa!K33,IF($I$2=Comparativa!$M$2,Comparativa!M33,IF($I$2=Comparativa!$O$2,Comparativa!O33,IF($I$2=Comparativa!$Q$2,Comparativa!Q33,IF($I$2=Comparativa!$S$2,Comparativa!S33,IF($I$2=Comparativa!$U$2,Comparativa!U33,"")))))))))) ->  | J33: =IF($J$2=Comparativa!$C$2,Comparativa!C33,IF($J$2=Comparativa!$E$2,Comparativa!E33,IF($J$2=Comparativa!$G$2,Comparativa!G33,IF($J$2=Comparativa!$I$2,Comparativa!I33,IF($J$2=Comparativa!$K$2,Comparativa!K33,IF($J$2=Comparativa!$M$2,Comparativa!M33,IF($J$2=Comparativa!$O$2,Comparativa!O33,IF($J$2=Comparativa!$Q$2,Comparativa!Q33,IF($J$2=Comparativa!$S$2,Comparativa!S33,IF($J$2=Comparativa!$U$2,Comparativa!U33,"")))))))))) ->  | K33: =IF($K$2=Comparativa!$C$2,Comparativa!C33,IF($K$2=Comparativa!$E$2,Comparativa!E33,IF($K$2=Comparativa!$G$2,Comparativa!G33,IF($K$2=Comparativa!$I$2,Comparativa!I33,IF($K$2=Comparativa!$K$2,Comparativa!K33,IF($K$2=Comparativa!$M$2,Comparativa!M33,IF($K$2=Comparativa!$O$2,Comparativa!O33,IF($K$2=Comparativa!$Q$2,Comparativa!Q33,IF($K$2=Comparativa!$S$2,Comparativa!S33,IF($K$2=Comparativa!$U$2,Comparativa!U33,"")))))))))) ->  | L33: =IF($L$2=Comparativa!$C$2,Comparativa!C33,IF($L$2=Comparativa!$E$2,Comparativa!E33,IF($L$2=Comparativa!$G$2,Comparativa!G33,IF($L$2=Comparativa!$I$2,Comparativa!I33,IF($L$2=Comparativa!$K$2,Comparativa!K33,IF($L$2=Comparativa!$M$2,Comparativa!M33,IF($L$2=Comparativa!$O$2,Comparativa!O33,IF($L$2=Comparativa!$Q$2,Comparativa!Q33,IF($L$2=Comparativa!$S$2,Comparativa!S33,IF($L$2=Comparativa!$U$2,Comparativa!U33,"")))))))))) -> 
